Workbook

Sheet Overblik
A1: =A917 -> Retten i Holbæk | B1: =_xlfn.IFS($A$1=$A$902,B902,$A$1=$A$903,B903,$A$1=$A$904,B904,$A$1=$A$905,B905,$A$1=$A$906,B906,$A$1=$A$907,B907,$A$1=$A$908,B908,$A$1=$A$909,B909,$A$1=$A$910,B910,$A$1=$A$911,B911,$A$1=$A$912,B912,$A$1=$A$913,B913,$A$1=$A$914,B914,$A$1=$A$915,B915,$A$1=$A$916,B916,$A$1=$A$917,B917,$A$1=$A$918,B918,$A$1=$A$919,B919,$A$1=$A$920,B920,$A$1=$A$921,B921,$A$1=$A$922,B922,$A$1=$A$923,B923,$A$1=$A$924,B924,$A$1=#REF!,#REF!) -> 94.29437171 | C1: =_xlfn.IFS($A$1=$A$902,C902,$A$1=$A$903,C903,$A$1=$A$904,C904,$A$1=$A$905,C905,$A$1=$A$906,C906,$A$1=$A$907,C907,$A$1=$A$908,C908,$A$1=$A$909,C909,$A$1=$A$910,C910,$A$1=$A$911,C911,$A$1=$A$912,C912,$A$1=$A$913,C913,$A$1=$A$914,C914,$A$1=$A$915,C915,$A$1=$A$916,C916,$A$1=$A$917,C917,$A$1=$A$918,C918,$A$1=$A$919,C919,$A$1=$A$920,C920,$A$1=$A$921,C921,$A$1=$A$922,C922,$A$1=$A$923,C923,$A$1=$A$924,C924,$A$1=#REF!,#REF!) -> 103.1396924 | D1: =_xlfn.IFS($A$1=$A$902,D902,$A$1=$A$903,D903,$A$1=$A$904,D904,$A$1=$A$905,D905,$A$1=$A$906,D906,$A$1=$A$907,D907,$A$1=$A$908,D908,$A$1=$A$909,D909,$A$1=$A$910,D910,$A$1=$A$911,D911,$A$1=$A$912,D912,$A$1=$A$913,D913,$A$1=$A$914,D914,$A$1=$A$915,D915,$A$1=$A$916,D916,$A$1=$A$917,D917,$A$1=$A$918,D918,$A$1=$A$919,D919,$A$1=$A$920,D920,$A$1=$A$921,D921,$A$1=$A$922,D922,$A$1=$A$923,D923,$A$1=$A$924,D924,$A$1=#REF!,#REF!) -> 99.6854372 | E1: =_xlfn.IFS($A$1=$A$902,E902,$A$1=$A$903,E903,$A$1=$A$904,E904,$A$1=$A$905,E905,$A$1=$A$906,E906,$A$1=$A$907,E907,$A$1=$A$908,E908,$A$1=$A$909,E909,$A$1=$A$910,E910,$A$1=$A$911,E911,$A$1=$A$912,E912,$A$1=$A$913,E913,$A$1=$A$914,E914,$A$1=$A$915,E915,$A$1=$A$916,E916,$A$1=$A$917,E917,$A$1=$A$918,E918,$A$1=$A$919,E919,$A$1=$A$920,E920,$A$1=$A$921,E921,$A$1=$A$922,E922,$A$1=$A$923,E923,$A$1=$A$924,E924,$A$1=#REF!,#REF!) -> 106.0466548 | F1: =_xlfn.IFS($A$1=$A$902,F902,$A$1=$A$903,F903,$A$1=$A$904,F904,$A$1=$A$905,F905,$A$1=$A$906,F906,$A$1=$A$907,F907,$A$1=$A$908,F908,$A$1=$A$909,F909,$A$1=$A$910,F910,$A$1=$A$911,F911,$A$1=$A$912,F912,$A$1=$A$913,F913,$A$1=$A$914,F914,$A$1=$A$915,F915,$A$1=$A$916,F916,$A$1=$A$917,F917,$A$1=$A$918,F918,$A$1=$A$919,F919,$A$1=$A$920,F920,$A$1=$A$921,F921,$A$1=$A$922,F922,$A$1=$A$923,F923,$A$1=$A$924,F924,$A$1=#REF!,#REF!) -> 91.03242036 | G1: =_xlfn.IFS($A$1=$A$902,G902,$A$1=$A$903,G903,$A$1=$A$904,G904,$A$1=$A$905,G905,$A$1=$A$906,G906,$A$1=$A$907,G907,$A$1=$A$908,G908,$A$1=$A$909,G909,$A$1=$A$910,G910,$A$1=$A$911,G911,$A$1=$A$912,G912,$A$1=$A$913,G913,$A$1=$A$914,G914,$A$1=$A$915,G915,$A$1=$A$916,G916,$A$1=$A$917,G917,$A$1=$A$918,G918,$A$1=$A$919,G919,$A$1=$A$920,G920,$A$1=$A$921,G921,$A$1=$A$922,G922,$A$1=$A$923,G923,$A$1=$A$924,G924,$A$1=#REF!,#REF!) -> 101.09145 | H1: =_xlfn.IFS($A$1=$A$902,H902,$A$1=$A$903,H903,$A$1=$A$904,H904,$A$1=$A$905,H905,$A$1=$A$906,H906,$A$1=$A$907,H907,$A$1=$A$908,H908,$A$1=$A$909,H909,$A$1=$A$910,H910,$A$1=$A$911,H911,$A$1=$A$912,H912,$A$1=$A$913,H913,$A$1=$A$914,H914,$A$1=$A$915,H915,$A$1=$A$916,H916,$A$1=$A$917,H917,$A$1=$A$918,H918,$A$1=$A$919,H919,$A$1=$A$920,H920,$A$1=$A$921,H921,$A$1=$A$922,H922,$A$1=$A$923,H923,$A$1=$A$924,H924,$A$1=#REF!,#REF!) -> 0.1541756371 | I1: =_xlfn.IFS($A$1=$A$902,I902,$A$1=$A$903,I903,$A$1=$A$904,I904,$A$1=$A$905,I905,$A$1=$A$906,I906,$A$1=$A$907,I907,$A$1=$A$908,I908,$A$1=$A$909,I909,$A$1=$A$910,I910,$A$1=$A$911,I911,$A$1=$A$912,I912,$A$1=$A$913,I913,$A$1=$A$914,I914,$A$1=$A$915,I915,$A$1=$A$916,I916,$A$1=$A$917,I917,$A$1=$A$918,I918,$A$1=$A$919,I919,$A$1=$A$920,I920,$A$1=$A$921,I921,$A$1=$A$922,I922,$A$1=$A$923,I923,$A$1=$A$924,I924,$A$1=#REF!,#REF!) -> 0.1570829352 | J1: =_xlfn.IFS($A$1=$A$902,J902,$A$1=$A$903,J903,$A$1=$A$904,J904,$A$1=$A$905,J905,$A$1=$A$906,J906,$A$1=$A$907,J907,$A$1=$A$908,J908,$A$1=$A$909,J909,$A$1=$A$910,J910,$A$1=$A$911,J911,$A$1=$A$912,J912,$A$1=$A$913,J913,$A$1=$A$914,J914,$A$1=$A$915,J915,$A$1=$A$916,J916,$A$1=$A$917,J917,$A$1=$A$918,J918,$A$1=$A$919,J919,$A$1=$A$920,J920,$A$1=$A$921,J921,$A$1=$A$922,J922,$A$1=$A$923,J923,$A$1=$A$924,J924,$A$1=#REF!,#REF!) -> 202 | K1: =_xlfn.IFS($A$1=$A$902,K902,$A$1=$A$903,K903,$A$1=$A$904,K904,$A$1=$A$905,K905,$A$1=$A$906,K906,$A$1=$A$907,K907,$A$1=$A$908,K908,$A$1=$A$909,K909,$A$1=$A$910,K910,$A$1=$A$911,K911,$A$1=$A$912,K912,$A$1=$A$913,K913,$A$1=$A$914,K914,$A$1=$A$915,K915,$A$1=$A$916,K916,$A$1=$A$917,K917,$A$1=$A$918,K918,$A$1=$A$919,K919,$A$1=$A$920,K920,$A$1=$A$921,K921,$A$1=$A$922,K922,$A$1=$A$923,K923,$A$1=$A$924,K924,$A$1=#REF!,#REF!) -> 286 | L1: =_xlfn.IFS($A$1=$A$902,L902,$A$1=$A$903,L903,$A$1=$A$904,L904,$A$1=$A$905,L905,$A$1=$A$906,L906,$A$1=$A$907,L907,$A$1=$A$908,L908,$A$1=$A$909,L909,$A$1=$A$910,L910,$A$1=$A$911,L911,$A$1=$A$912,L912,$A$1=$A$913,L913,$A$1=$A$914,L914,$A$1=$A$915,L915,$A$1=$A$916,L916,$A$1=$A$917,L917,$A$1=$A$918,L918,$A$1=$A$919,L919,$A$1=$A$920,L920,$A$1=$A$921,L921,$A$1=$A$922,L922,$A$1=$A$923,L923,$A$1=$A$924,L924,$A$1=#REF!,#REF!) -> 612 | M1: =_xlfn.IFS($A$1=$A$902,M902,$A$1=$A$903,M903,$A$1=$A$904,M904,$A$1=$A$905,M905,$A$1=$A$906,M906,$A$1=$A$907,M907,$A$1=$A$908,M908,$A$1=$A$909,M909,$A$1=$A$910,M910,$A$1=$A$911,M911,$A$1=$A$912,M912,$A$1=$A$913,M913,$A$1=$A$914,M914,$A$1=$A$915,M915,$A$1=$A$916,M916,$A$1=$A$917,M917,$A$1=$A$918,M918,$A$1=$A$919,M919,$A$1=$A$920,M920,$A$1=$A$921,M921,$A$1=$A$922,M922,$A$1=$A$923,M923,$A$1=$A$924,M924,$A$1=#REF!,#REF!) -> 714 | N1: =_xlfn.IFS($A$1=$A$902,N902,$A$1=$A$903,N903,$A$1=$A$904,N904,$A$1=$A$905,N905,$A$1=$A$906,N906,$A$1=$A$907,N907,$A$1=$A$908,N908,$A$1=$A$909,N909,$A$1=$A$910,N910,$A$1=$A$911,N911,$A$1=$A$912,N912,$A$1=$A$913,N913,$A$1=$A$914,N914,$A$1=$A$915,N915,$A$1=$A$916,N916,$A$1=$A$917,N917,$A$1=$A$918,N918,$A$1=$A$919,N919,$A$1=$A$920,N920,$A$1=$A$921,N921,$A$1=$A$922,N922,$A$1=$A$923,N923,$A$1=$A$924,N924,$A$1=#REF!,#REF!) -> 75 | O1: =_xlfn.IFS($A$1=$A$902,O902,$A$1=$A$903,O903,$A$1=$A$904,O904,$A$1=$A$905,O905,$A$1=$A$906,O906,$A$1=$A$907,O907,$A$1=$A$908,O908,$A$1=$A$909,O909,$A$1=$A$910,O910,$A$1=$A$911,O911,$A$1=$A$912,O912,$A$1=$A$913,O913,$A$1=$A$914,O914,$A$1=$A$915,O915,$A$1=$A$916,O916,$A$1=$A$917,O917,$A$1=$A$918,O918,$A$1=$A$919,O919,$A$1=$A$920,O920,$A$1=$A$921,O921,$A$1=$A$922,O922,$A$1=$A$923,O923,$A$1=$A$924,O924,$A$1=#REF!,#REF!) -> 71 | P1: =_xlfn.IFS($A$1=$A$902,P902,$A$1=$A$903,P903,$A$1=$A$904,P904,$A$1=$A$905,P905,$A$1=$A$906,P906,$A$1=$A$907,P907,$A$1=$A$908,P908,$A$1=$A$909,P909,$A$1=$A$910,P910,$A$1=$A$911,P911,$A$1=$A$912,P912,$A$1=$A$913,P913,$A$1=$A$914,P914,$A$1=$A$915,P915,$A$1=$A$916,P916,$A$1=$A$917,P917,$A$1=$A$918,P918,$A$1=$A$919,P919,$A$1=$A$920,P920,$A$1=$A$921,P921,$A$1=$A$922,P922,$A$1=$A$923,P923,$A$1=$A$924,P924,$A$1=#REF!,#REF!) -> 32 | Q1: =_xlfn.IFS($A$1=$A$902,Q902,$A$1=$A$903,Q903,$A$1=$A$904,Q904,$A$1=$A$905,Q905,$A$1=$A$906,Q906,$A$1=$A$907,Q907,$A$1=$A$908,Q908,$A$1=$A$909,Q909,$A$1=$A$910,Q910,$A$1=$A$911,Q911,$A$1=$A$912,Q912,$A$1=$A$913,Q913,$A$1=$A$914,Q914,$A$1=$A$915,Q915,$A$1=$A$916,Q916,$A$1=$A$917,Q917,$A$1=$A$918,Q918,$A$1=$A$919,Q919,$A$1=$A$920,Q920,$A$1=$A$921,Q921,$A$1=$A$922,Q922,$A$1=$A$923,Q923,$A$1=$A$924,Q924,$A$1=#REF!,#REF!) -> 31 | R1: =_xlfn.IFS($A$1=$A$902,R902,$A$1=$A$903,R903,$A$1=$A$904,R904,$A$1=$A$905,R905,$A$1=$A$906,R906,$A$1=$A$907,R907,$A$1=$A$908,R908,$A$1=$A$909,R909,$A$1=$A$910,R910,$A$1=$A$911,R911,$A$1=$A$912,R912,$A$1=$A$913,R913,$A$1=$A$914,R914,$A$1=$A$915,R915,$A$1=$A$916,R916,$A$1=$A$917,R917,$A$1=$A$918,R918,$A$1=$A$919,R919,$A$1=$A$920,R920,$A$1=$A$921,R921,$A$1=$A$922,R922,$A$1=$A$923,R923,$A$1=$A$924,R924,$A$1=#REF!,#REF!) -> 0.29 | S1: =_xlfn.IFS($A$1=$A$902,S902,$A$1=$A$903,S903,$A$1=$A$904,S904,$A$1=$A$905,S905,$A$1=$A$906,S906,$A$1=$A$907,S907,$A$1=$A$908,S908,$A$1=$A$909,S909,$A$1=$A$910,S910,$A$1=$A$911,S911,$A$1=$A$912,S912,$A$1=$A$913,S913,$A$1=$A$914,S914,$A$1=$A$915,S915,$A$1=$A$916,S916,$A$1=$A$917,S917,$A$1=$A$918,S918,$A$1=$A$919,S919,$A$1=$A$920,S920,$A$1=$A$921,S921,$A$1=$A$922,S922,$A$1=$A$923,S923,$A$1=$A$924,S924,$A$1=#REF!,#REF!) -> 0.15 | T1: =_xlfn.IFS($A$1=$A$902,T902,$A$1=$A$903,T903,$A$1=$A$904,T904,$A$1=$A$905,T905,$A$1=$A$906,T906,$A$1=$A$907,T907,$A$1=$A$908,T908,$A$1=$A$909,T909,$A$1=$A$910,T910,$A$1=$A$911,T911,$A$1=$A$912,T912,$A$1=$A$913,T913,$A$1=$A$914,T914,$A$1=$A$915,T915,$A$1=$A$916,T916,$A$1=$A$917,T917,$A$1=$A$918,T918,$A$1=$A$919,T919,$A$1=$A$920,T920,$A$1=$A$921,T921,$A$1=$A$922,T922,$A$1=$A$923,T923,$A$1=$A$924,T924,$A$1=#REF!,#REF!) -> 0.5 | U1: =_xlfn.IFS($A$1=$A$902,U902,$A$1=$A$903,U903,$A$1=$A$904,U904,$A$1=$A$905,U905,$A$1=$A$906,U906,$A$1=$A$907,U907,$A$1=$A$908,U908,$A$1=$A$909,U909,$A$1=$A$910,U910,$A$1=$A$911,U911,$A$1=$A$912,U912,$A$1=$A$913,U913,$A$1=$A$914,U914,$A$1=$A$915,U915,$A$1=$A$916,U916,$A$1=$A$917,U917,$A$1=$A$918,U918,$A$1=$A$919,U919,$A$1=$A$920,U920,$A$1=$A$921,U921,$A$1=$A$922,U922,$A$1=$A$923,U923,$A$1=$A$924,U924,$A$1=#REF!,#REF!) -> 0.33 | V1: =_xlfn.IFS($A$1=$A$902,V902,$A$1=$A$903,V903,$A$1=$A$904,V904,$A$1=$A$905,V905,$A$1=$A$906,V906,$A$1=$A$907,V907,$A$1=$A$908,V908,$A$1=$A$909,V909,$A$1=$A$910,V910,$A$1=$A$911,V911,$A$1=$A$912,V912,$A$1=$A$913,V913,$A$1=$A$914,V914,$A$1=$A$915,V915,$A$1=$A$916,V916,$A$1=$A$917,V917,$A$1=$A$918,V918,$A$1=$A$919,V919,$A$1=$A$920,V920,$A$1=$A$921,V921,$A$1=$A$922,V922,$A$1=$A$923,V923,$A$1=$A$924,V924,$A$1=#REF!,#REF!) -> 12.5 | W1: =_xlfn.IFS($A$1=$A$902,W902,$A$1=$A$903,W903,$A$1=$A$904,W904,$A$1=$A$905,W905,$A$1=$A$906,W906,$A$1=$A$907,W907,$A$1=$A$908,W908,$A$1=$A$909,W909,$A$1=$A$910,W910,$A$1=$A$911,W911,$A$1=$A$912,W912,$A$1=$A$913,W913,$A$1=$A$914,W914,$A$1=$A$915,W915,$A$1=$A$916,W916,$A$1=$A$917,W917,$A$1=$A$918,W918,$A$1=$A$919,W919,$A$1=$A$920,W920,$A$1=$A$921,W921,$A$1=$A$922,W922,$A$1=$A$923,W923,$A$1=$A$924,W924,$A$1=#REF!,#REF!) -> 17.2 | X1: =_xlfn.IFS($A$1=$A$902,X902,$A$1=$A$903,X903,$A$1=$A$904,X904,$A$1=$A$905,X905,$A$1=$A$906,X906,$A$1=$A$907,X907,$A$1=$A$908,X908,$A$1=$A$909,X909,$A$1=$A$910,X910,$A$1=$A$911,X911,$A$1=$A$912,X912,$A$1=$A$913,X913,$A$1=$A$914,X914,$A$1=$A$915,X915,$A$1=$A$916,X916,$A$1=$A$917,X917,$A$1=$A$918,X918,$A$1=$A$919,X919,$A$1=$A$920,X920,$A$1=$A$921,X921,$A$1=$A$922,X922,$A$1=$A$923,X923,$A$1=$A$924,X924,$A$1=#REF!,#REF!) -> 7 | Y1: =_xlfn.IFS($A$1=$A$902,Y902,$A$1=$A$903,Y903,$A$1=$A$904,Y904,$A$1=$A$905,Y905,$A$1=$A$906,Y906,$A$1=$A$907,Y907,$A$1=$A$908,Y908,$A$1=$A$909,Y909,$A$1=$A$910,Y910,$A$1=$A$911,Y911,$A$1=$A$912,Y912,$A$1=$A$913,Y913,$A$1=$A$914,Y914,$A$1=$A$915,Y915,$A$1=$A$916,Y916,$A$1=$A$917,Y917,$A$1=$A$918,Y918,$A$1=$A$919,Y919,$A$1=$A$920,Y920,$A$1=$A$921,Y921,$A$1=$A$922,Y922,$A$1=$A$923,Y923,$A$1=$A$924,Y924,$A$1=#REF!,#REF!) -> 6.6 | Z1: =_xlfn.IFS($A$1=$A$902,Z902,$A$1=$A$903,Z903,$A$1=$A$904,Z904,$A$1=$A$905,Z905,$A$1=$A$906,Z906,$A$1=$A$907,Z907,$A$1=$A$908,Z908,$A$1=$A$909,Z909,$A$1=$A$910,Z910,$A$1=$A$911,Z911,$A$1=$A$912,Z912,$A$1=$A$913,Z913,$A$1=$A$914,Z914,$A$1=$A$915,Z915,$A$1=$A$916,Z916,$A$1=$A$917,Z917,$A$1=$A$918,Z918,$A$1=$A$919,Z919,$A$1=$A$920,Z920,$A$1=$A$921,Z921,$A$1=$A$922,Z922,$A$1=$A$923,Z923,$A$1=$A$924,Z924,$A$1=#REF!,#REF!) -> 41.95968 | AA1: =_xlfn.IFS($A$1=$A$902,AA902,$A$1=$A$903,AA903,$A$1=$A$904,AA904,$A$1=$A$905,AA905,$A$1=$A$906,AA906,$A$1=$A$907,AA907,$A$1=$A$908,AA908,$A$1=$A$909,AA909,$A$1=$A$910,AA910,$A$1=$A$911,AA911,$A$1=$A$912,AA912,$A$1=$A$913,AA913,$A$1=$A$914,AA914,$A$1=$A$915,AA915,$A$1=$A$916,AA916,$A$1=$A$917,AA917,$A$1=$A$918,AA918,$A$1=$A$919,AA919,$A$1=$A$920,AA920,$A$1=$A$921,AA921,$A$1=$A$922,AA922,$A$1=$A$923,AA923,$A$1=$A$924,AA924,$A$1=#REF!,#REF!) -> 41.53889 | AB1: =_xlfn.IFS($A$1=$A$902,AB902,$A$1=$A$903,AB903,$A$1=$A$904,AB904,$A$1=$A$905,AB905,$A$1=$A$906,AB906,$A$1=$A$907,AB907,$A$1=$A$908,AB908,$A$1=$A$909,AB909,$A$1=$A$910,AB910,$A$1=$A$911,AB911,$A$1=$A$912,AB912,$A$1=$A$913,AB913,$A$1=$A$914,AB914,$A$1=$A$915,AB915,$A$1=$A$916,AB916,$A$1=$A$917,AB917,$A$1=$A$918,AB918,$A$1=$A$919,AB919,$A$1=$A$920,AB920,$A$1=$A$921,AB921,$A$1=$A$922,AB922,$A$1=$A$923,AB923,$A$1=$A$924,AB924,$A$1=#REF!,#REF!) -> 11.64258 | AC1: =_xlfn.IFS($A$1=$A$902,AC902,$A$1=$A$903,AC903,$A$1=$A$904,AC904,$A$1=$A$905,AC905,$A$1=$A$906,AC906,$A$1=$A$907,AC907,$A$1=$A$908,AC908,$A$1=$A$909,AC909,$A$1=$A$910,AC910,$A$1=$A$911,AC911,$A$1=$A$912,AC912,$A$1=$A$913,AC913,$A$1=$A$914,AC914,$A$1=$A$915,AC915,$A$1=$A$916,AC916,$A$1=$A$917,AC917,$A$1=$A$918,AC918,$A$1=$A$919,AC919,$A$1=$A$920,AC920,$A$1=$A$921,AC921,$A$1=$A$922,AC922,$A$1=$A$923,AC923,$A$1=$A$924,AC924,$A$1=#REF!,#REF!) -> 12.42627 | AD1: =_xlfn.IFS($A$1=$A$902,AD902,$A$1=$A$903,AD903,$A$1=$A$904,AD904,$A$1=$A$905,AD905,$A$1=$A$906,AD906,$A$1=$A$907,AD907,$A$1=$A$908,AD908,$A$1=$A$909,AD909,$A$1=$A$910,AD910,$A$1=$A$911,AD911,$A$1=$A$912,AD912,$A$1=$A$913,AD913,$A$1=$A$914,AD914,$A$1=$A$915,AD915,$A$1=$A$916,AD916,$A$1=$A$917,AD917,$A$1=$A$918,AD918,$A$1=$A$919,AD919,$A$1=$A$920,AD920,$A$1=$A$921,AD921,$A$1=$A$922,AD922,$A$1=$A$923,AD923,$A$1=$A$924,AD924,$A$1=#REF!,#REF!) -> 24.00753 | AE1: =_xlfn.IFS($A$1=$A$902,AE902,$A$1=$A$903,AE903,$A$1=$A$904,AE904,$A$1=$A$905,AE905,$A$1=$A$906,AE906,$A$1=$A$907,AE907,$A$1=$A$908,AE908,$A$1=$A$909,AE909,$A$1=$A$910,AE910,$A$1=$A$911,AE911,$A$1=$A$912,AE912,$A$1=$A$913,AE913,$A$1=$A$914,AE914,$A$1=$A$915,AE915,$A$1=$A$916,AE916,$A$1=$A$917,AE917,$A$1=$A$918,AE918,$A$1=$A$919,AE919,$A$1=$A$920,AE920,$A$1=$A$921,AE921,$A$1=$A$922,AE922,$A$1=$A$923,AE923,$A$1=$A$924,AE924,$A$1=#REF!,#REF!) -> 22.91047 | AF1: =_xlfn.IFS($A$1=$A$902,AF902,$A$1=$A$903,AF903,$A$1=$A$904,AF904,$A$1=$A$905,AF905,$A$1=$A$906,AF906,$A$1=$A$907,AF907,$A$1=$A$908,AF908,$A$1=$A$909,AF909,$A$1=$A$910,AF910,$A$1=$A$911,AF911,$A$1=$A$912,AF912,$A$1=$A$913,AF913,$A$1=$A$914,AF914,$A$1=$A$915,AF915,$A$1=$A$916,AF916,$A$1=$A$917,AF917,$A$1=$A$918,AF918,$A$1=$A$919,AF919,$A$1=$A$920,AF920,$A$1=$A$921,AF921,$A$1=$A$922,AF922,$A$1=$A$923,AF923,$A$1=$A$924,AF924,$A$1=#REF!,#REF!) -> 24.85072896 | AG1: =_xlfn.IFS($A$1=$A$902,AG902,$A$1=$A$903,AG903,$A$1=$A$904,AG904,$A$1=$A$905,AG905,$A$1=$A$906,AG906,$A$1=$A$907,AG907,$A$1=$A$908,AG908,$A$1=$A$909,AG909,$A$1=$A$910,AG910,$A$1=$A$911,AG911,$A$1=$A$912,AG912,$A$1=$A$913,AG913,$A$1=$A$914,AG914,$A$1=$A$915,AG915,$A$1=$A$916,AG916,$A$1=$A$917,AG917,$A$1=$A$918,AG918,$A$1=$A$919,AG919,$A$1=$A$920,AG920,$A$1=$A$921,AG921,$A$1=$A$922,AG922,$A$1=$A$923,AG923,$A$1=$A$924,AG924,$A$1=#REF!,#REF!) -> 25.25480805 | AH1: =AH902 -> 0 | AI1: =AI902 -> 0 | AJ1: 0
A2: =A ->  | B2: =AH1 -> 0
B3: ÅRSNØGLETAL 2022
I4: Evt. sammenligning
B5: =A1 -> Retten i Holbæk | I5: =B35 -> 0 | L5: Datatabeller
D6: 2021 | E6: 2022 | F6: Gnst. BR 2022 | G6: 5. bedste 2022 | I6: =$D$6 -> 2021 | J6: =$E$6 -> 2022 | L6: KLIK PÅ PILENE FOR AT HOPPE TIL DATA:
B7: Samlet produktivitet, retten (indeks) | D7: =B1 -> 94.29437171 | E7: =C1 -> 103.1396924 | F7: ='Produkt.SAML.'!$E$6 -> 93.35002037 | G7: =LARGE($C$902:$C$924,5) -> 103.1396924 | I7: =IF($B$5=$I$5,"",C35) -> 0 | J7: =IF($B$5=$I$5,"",D35) -> 0 | M7: Produktivitet, samlet for retten
B8: Samlet produktivitet, jurister (indeks) | D8: =D1 -> 99.6854372 | E8: =E1 -> 106.0466548 | F8: =Produkt.JUR!$E$6 -> 96.50235115 | G8: =LARGE($E$902:$E$924,5) -> 103.9474881 | I8: =IF($B$5=$I$5,"",E35) -> 0 | J8: =IF($B$5=$I$5,"",F35) -> 0 | M8: Produktivitet, jurister
B9: Samlet produktivitet, kontorfunktionærer (indeks) | D9: =F1 -> 91.03242036 | E9: =G1 -> 101.09145 | F9: =Produkt.KON!$E$6 -> 94.99269721 | G9: =LARGE($G$902:$G$924,5) -> 104.1544758 | I9: =IF($B$5=$I$5,"",G35) -> 0 | J9: =IF($B$5=$I$5,"",H35) -> 0 | M9: Produktivitet, kontor
B10: Årsværksandel til generel ledelse og administration (pct.) | D10: =H1*100 -> 15.41756371 | E10: =I1*100 -> 15.70829352 | F10: ='Generel ledelse_Adm.'!$J$13*100 -> 14.80792941 | G10: - | I10: =IF($B$5=$I$5,"",I35*100) -> 0 | J10: =IF($B$5=$I$5,"",J35*100) -> 0 | M10: Årsværk, ledelse og administration
B11: Gnst. sagsbehandlingstid, domsmandssager (dage) | D11: =J1 -> 202 | E11: =K1 -> 286 | F11: =Sagstid.Straf!$G$6 -> 255 | G11: =Sagstid.Straf!$G$7 -> 178 | I11: =IF($B$5=$I$5,"",K35) -> 0 | J11: =IF($B$5=$I$5,"",L35) -> 0 | M11: Aktivitet ved retten
B12: Gnst. sagsbehandlingstid, hovedforhandlet alm. civil sag (dage) | D12: =L1 -> 612 | E12: =M1 -> 714 | F12: =Sagstid.Civil!$E$6 -> 668 | G12: =Sagstid.Civil!$E$7 -> 594 | I12: =IF($B$5=$I$5,"",M35) -> 0 | J12: =IF($B$5=$I$5,"",N35) -> 0 | M12: Målopfyldelse, straffesager
B13: Gnst. sagsbehandlingstid, almindelig fogedsag (dage) | D13: =N1 -> 75 | E13: =O1 -> 71 | F13: =Sagstid.Foged!$E$6 -> 82 | G13: =Sagstid.Foged!$E$7 -> 62 | I13: =IF($B$5=$I$5,"",O35) -> 0 | J13: =IF($B$5=$I$5,"",P35) -> 0 | M13: Målopfyldelse, civile sager
B14: Gnst. sagsbehandlingstid, boudlæg (dage) | D14: =P1 -> 32 | E14: =Q1 -> 31 | F14: =Sagstid.Skifte!$E$6 -> 49 | G14: =Sagstid.Skifte!$E$7 -> 35 | I14: =IF($B$5=$I$5,"",Q35) -> 0 | J14: =IF($B$5=$I$5,"",R35) -> 0 | M14: Målopfyldelse, fogedsager
B15: Målopfyldelse, voldssager 37-dages frist (procent) | D15: =R1*100 -> 29 | E15: =S1*100 -> 15 | F15: =Målopf.VVV!$E$8*100 -> 35 | G15: =Målopf.VVV!$E$9*100 -> 45 | I15: =IF($B$5=$I$5,"",S35*100) -> 0 | J15: =IF($B$5=$I$5,"",T35*100) -> 0 | M15: Målopfyldelse, skiftesager
B16: Målopfyldelse, voldtægtssager 37-dages frist (procent) | D16: =IF(T1=999," -",T1)*100 -> 50 | E16: =IF(U1=999," -",U1)*100 -> 33 | F16: =Målopf.VVV!$G$8*100 -> 24 | G16: =Målopf.VVV!$G$9*100 -> 40 | I16: =IF($B$5=$I$5,"",U35*100) -> 0 | J16: =IF($B$5=$I$5,"",V35*100) -> 0 | M16: Gnst. Sagsbehandlingstid, straffesager
B17: Gnst. sygefravær pr. medarbejder (dage pr. år) | D17: =V1 -> 12.5 | E17: =W1 -> 17.2 | F17: ='HR-nøgletal_lønsum'!$E$6 -> 12.1 | G17: ='HR-nøgletal_lønsum'!$E$7 -> 9.1 | I17: =IF($B$5=$I$5,"",W35) -> 0 | J17: =IF($B$5=$I$5,"",X35) -> 0 | M17: Gnst. Sagsbehandlingstid, civile sager
B18: Personaleomsætningsprocent (procent) | D18: =X1 -> 7 | E18: =Y1 -> 6.6 | F18: ='HR-nøgletal_lønsum'!$G$6 -> 10.3 | G18: - | I18: =IF($B$5=$I$5,"",Y35) -> 0 | J18: =IF($B$5=$I$5,"",Z35) -> 0 | M18: Gnst. Sagsbehandlingstid, fogedsager
B19: Samlet årsværksforbrug, retten (årsværk) | D19: =Z1 -> 41.95968 | E19: =AA1 -> 41.53889 | F19: =Årsværk_Pers.kat!$O$8/24 -> 60.431105 | G19: - | I19: =IF($B$5=$I$5,"",AA35) -> 0 | J19: =IF($B$5=$I$5,"",AB35) -> 0 | M19: Gnst. Sagsbehandlingstid, skiftesager
B20: Samlet årsværksforbrug, jurister (årsværk) | D20: =AB1 -> 11.64258 | E20: =AC1 -> 12.42627 | F20: =Årsværk_Pers.kat!$J$8/24 -> 18.26408208 | G20: - | I20: =IF($B$5=$I$5,"",AC35) -> 0 | J20: =IF($B$5=$I$5,"",AD35) -> 0 | M20: HR-nøgletal
B21: Samlet årsværksforbrug, kontorfunktionærer (årsværk) | D21: =AD1 -> 24.00753 | E21: =AE1 -> 22.91047 | F21: =Årsværk_Pers.kat!$K$8/24 -> 34.00831292 | G21: - | I21: =IF($B$5=$I$5,"",AE35) -> 0 | J21: =IF($B$5=$I$5,"",AF35) -> 0 | M21: Årsværksforbrug, personalekategorier
B22: Samlet lønsumsforbrug (mio. kr.) | D22: =AF1 -> 24.85072896 | E22: =AG1 -> 25.25480805 | F22: ='HR-nøgletal_lønsum'!$I$6 -> 36.99203646 | G22: - | I22: =IF($B$5=$I$5,"",AG35) -> 0 | J22: =IF($B$5=$I$5,"",AH35) -> 0 | M22: Årsværksforbrug, sagsområder
B24: Noter:
B25: 1) Ved beregningen af indeks for produktivitet samlet for retten, for jurister og kontor er indeks 100 lig gennemsnittet ved byretterne i 2019.
B26: 2) Årsværksandel til generel ledelse og administration er samlet for retten og inkluderer alle personalegrupper.
B27: 3) Den gennemsnitlige sagsbehandlingstid for en hovedforhandlet almindelig civil sag inkluderer sagstypen almindelige sager. Boligretssager og småsager indgår ikke.
B28: 4) Ansatte under socialt kapitel indgår ikke i beregningen af det gennemsnitlige sygefravær pr. medarbejder (årsværk).
B29: 5) Lønsumsforbruget inkluderer egentlig løn, over- og merarbejde, stævningsmænd, refusioner og pensionsbidrag.
B30: 6) Der er ikke angivet data for 5. bedste byret for årsværksandel til generel ledelse og administration, personaleomsætning, årsværksforbrug og lønsumsforbrug, idet dette ikke er et meningsfuldt benchmark for disse kategorier.
B32: KLIK FOR AT AKTIVERE SAMMENLIGNING:
B35: =A934 -> 0 | C35: =B934 -> 0 | D35: 0 | E35: 0 | F35: 0 | G35: 0 | H35: 0 | I35: 0 | J35: 0 | K35: 0 | L35: 0 | M35: 0 | N35: 0 | O35: 0 | P35: 0 | Q35: 0 | R35: 0 | S35: 0 | T35: 0 | U35: 0 | V35: 0 | W35: 0 | X35: 0 | Y35: 0 | Z35: 0 | AA35: 0 | AB35: 0 | AC35: 0 | AD35: 0 | AE35: 0 | AF35: 0 | AG35: 0 | AH35: 0 | AI35: 0
B900: Samlet produktivitet, retten | D900: Samlet produktivitet, jurister | F900: Samlet produktivitet, kontor | H900: ÅRVK ledelse og adm. (andel) | J900: Sagstider domsmandssager | L900: Sagstider hfh. alm. Civil | N900: Sagstid alm. fogedsag | P900: Sagstider boudlæg | R900: Målopfyldelse vold | T900: Målopfyldelse voldtægt | V900: Sygefravær | X900: Personaleomsætning | Z900: Årsværk retten | AB900: Årsværk jurist | AD900: Årsværk kontor | AF900: Samlet lønsum
A901: Ret | B901: =$D$6 -> 2021 | C901: =$E$6 -> 2022 | D901: =$D$6 -> 2021 | E901: =$E$6 -> 2022 | F901: =$D$6 -> 2021 | G901: =$E$6 -> 2022 | H901: =$D$6 -> 2021 | I901: =$E$6 -> 2022 | J901: =$D$6 -> 2021 | K901: =$E$6 -> 2022 | L901: =$D$6 -> 2021 | M901: =$E$6 -> 2022 | N901: =$D$6 -> 2021 | O901: =$E$6 -> 2022 | P901: =$D$6 -> 2021 | Q901: =$E$6 -> 2022 | R901: =$D$6 -> 2021 | S901: =$E$6 -> 2022 | T901: =$D$6 -> 2021 | U901: =$E$6 -> 2022 | V901: =$D$6 -> 2021 | W901: =$E$6 -> 2022 | X901: =$D$6 -> 2021 | Y901: =$E$6 -> 2022 | Z901: =$D$6 -> 2021 | AA901: =$E$6 -> 2022 | AB901: =$D$6 -> 2021 | AC901: =$E$6 -> 2022 | AD901: =$D$6 -> 2021 | AE901: =$E$6 -> 2022 | AF901: =$D$6 -> 2021 | AG901: =$E$6 -> 2022
A902: Retten i Hjørring | B902: ='Produkt.SAML.'!D9 -> 87.84852496 | C902: ='Produkt.SAML.'!E9 -> 92.53914513 | D902: =Produkt.JUR!D9 -> 89.38261954 | E902: =Produkt.JUR!E9 -> 93.75064523 | F902: =Produkt.KON!D9 -> 87.05609001 | G902: =Produkt.KON!E9 -> 90.86513468 | H902: ='Generel ledelse_Adm.'!I21 -> 0.161184571 | I902: ='Generel ledelse_Adm.'!J21 -> 0.1454211175 | J902: =Sagstid.Straf!F9 -> 196 | K902: =Sagstid.Straf!G9 -> 182 | L902: =Sagstid.Civil!D9 -> 578 | M902: =Sagstid.Civil!E9 -> 554 | N902: =Sagstid.Foged!D9 -> 88 | O902: =Sagstid.Foged!E9 -> 84 | P902: =Sagstid.Skifte!D9 -> 50 | Q902: =Sagstid.Skifte!E9 -> 60 | R902: =Målopf.VVV!D11 -> 0.35 | S902: =Målopf.VVV!E11 -> 0.35 | T902: =Målopf.VVV!F11 -> 0.38 | U902: =Målopf.VVV!G11 -> 0.13 | V902: ='HR-nøgletal_lønsum'!D9 -> 6.7 | W902: ='HR-nøgletal_lønsum'!E9 -> - | X902: ='HR-nøgletal_lønsum'!F9 -> 9 | Y902: ='HR-nøgletal_lønsum'!G9 -> 10.6 | Z902: =Årsværk_Pers.kat!I10 -> 46.88327 | AA902: =Årsværk_Pers.kat!O10 -> 44.07507 | AB902: =Årsværk_Pers.kat!D10 -> 13.06093 | AC902: =Årsværk_Pers.kat!J10 -> 12.60653 | AD902: =Årsværk_Pers.kat!E10 -> 27.47848 | AE902: =Årsværk_Pers.kat!K10 -> 26.51046 | AF902: ='HR-nøgletal_lønsum'!H9 -> 26.62975761 | AG902: ='HR-nøgletal_lønsum'!I9 -> 25.28865984
A903: Retten i Aalborg | B903: ='Produkt.SAML.'!D10 -> 95.68886905 | C903: ='Produkt.SAML.'!E10 -> 97.49098313 | D903: =Produkt.JUR!D10 -> 99.39559181 | E903: =Produkt.JUR!E10 -> 98.66292971 | F903: =Produkt.KON!D10 -> 89.00905781 | G903: =Produkt.KON!E10 -> 92.65104342 | H903: ='Generel ledelse_Adm.'!I28 -> 0.1080661474 | I903: ='Generel ledelse_Adm.'!J28 -> 0.09655449819 | J903: =Sagstid.Straf!F10 -> 189 | K903: =Sagstid.Straf!G10 -> 206 | L903: =Sagstid.Civil!D10 -> 664 | M903: =Sagstid.Civil!E10 -> 669 | N903: =Sagstid.Foged!D10 -> 68 | O903: =Sagstid.Foged!E10 -> 77 | P903: =Sagstid.Skifte!D10 -> 52 | Q903: =Sagstid.Skifte!E10 -> 67 | R903: =Målopf.VVV!D12 -> 0.24 | S903: =Målopf.VVV!E12 -> 0.23 | T903: =Målopf.VVV!F12 -> 0.38 | U903: =Målopf.VVV!G12 -> 0.2 | V903: ='HR-nøgletal_lønsum'!D10 -> 5.5 | W903: ='HR-nøgletal_lønsum'!E10 -> 8.6 | X903: ='HR-nøgletal_lønsum'!F10 -> 12.5 | Y903: ='HR-nøgletal_lønsum'!G10 -> 5.8 | Z903: =Årsværk_Pers.kat!I11 -> 73.61024 | AA903: =Årsværk_Pers.kat!O11 -> 73.1207 | AB903: =Årsværk_Pers.kat!D11 -> 20.75811 | AC903: =Årsværk_Pers.kat!J11 -> 21.71415 | AD903: =Årsværk_Pers.kat!E11 -> 43.18242 | AE903: =Årsværk_Pers.kat!K11 -> 42.44295 | AF903: ='HR-nøgletal_lønsum'!H10 -> 42.0992892 | AG903: ='HR-nøgletal_lønsum'!I10 -> 42.36790273
A904: Retten i Randers | B904: ='Produkt.SAML.'!D11 -> 99.15125084 | C904: ='Produkt.SAML.'!E11 -> 93.33676804 | D904: =Produkt.JUR!D11 -> 102.8262165 | E904: =Produkt.JUR!E11 -> 100.1101562 | F904: =Produkt.KON!D11 -> 93.36964735 | G904: =Produkt.KON!E11 -> 90.29526298 | H904: ='Generel ledelse_Adm.'!I35 -> 0.1905728066 | I904: ='Generel ledelse_Adm.'!J35 -> 0.1679824169 | J904: =Sagstid.Straf!F11 -> 229 | K904: =Sagstid.Straf!G11 -> 222 | L904: =Sagstid.Civil!D11 -> 639 | M904: =Sagstid.Civil!E11 -> 704 | N904: =Sagstid.Foged!D11 -> 113 | O904: =Sagstid.Foged!E11 -> 89 | P904: =Sagstid.Skifte!D11 -> 49 | Q904: =Sagstid.Skifte!E11 -> 35 | R904: =Målopf.VVV!D13 -> 0.59 | S904: =Målopf.VVV!E13 -> 0.37 | T904: =Målopf.VVV!F13 -> 0.2 | U904: =Målopf.VVV!G13 -> 0.4 | V904: ='HR-nøgletal_lønsum'!D11 -> 9.9 | W904: ='HR-nøgletal_lønsum'!E11 -> 14.6 | X904: ='HR-nøgletal_lønsum'!F11 -> 3.7 | Y904: ='HR-nøgletal_lønsum'!G11 -> 2.9 | Z904: =Årsværk_Pers.kat!I12 -> 47.9646 | AA904: =Årsværk_Pers.kat!O12 -> 50.13222 | AB904: =Årsværk_Pers.kat!D12 -> 12.91887 | AC904: =Årsværk_Pers.kat!J12 -> 12.86885 | AD904: =Årsværk_Pers.kat!E12 -> 28.49065 | AE904: =Årsværk_Pers.kat!K12 -> 29.21068 | AF904: ='HR-nøgletal_lønsum'!H11 -> 28.97948699 | AG904: ='HR-nøgletal_lønsum'!I11 -> 29.22232497
A905: Retten i Aarhus | B905: ='Produkt.SAML.'!D12 -> 90.48986993 | C905: ='Produkt.SAML.'!E12 -> 96.44860828 | D905: =Produkt.JUR!D12 -> 97.29542964 | E905: =Produkt.JUR!E12 -> 96.21304634 | F905: =Produkt.KON!D12 -> 90.39017586 | G905: =Produkt.KON!E12 -> 101.8695996 | H905: ='Generel ledelse_Adm.'!I42 -> 0.162279109 | I905: ='Generel ledelse_Adm.'!J42 -> 0.1458479646 | J905: =Sagstid.Straf!F12 -> 358 | K905: =Sagstid.Straf!G12 -> 437 | L905: =Sagstid.Civil!D12 -> 844 | M905: =Sagstid.Civil!E12 -> 913 | N905: =Sagstid.Foged!D12 -> 93 | O905: =Sagstid.Foged!E12 -> 93 | P905: =Sagstid.Skifte!D12 -> 61 | Q905: =Sagstid.Skifte!E12 -> 61 | R905: =Målopf.VVV!D14 -> 0.45 | S905: =Målopf.VVV!E14 -> 0.51 | T905: =Målopf.VVV!F14 -> 0.22 | U905: =Målopf.VVV!G14 -> 0 | V905: ='HR-nøgletal_lønsum'!D12 -> 18.3 | W905: ='HR-nøgletal_lønsum'!E12 -> 15.7 | X905: ='HR-nøgletal_lønsum'!F12 -> 12.8 | Y905: ='HR-nøgletal_lønsum'!G12 -> 10.7 | Z905: =Årsværk_Pers.kat!I13 -> 85.70721 | AA905: =Årsværk_Pers.kat!O13 -> 82.22109 | AB905: =Årsværk_Pers.kat!D13 -> 24.70667 | AC905: =Årsværk_Pers.kat!J13 -> 26.74794 | AD905: =Årsværk_Pers.kat!E13 -> 45.3934 | AE905: =Årsværk_Pers.kat!K13 -> 42.59814 | AF905: ='HR-nøgletal_lønsum'!H12 -> 51.99449505 | AG905: ='HR-nøgletal_lønsum'!I12 -> 52.73250782
A906: Retten i Viborg | B906: ='Produkt.SAML.'!D13 -> 97.21890365 | C906: ='Produkt.SAML.'!E13 -> 90.33676431 | D906: =Produkt.JUR!D13 -> 106.5621988 | E906: =Produkt.JUR!E13 -> 98.76460671 | F906: =Produkt.KON!D13 -> 91.16839156 | G906: =Produkt.KON!E13 -> 82.2338775 | H906: ='Generel ledelse_Adm.'!I49 -> 0.1626350858 | I906: ='Generel ledelse_Adm.'!J49 -> 0.1480793437 | J906: =Sagstid.Straf!F13 -> 239 | K906: =Sagstid.Straf!G13 -> 307 | L906: =Sagstid.Civil!D13 -> 685 | M906: =Sagstid.Civil!E13 -> 716 | N906: =Sagstid.Foged!D13 -> 114 | O906: =Sagstid.Foged!E13 -> 103 | P906: =Sagstid.Skifte!D13 -> 72 | Q906: =Sagstid.Skifte!E13 -> 44 | R906: =Målopf.VVV!D15 -> 0.65 | S906: =Målopf.VVV!E15 -> 0.45 | T906: =Målopf.VVV!F15 -> 0.71 | U906: =Målopf.VVV!G15 -> 0.09 | V906: ='HR-nøgletal_lønsum'!D13 -> 8.8 | W906: ='HR-nøgletal_lønsum'!E13 -> 8.9 | X906: ='HR-nøgletal_lønsum'!F13 -> 11.7 | Y906: ='HR-nøgletal_lønsum'!G13 -> 12.1 | Z906: =Årsværk_Pers.kat!I14 -> 53.79095 | AA906: =Årsværk_Pers.kat!O14 -> 59.9153 | AB906: =Årsværk_Pers.kat!D14 -> 13.41872 | AC906: =Årsværk_Pers.kat!J14 -> 15.00877 | AD906: =Årsværk_Pers.kat!E14 -> 29.8504 | AE906: =Årsværk_Pers.kat!K14 -> 35.31459 | AF906: ='HR-nøgletal_lønsum'!H13 -> 29.38358967 | AG906: ='HR-nøgletal_lønsum'!I13 -> 32.4765407
A907: Retten i Holstebro | B907: ='Produkt.SAML.'!D14 -> 106.896309 | C907: ='Produkt.SAML.'!E14 -> 110.3319721 | D907: =Produkt.JUR!D14 -> 119.4218063 | E907: =Produkt.JUR!E14 -> 114.5180103 | F907: =Produkt.KON!D14 -> 99.1251152 | G907: =Produkt.KON!E14 -> 106.2404198 | H907: ='Generel ledelse_Adm.'!I56 -> 0.1629713284 | I907: ='Generel ledelse_Adm.'!J56 -> 0.1451286552 | J907: =Sagstid.Straf!F14 -> 171 | K907: =Sagstid.Straf!G14 -> 151 | L907: =Sagstid.Civil!D14 -> 710 | M907: =Sagstid.Civil!E14 -> 529 | N907: =Sagstid.Foged!D14 -> 37 | O907: =Sagstid.Foged!E14 -> 50 | P907: =Sagstid.Skifte!D14 -> 39 | Q907: =Sagstid.Skifte!E14 -> 53 | R907: =Målopf.VVV!D16 -> 0.43 | S907: =Målopf.VVV!E16 -> 0.42 | T907: =Målopf.VVV!F16 -> 0.44 | U907: =Målopf.VVV!G16 -> 0.19 | V907: ='HR-nøgletal_lønsum'!D14 -> 8.8 | W907: ='HR-nøgletal_lønsum'!E14 -> 11.9 | X907: ='HR-nøgletal_lønsum'!F14 -> 13.4 | Y907: ='HR-nøgletal_lønsum'!G14 -> 6.7 | Z907: =Årsværk_Pers.kat!I15 -> 36.66749 | AA907: =Årsværk_Pers.kat!O15 -> 34.79058 | AB907: =Årsværk_Pers.kat!D15 -> 8.83508 | AC907: =Årsværk_Pers.kat!J15 -> 9.17888 | AD907: =Årsværk_Pers.kat!E15 -> 19.97882 | AE907: =Årsværk_Pers.kat!K15 -> 19.39348 | AF907: ='HR-nøgletal_lønsum'!H14 -> 21.11386531 | AG907: ='HR-nøgletal_lønsum'!I14 -> 21.14904125
A908: Retten i Herning | B908: ='Produkt.SAML.'!D15 -> 100.7507619 | C908: ='Produkt.SAML.'!E15 -> 96.62906985 | D908: =Produkt.JUR!D15 -> 102.6942274 | E908: =Produkt.JUR!E15 -> 96.62136936 | F908: =Produkt.KON!D15 -> 102.2639586 | G908: =Produkt.KON!E15 -> 99.49918968 | H908: ='Generel ledelse_Adm.'!I63 -> 0.1361044475 | I908: ='Generel ledelse_Adm.'!J63 -> 0.1018433052 | J908: =Sagstid.Straf!F15 -> 140 | K908: =Sagstid.Straf!G15 -> 176 | L908: =Sagstid.Civil!D15 -> 494 | M908: =Sagstid.Civil!E15 -> 695 | N908: =Sagstid.Foged!D15 -> 72 | O908: =Sagstid.Foged!E15 -> 62 | P908: =Sagstid.Skifte!D15 -> 49 | Q908: =Sagstid.Skifte!E15 -> 53 | R908: =Målopf.VVV!D17 -> 0.65 | S908: =Målopf.VVV!E17 -> 0.33 | T908: =Målopf.VVV!F17 -> 0.5 | U908: =Målopf.VVV!G17 -> 0.15 | V908: ='HR-nøgletal_lønsum'!D15 -> 7.2 | W908: ='HR-nøgletal_lønsum'!E15 -> 9.1 | X908: ='HR-nøgletal_lønsum'!F15 -> 13 | Y908: ='HR-nøgletal_lønsum'!G15 -> 8.9 | Z908: =Årsværk_Pers.kat!I16 -> 40.50561 | AA908: =Årsværk_Pers.kat!O16 -> 42.15066 | AB908: =Årsværk_Pers.kat!D16 -> 11.79869 | AC908: =Årsværk_Pers.kat!J16 -> 12.89255 | AD908: =Årsværk_Pers.kat!E16 -> 22.20023 | AE908: =Årsværk_Pers.kat!K16 -> 22.91361 | AF908: ='HR-nøgletal_lønsum'!H15 -> 23.77129493 | AG908: ='HR-nøgletal_lønsum'!I15 -> 25.32585448
A909: Retten i Horsens | B909: ='Produkt.SAML.'!D16 -> 87.00257958 | C909: ='Produkt.SAML.'!E16 -> 95.48061841 | D909: =Produkt.JUR!D16 -> 87.92889129 | E909: =Produkt.JUR!E16 -> 99.58494792 | F909: =Produkt.KON!D16 -> 95.97378081 | G909: =Produkt.KON!E16 -> 101.1448005 | H909: ='Generel ledelse_Adm.'!I70 -> 0.1729787191 | I909: ='Generel ledelse_Adm.'!J70 -> 0.1264411931 | J909: =Sagstid.Straf!F16 -> 314 | K909: =Sagstid.Straf!G16 -> 412 | L909: =Sagstid.Civil!D16 -> 632 | M909: =Sagstid.Civil!E16 -> 782 | N909: =Sagstid.Foged!D16 -> 92 | O909: =Sagstid.Foged!E16 -> 62 | P909: =Sagstid.Skifte!D16 -> 64 | Q909: =Sagstid.Skifte!E16 -> 63 | R909: =Målopf.VVV!D18 -> 0.26 | S909: =Målopf.VVV!E18 -> 0.2 | T909: =Målopf.VVV!F18 -> 0.5 | U909: =Målopf.VVV!G18 -> 0.17 | V909: ='HR-nøgletal_lønsum'!D16 -> 8.7 | W909: ='HR-nøgletal_lønsum'!E16 -> 11.4 | X909: ='HR-nøgletal_lønsum'!F16 -> 14.7 | Y909: ='HR-nøgletal_lønsum'!G16 -> 9 | Z909: =Årsværk_Pers.kat!I17 -> 43.6222 | AA909: =Årsværk_Pers.kat!O17 -> 42.56723 | AB909: =Årsværk_Pers.kat!D17 -> 11.94088 | AC909: =Årsværk_Pers.kat!J17 -> 11.68295 | AD909: =Årsværk_Pers.kat!E17 -> 21.35246 | AE909: =Årsværk_Pers.kat!K17 -> 21.48335 | AF909: ='HR-nøgletal_lønsum'!H16 -> 24.13361403 | AG909: ='HR-nøgletal_lønsum'!I16 -> 24.24661403
A910: Retten i Kolding | B910: ='Produkt.SAML.'!D17 -> 97.35457885 | C910: ='Produkt.SAML.'!E17 -> 106.4462631 | D910: =Produkt.JUR!D17 -> 92.75408802 | E910: =Produkt.JUR!E17 -> 96.44699446 | F910: =Produkt.KON!D17 -> 100.1032868 | G910: =Produkt.KON!E17 -> 111.6087861 | H910: ='Generel ledelse_Adm.'!I77 -> 0.1159291882 | I910: ='Generel ledelse_Adm.'!J77 -> 0.1197650914 | J910: =Sagstid.Straf!F17 -> 270 | K910: =Sagstid.Straf!G17 -> 245 | L910: =Sagstid.Civil!D17 -> 706 | M910: =Sagstid.Civil!E17 -> 694 | N910: =Sagstid.Foged!D17 -> 78 | O910: =Sagstid.Foged!E17 -> 69 | P910: =Sagstid.Skifte!D17 -> 29 | Q910: =Sagstid.Skifte!E17 -> 32 | R910: =Målopf.VVV!D19 -> 0.49 | S910: =Målopf.VVV!E19 -> 0.5 | T910: =Målopf.VVV!F19 -> 0.56 | U910: =Målopf.VVV!G19 -> 0.45 | V910: ='HR-nøgletal_lønsum'!D17 -> - | W910: ='HR-nøgletal_lønsum'!E17 -> 9.8 | X910: ='HR-nøgletal_lønsum'!F17 -> 14.9 | Y910: ='HR-nøgletal_lønsum'!G17 -> 9.4 | Z910: =Årsværk_Pers.kat!I18 -> 71.16994 | AA910: =Årsværk_Pers.kat!O18 -> 69.48578 | AB910: =Årsværk_Pers.kat!D18 -> 22.20287 | AC910: =Årsværk_Pers.kat!J18 -> 23.30973 | AD910: =Årsværk_Pers.kat!E18 -> 39.0117 | AE910: =Årsværk_Pers.kat!K18 -> 38.01906 | AF910: ='HR-nøgletal_lønsum'!H17 -> 43.067836 | AG910: ='HR-nøgletal_lønsum'!I17 -> 42.43657876
A911: Retten i Esbjerg | B911: ='Produkt.SAML.'!D18 -> 87.61060216 | C911: ='Produkt.SAML.'!E18 -> 88.82128629 | D911: =Produkt.JUR!D18 -> 88.42223882 | E911: =Produkt.JUR!E18 -> 88.57878771 | F911: =Produkt.KON!D18 -> 94.54518214 | G911: =Produkt.KON!E18 -> 97.06509021 | H911: ='Generel ledelse_Adm.'!I84 -> 0.1560536592 | I911: ='Generel ledelse_Adm.'!J84 -> 0.1711464607 | J911: =Sagstid.Straf!F18 -> 301 | K911: =Sagstid.Straf!G18 -> 367 | L911: =Sagstid.Civil!D18 -> 814 | M911: =Sagstid.Civil!E18 -> 832 | N911: =Sagstid.Foged!D18 -> 54 | O911: =Sagstid.Foged!E18 -> 62 | P911: =Sagstid.Skifte!D18 -> 29 | Q911: =Sagstid.Skifte!E18 -> 28 | R911: =Målopf.VVV!D20 -> 0.31 | S911: =Målopf.VVV!E20 -> 0.36 | T911: =Målopf.VVV!F20 -> 0.27 | U911: =Målopf.VVV!G20 -> 0.4 | V911: ='HR-nøgletal_lønsum'!D18 -> 11.5 | W911: ='HR-nøgletal_lønsum'!E18 -> 12.9 | X911: ='HR-nøgletal_lønsum'!F18 -> 15.3 | Y911: ='HR-nøgletal_lønsum'!G18 -> 11.7 | Z911: =Årsværk_Pers.kat!I19 -> 49.77454 | AA911: =Årsværk_Pers.kat!O19 -> 49.54617 | AB911: =Årsværk_Pers.kat!D19 -> 14.69996 | AC911: =Årsværk_Pers.kat!J19 -> 15.21424 | AD911: =Årsværk_Pers.kat!E19 -> 26.54279 | AE911: =Årsværk_Pers.kat!K19 -> 26.35467 | AF911: ='HR-nøgletal_lønsum'!H18 -> 28.26838972 | AG911: ='HR-nøgletal_lønsum'!I18 -> 28.10174416
A912: Retten i Sønderborg | B912: ='Produkt.SAML.'!D19 -> 101.8334745 | C912: ='Produkt.SAML.'!E19 -> 97.73890597 | D912: =Produkt.JUR!D19 -> 106.2247952 | E912: =Produkt.JUR!E19 -> 96.79811803 | F912: =Produkt.KON!D19 -> 93.86566897 | G912: =Produkt.KON!E19 -> 96.69333076 | H912: ='Generel ledelse_Adm.'!I91 -> 0.1651447993 | I912: ='Generel ledelse_Adm.'!J91 -> 0.1596957879 | J912: =Sagstid.Straf!F19 -> 239 | K912: =Sagstid.Straf!G19 -> 260 | L912: =Sagstid.Civil!D19 -> 551 | M912: =Sagstid.Civil!E19 -> 594 | N912: =Sagstid.Foged!D19 -> 108 | O912: =Sagstid.Foged!E19 -> 144 | P912: =Sagstid.Skifte!D19 -> 51 | Q912: =Sagstid.Skifte!E19 -> 69 | R912: =Målopf.VVV!D21 -> 0.47 | S912: =Målopf.VVV!E21 -> 0.29 | T912: =Målopf.VVV!F21 -> 0.56 | U912: =Målopf.VVV!G21 -> 0.3 | V912: ='HR-nøgletal_lønsum'!D19 -> 11 | W912: ='HR-nøgletal_lønsum'!E19 -> 9 | X912: ='HR-nøgletal_lønsum'!F19 -> 14.2 | Y912: ='HR-nøgletal_lønsum'!G19 -> 14.4 | Z912: =Årsværk_Pers.kat!I20 -> 53.01105 | AA912: =Årsværk_Pers.kat!O20 -> 56.15036 | AB912: =Årsværk_Pers.kat!D20 -> 15.02947 | AC912: =Årsværk_Pers.kat!J20 -> 17.68612 | AD912: =Årsværk_Pers.kat!E20 -> 32.94109 | AE912: =Årsværk_Pers.kat!K20 -> 32.95665 | AF912: ='HR-nøgletal_lønsum'!H19 -> 34.48254435 | AG912: ='HR-nøgletal_lønsum'!I19 -> 36.0328521
A913: Retten i Odense | B913: ='Produkt.SAML.'!D20 -> 102.53627 | C913: ='Produkt.SAML.'!E20 -> 99.36795789 | D913: =Produkt.JUR!D20 -> 110.7567507 | E913: =Produkt.JUR!E20 -> 101.4332418 | F913: =Produkt.KON!D20 -> 94.83698175 | G913: =Produkt.KON!E20 -> 96.61834828 | H913: ='Generel ledelse_Adm.'!I98 -> 0.1198751887 | I913: ='Generel ledelse_Adm.'!J98 -> 0.09999673912 | J913: =Sagstid.Straf!F20 -> 195 | K913: =Sagstid.Straf!G20 -> 174 | L913: =Sagstid.Civil!D20 -> 572 | M913: =Sagstid.Civil!E20 -> 656 | N913: =Sagstid.Foged!D20 -> 132 | O913: =Sagstid.Foged!E20 -> 106 | P913: =Sagstid.Skifte!D20 -> 54 | Q913: =Sagstid.Skifte!E20 -> 57 | R913: =Målopf.VVV!D22 -> 0.21 | S913: =Målopf.VVV!E22 -> 0.26 | T913: =Målopf.VVV!F22 -> 0.14 | U913: =Målopf.VVV!G22 -> 0.27 | V913: ='HR-nøgletal_lønsum'!D20 -> 9.8 | W913: ='HR-nøgletal_lønsum'!E20 -> 11 | X913: ='HR-nøgletal_lønsum'!F20 -> 10 | Y913: ='HR-nøgletal_lønsum'!G20 -> 12.5 | Z913: =Årsværk_Pers.kat!I21 -> 75.0429 | AA913: =Årsværk_Pers.kat!O21 -> 76.82366 | AB913: =Årsværk_Pers.kat!D21 -> 20.66863 | AC913: =Årsværk_Pers.kat!J21 -> 23.22764 | AD913: =Årsværk_Pers.kat!E21 -> 45.38108 | AE913: =Årsværk_Pers.kat!K21 -> 45.34414 | AF913: ='HR-nøgletal_lønsum'!H20 -> 44.6214518 | AG913: ='HR-nøgletal_lønsum'!I20 -> 45.30974469
A914: Retten i Svendborg | B914: ='Produkt.SAML.'!D21 -> 86.34565215 | C914: ='Produkt.SAML.'!E21 -> 88.14970124 | D914: =Produkt.JUR!D21 -> 88.48082216 | E914: =Produkt.JUR!E21 -> 88.56899589 | F914: =Produkt.KON!D21 -> 95.55080734 | G914: =Produkt.KON!E21 -> 99.42128383 | H914: ='Generel ledelse_Adm.'!I105 -> 0.208736288 | I914: ='Generel ledelse_Adm.'!J105 -> 0.2015229287 | J914: =Sagstid.Straf!F21 -> 154 | K914: =Sagstid.Straf!G21 -> 190 | L914: =Sagstid.Civil!D21 -> 517 | M914: =Sagstid.Civil!E21 -> 606 | N914: =Sagstid.Foged!D21 -> 95 | O914: =Sagstid.Foged!E21 -> 102 | P914: =Sagstid.Skifte!D21 -> 46 | Q914: =Sagstid.Skifte!E21 -> 43 | R914: =Målopf.VVV!D23 -> 0.58 | S914: =Målopf.VVV!E23 -> 0.37 | T914: =Målopf.VVV!F23 -> 0.63 | U914: =Målopf.VVV!G23 -> 0.5 | V914: ='HR-nøgletal_lønsum'!D21 -> 9.5 | W914: ='HR-nøgletal_lønsum'!E21 -> 11.7 | X914: ='HR-nøgletal_lønsum'!F21 -> 13.6 | Y914: ='HR-nøgletal_lønsum'!G21 -> 6.7 | Z914: =Årsværk_Pers.kat!I22 -> 38.62896 | AA914: =Årsværk_Pers.kat!O22 -> 35.99142 | AB914: =Årsværk_Pers.kat!D22 -> 10.47298 | AC914: =Årsværk_Pers.kat!J22 -> 10.08241 | AD914: =Årsværk_Pers.kat!E22 -> 20.73733 | AE914: =Årsværk_Pers.kat!K22 -> 19.53017 | AF914: ='HR-nøgletal_lønsum'!H21 -> 22.01272758 | AG914: ='HR-nøgletal_lønsum'!I21 -> 21.2277535
A915: Retten i Nykøbing F. | B915: ='Produkt.SAML.'!D22 -> 89.47225158 | C915: ='Produkt.SAML.'!E22 -> 100.1645724 | D915: =Produkt.JUR!D22 -> 96.26704402 | E915: =Produkt.JUR!E22 -> 101.5967439 | F915: =Produkt.KON!D22 -> 82.56696321 | G915: =Produkt.KON!E22 -> 98.50902042 | H915: ='Generel ledelse_Adm.'!I112 -> 0.1784231001 | I915: ='Generel ledelse_Adm.'!J112 -> 0.1715250806 | J915: =Sagstid.Straf!F22 -> 103 | K915: =Sagstid.Straf!G22 -> 106 | L915: =Sagstid.Civil!D22 -> 425 | M915: =Sagstid.Civil!E22 -> 501 | N915: =Sagstid.Foged!D22 -> 67 | O915: =Sagstid.Foged!E22 -> 53 | P915: =Sagstid.Skifte!D22 -> 33 | Q915: =Sagstid.Skifte!E22 -> 33 | R915: =Målopf.VVV!D24 -> 0.46 | S915: =Målopf.VVV!E24 -> 0.44 | T915: =Målopf.VVV!F24 -> 0.6 | U915: =Målopf.VVV!G24 -> 0.78 | V915: ='HR-nøgletal_lønsum'!D22 -> 8.5 | W915: ='HR-nøgletal_lønsum'!E22 -> 9 | X915: ='HR-nøgletal_lønsum'!F22 -> 11.7 | Y915: ='HR-nøgletal_lønsum'!G22 -> 5.8 | Z915: =Årsværk_Pers.kat!I23 -> 49.30493 | AA915: =Årsværk_Pers.kat!O23 -> 47.02267 | AB915: =Årsværk_Pers.kat!D23 -> 13.07402 | AC915: =Årsværk_Pers.kat!J23 -> 13.79457 | AD915: =Årsværk_Pers.kat!E23 -> 31.18948 | AE915: =Årsværk_Pers.kat!K23 -> 27.95344 | AF915: ='HR-nøgletal_lønsum'!H22 -> 28.39453054 | AG915: ='HR-nøgletal_lønsum'!I22 -> 27.51485302
A916: Retten i Næstved | B916: ='Produkt.SAML.'!D23 -> 86.56089525 | C916: ='Produkt.SAML.'!E23 -> 98.00625099 | D916: =Produkt.JUR!D23 -> 94.89830449 | E916: =Produkt.JUR!E23 -> 106.2176039 | F916: =Produkt.KON!D23 -> 80.63271479 | G916: =Produkt.KON!E23 -> 90.69343896 | H916: ='Generel ledelse_Adm.'!I119 -> 0.2006178252 | I916: ='Generel ledelse_Adm.'!J119 -> 0.1959952203 | J916: =Sagstid.Straf!F23 -> 139 | K916: =Sagstid.Straf!G23 -> 178 | L916: =Sagstid.Civil!D23 -> 571 | M916: =Sagstid.Civil!E23 -> 651 | N916: =Sagstid.Foged!D23 -> 82 | O916: =Sagstid.Foged!E23 -> 68 | P916: =Sagstid.Skifte!D23 -> 37 | Q916: =Sagstid.Skifte!E23 -> 47 | R916: =Målopf.VVV!D25 -> 0.41 | S916: =Målopf.VVV!E25 -> 0.56 | T916: =Målopf.VVV!F25 -> 0.6 | U916: =Målopf.VVV!G25 -> 0.43 | V916: ='HR-nøgletal_lønsum'!D23 -> 11.3 | W916: ='HR-nøgletal_lønsum'!E23 -> 11.4 | X916: ='HR-nøgletal_lønsum'!F23 -> 12 | Y916: ='HR-nøgletal_lønsum'!G23 -> 6.6 | Z916: =Årsværk_Pers.kat!I24 -> 67.69004 | AA916: =Årsværk_Pers.kat!O24 -> 63.34694 | AB916: =Årsværk_Pers.kat!D24 -> 17.01714 | AC916: =Årsværk_Pers.kat!J24 -> 16.17279 | AD916: =Årsværk_Pers.kat!E24 -> 40.35741 | AE916: =Årsværk_Pers.kat!K24 -> 36.56963 | AF916: ='HR-nøgletal_lønsum'!H23 -> 36.6441894 | AG916: ='HR-nøgletal_lønsum'!I23 -> 34.93696215
A917: Retten i Holbæk | B917: ='Produkt.SAML.'!D24 -> 94.29437171 | C917: ='Produkt.SAML.'!E24 -> 103.1396924 | D917: =Produkt.JUR!D24 -> 99.6854372 | E917: =Produkt.JUR!E24 -> 106.0466548 | F917: =Produkt.KON!D24 -> 91.03242036 | G917: =Produkt.KON!E24 -> 101.09145 | H917: ='Generel ledelse_Adm.'!I126 -> 0.1541756371 | I917: ='Generel ledelse_Adm.'!J126 -> 0.1570829352 | J917: =Sagstid.Straf!F24 -> 202 | K917: =Sagstid.Straf!G24 -> 286 | L917: =Sagstid.Civil!D24 -> 612 | M917: =Sagstid.Civil!E24 -> 714 | N917: =Sagstid.Foged!D24 -> 75 | O917: =Sagstid.Foged!E24 -> 71 | P917: =Sagstid.Skifte!D24 -> 32 | Q917: =Sagstid.Skifte!E24 -> 31 | R917: =Målopf.VVV!D26 -> 0.29 | S917: =Målopf.VVV!E26 -> 0.15 | T917: =Målopf.VVV!F26 -> 0.5 | U917: =Målopf.VVV!G26 -> 0.33 | V917: ='HR-nøgletal_lønsum'!D24 -> 12.5 | W917: ='HR-nøgletal_lønsum'!E24 -> 17.2 | X917: ='HR-nøgletal_lønsum'!F24 -> 7 | Y917: ='HR-nøgletal_lønsum'!G24 -> 6.6 | Z917: =Årsværk_Pers.kat!I25 -> 41.95968 | AA917: =Årsværk_Pers.kat!O25 -> 41.53889 | AB917: =Årsværk_Pers.kat!D25 -> 11.64258 | AC917: =Årsværk_Pers.kat!J25 -> 12.42627 | AD917: =Årsværk_Pers.kat!E25 -> 24.00753 | AE917: =Årsværk_Pers.kat!K25 -> 22.91047 | AF917: ='HR-nøgletal_lønsum'!H24 -> 24.85072896 | AG917: ='HR-nøgletal_lønsum'!I24 -> 25.25480805
A918: Retten i Roskilde | B918: ='Produkt.SAML.'!D25 -> 102.8396394 | C918: ='Produkt.SAML.'!E25 -> 108.8354598 | D918: =Produkt.JUR!D25 -> 111.3369412 | E918: =Produkt.JUR!E25 -> 113.2847348 | F918: =Produkt.KON!D25 -> 87.27214093 | G918: =Produkt.KON!E25 -> 96.85140501 | H918: ='Generel ledelse_Adm.'!I133 -> 0.1752355326 | I918: ='Generel ledelse_Adm.'!J133 -> 0.1569738432 | J918: =Sagstid.Straf!F25 -> 181 | K918: =Sagstid.Straf!G25 -> 229 | L918: =Sagstid.Civil!D25 -> 646 | M918: =Sagstid.Civil!E25 -> 628 | N918: =Sagstid.Foged!D25 -> 67 | O918: =Sagstid.Foged!E25 -> 60 | P918: =Sagstid.Skifte!D25 -> 41 | Q918: =Sagstid.Skifte!E25 -> 38 | R918: =Målopf.VVV!D27 -> 0.12 | S918: =Målopf.VVV!E27 -> 0.26 | T918: =Målopf.VVV!F27 -> 0.3 | U918: =Målopf.VVV!G27 -> 0.31 | V918: ='HR-nøgletal_lønsum'!D25 -> 8.4 | W918: ='HR-nøgletal_lønsum'!E25 -> - | X918: ='HR-nøgletal_lønsum'!F25 -> 4.5 | Y918: ='HR-nøgletal_lønsum'!G25 -> 9.4 | Z918: =Årsværk_Pers.kat!I26 -> 66.39206 | AA918: =Årsværk_Pers.kat!O26 -> 61.6528 | AB918: =Årsværk_Pers.kat!D26 -> 19.3736 | AC918: =Årsværk_Pers.kat!J26 -> 18.74051 | AD918: =Årsværk_Pers.kat!E26 -> 42.45065 | AE918: =Årsværk_Pers.kat!K26 -> 39.31742 | AF918: ='HR-nøgletal_lønsum'!H25 -> 42.1185121 | AG918: ='HR-nøgletal_lønsum'!I25 -> 40.66873175
A919: Retten i Hillerød | B919: ='Produkt.SAML.'!D26 -> 96.84169872 | C919: ='Produkt.SAML.'!E26 -> 96.40414715 | D919: =Produkt.JUR!D26 -> 97.77024487 | E919: =Produkt.JUR!E26 -> 91.49979509 | F919: =Produkt.KON!D26 -> 104.2289337 | G919: =Produkt.KON!E26 -> 115.5724431 | H919: ='Generel ledelse_Adm.'!I140 -> 0.1562650778 | I919: ='Generel ledelse_Adm.'!J140 -> 0.186622656 | J919: =Sagstid.Straf!F26 -> 181 | K919: =Sagstid.Straf!G26 -> 239 | L919: =Sagstid.Civil!D26 -> 535 | M919: =Sagstid.Civil!E26 -> 615 | N919: =Sagstid.Foged!D26 -> 175 | O919: =Sagstid.Foged!E26 -> 101 | P919: =Sagstid.Skifte!D26 -> 37 | Q919: =Sagstid.Skifte!E26 -> 46 | R919: =Målopf.VVV!D28 -> 0.27 | S919: =Målopf.VVV!E28 -> 0.38 | T919: =Målopf.VVV!F28 -> 0.27 | U919: =Målopf.VVV!G28 -> 0.3 | V919: ='HR-nøgletal_lønsum'!D26 -> 19.2 | W919: ='HR-nøgletal_lønsum'!E26 -> - | X919: ='HR-nøgletal_lønsum'!F26 -> 15.1 | Y919: ='HR-nøgletal_lønsum'!G26 -> 10.4 | Z919: =Årsværk_Pers.kat!I27 -> 42.32869 | AA919: =Årsværk_Pers.kat!O27 -> 43.85963 | AB919: =Årsværk_Pers.kat!D27 -> 11.7589 | AC919: =Årsværk_Pers.kat!J27 -> 13.6351 | AD919: =Årsværk_Pers.kat!E27 -> 21.23272 | AE919: =Årsværk_Pers.kat!K27 -> 20.30718 | AF919: ='HR-nøgletal_lønsum'!H26 -> 25.07080167 | AG919: ='HR-nøgletal_lønsum'!I26 -> 25.74850554
A920: Retten i Helsingør | B920: ='Produkt.SAML.'!D27 -> 89.04705724 | C920: ='Produkt.SAML.'!E27 -> 95.33881414 | D920: =Produkt.JUR!D27 -> 84.92919768 | E920: =Produkt.JUR!E27 -> 90.45552637 | F920: =Produkt.KON!D27 -> 96.15993538 | G920: =Produkt.KON!E27 -> 104.1544758 | H920: ='Generel ledelse_Adm.'!I147 -> 0.1831153946 | I920: ='Generel ledelse_Adm.'!J147 -> 0.1587813607 | J920: =Sagstid.Straf!F27 -> 190 | K920: =Sagstid.Straf!G27 -> 227 | L920: =Sagstid.Civil!D27 -> 651 | M920: =Sagstid.Civil!E27 -> 659 | N920: =Sagstid.Foged!D27 -> 115 | O920: =Sagstid.Foged!E27 -> 107 | P920: =Sagstid.Skifte!D27 -> 40 | Q920: =Sagstid.Skifte!E27 -> 38 | R920: =Målopf.VVV!D29 -> 0.36 | S920: =Målopf.VVV!E29 -> 0.29 | T920: =Målopf.VVV!F29 -> 0.33 | U920: =Målopf.VVV!G29 -> 0.13 | V920: ='HR-nøgletal_lønsum'!D27 -> 20.6 | W920: ='HR-nøgletal_lønsum'!E27 -> 11.1 | X920: ='HR-nøgletal_lønsum'!F27 -> 18.1 | Y920: ='HR-nøgletal_lønsum'!G27 -> 12.2 | Z920: =Årsværk_Pers.kat!I28 -> 41.99619 | AA920: =Årsværk_Pers.kat!O28 -> 42.69757 | AB920: =Årsværk_Pers.kat!D28 -> 13.13024 | AC920: =Årsværk_Pers.kat!J28 -> 13.45201 | AD920: =Årsværk_Pers.kat!E28 -> 21.73315 | AE920: =Årsværk_Pers.kat!K28 -> 23.12831 | AF920: ='HR-nøgletal_lønsum'!H27 -> 24.72481749 | AG920: ='HR-nøgletal_lønsum'!I27 -> 25.05734586
A921: Retten i Lyngby | B921: ='Produkt.SAML.'!D28 -> 86.65208101 | C921: ='Produkt.SAML.'!E28 -> 104.3863488 | D921: =Produkt.JUR!D28 -> 82.17333687 | E921: =Produkt.JUR!E28 -> 103.9474881 | F921: =Produkt.KON!D28 -> 93.58597796 | G921: =Produkt.KON!E28 -> 105.8183208 | H921: ='Generel ledelse_Adm.'!I154 -> 0.1920284786 | I921: ='Generel ledelse_Adm.'!J154 -> 0.1757279074 | J921: =Sagstid.Straf!F28 -> 164 | K921: =Sagstid.Straf!G28 -> 204 | L921: =Sagstid.Civil!D28 -> 526 | M921: =Sagstid.Civil!E28 -> 556 | N921: =Sagstid.Foged!D28 -> 67 | O921: =Sagstid.Foged!E28 -> 58 | P921: =Sagstid.Skifte!D28 -> 39 | Q921: =Sagstid.Skifte!E28 -> 38 | R921: =Målopf.VVV!D30 -> 0.39 | S921: =Målopf.VVV!E30 -> 0.2 | T921: =Målopf.VVV!F30 -> 0 | U921: =Målopf.VVV!G30 -> 0.14 | V921: ='HR-nøgletal_lønsum'!D28 -> 15.1 | W921: ='HR-nøgletal_lønsum'!E28 -> - | X921: ='HR-nøgletal_lønsum'!F28 -> 10.8 | Y921: ='HR-nøgletal_lønsum'!G28 -> 12.4 | Z921: =Årsværk_Pers.kat!I29 -> 47.86324 | AA921: =Årsværk_Pers.kat!O29 -> 46.34615 | AB921: =Årsværk_Pers.kat!D29 -> 14.29323 | AC921: =Årsværk_Pers.kat!J29 -> 14.07554 | AD921: =Årsværk_Pers.kat!E29 -> 25.93865 | AE921: =Årsværk_Pers.kat!K29 -> 25.67835 | AF921: ='HR-nøgletal_lønsum'!H28 -> 29.14060654 | AG921: ='HR-nøgletal_lønsum'!I28 -> 27.09016351
A922: Retten i Glostrup | B922: ='Produkt.SAML.'!D29 -> 93.21809884 | C922: ='Produkt.SAML.'!E29 -> 91.55636753 | D922: =Produkt.JUR!D29 -> 89.77049127 | E922: =Produkt.JUR!E29 -> 86.61281166 | F922: =Produkt.KON!D29 -> 98.40617146 | G922: =Produkt.KON!E29 -> 97.48059395 | H922: ='Generel ledelse_Adm.'!I161 -> 0.1477988481 | I922: ='Generel ledelse_Adm.'!J161 -> 0.1440297948 | J922: =Sagstid.Straf!F29 -> 285 | K922: =Sagstid.Straf!G29 -> 370 | L922: =Sagstid.Civil!D29 -> 657 | M922: =Sagstid.Civil!E29 -> 739 | N922: =Sagstid.Foged!D29 -> 129 | O922: =Sagstid.Foged!E29 -> 92 | P922: =Sagstid.Skifte!D29 -> 52 | Q922: =Sagstid.Skifte!E29 -> 54 | R922: =Målopf.VVV!D31 -> 0.19 | S922: =Målopf.VVV!E31 -> 0.05 | T922: =Målopf.VVV!F31 -> 0 | U922: =Målopf.VVV!G31 -> 0.12 | V922: ='HR-nøgletal_lønsum'!D29 -> 11.6 | W922: ='HR-nøgletal_lønsum'!E29 -> 13.5 | X922: ='HR-nøgletal_lønsum'!F29 -> 10.4 | Y922: ='HR-nøgletal_lønsum'!G29 -> 7.7 | Z922: =Årsværk_Pers.kat!I30 -> 103.80151 | AA922: =Årsværk_Pers.kat!O30 -> 103.46238 | AB922: =Årsværk_Pers.kat!D30 -> 32.92966 | AC922: =Årsværk_Pers.kat!J30 -> 34.67373 | AD922: =Årsværk_Pers.kat!E30 -> 57.23244 | AE922: =Årsværk_Pers.kat!K30 -> 56.56037 | AF922: ='HR-nøgletal_lønsum'!H29 -> 64.25054656 | AG922: ='HR-nøgletal_lønsum'!I29 -> 65.08067325
A923: Retten på Frederiksberg | B923: ='Produkt.SAML.'!D30 -> 84.65783016 | C923: ='Produkt.SAML.'!E30 -> 92.05612018 | D923: =Produkt.JUR!D30 -> 85.16575674 | E923: =Produkt.JUR!E30 -> 95.76670241 | F923: =Produkt.KON!D30 -> 83.80469812 | G923: =Produkt.KON!E30 -> 90.45935453 | H923: ='Generel ledelse_Adm.'!I168 -> 0.1156799736 | I923: ='Generel ledelse_Adm.'!J168 -> 0.1508619912 | J923: =Sagstid.Straf!F30 -> 189 | K923: =Sagstid.Straf!G30 -> 274 | L923: =Sagstid.Civil!D30 -> 611 | M923: =Sagstid.Civil!E30 -> 671 | N923: =Sagstid.Foged!D30 -> 100 | O923: =Sagstid.Foged!E30 -> 64 | P923: =Sagstid.Skifte!D30 -> 60 | Q923: =Sagstid.Skifte!E30 -> 77 | R923: =Målopf.VVV!D32 -> 0.1 | S923: =Målopf.VVV!E32 -> 0.15 | T923: =Målopf.VVV!F32 -> 0 | U923: =Målopf.VVV!G32 -> 0.05 | V923: ='HR-nøgletal_lønsum'!D30 -> 15.8 | W923: ='HR-nøgletal_lønsum'!E30 -> 17.9 | X923: ='HR-nøgletal_lønsum'!F30 -> 17.3 | Y923: ='HR-nøgletal_lønsum'!G30 -> 17.3 | Z923: =Årsværk_Pers.kat!I31 -> 77.48643 | AA923: =Årsværk_Pers.kat!O31 -> 82.82351 | AB923: =Årsværk_Pers.kat!D31 -> 23.95436 | AC923: =Årsværk_Pers.kat!J31 -> 24.27912 | AD923: =Årsværk_Pers.kat!E31 -> 42.28933 | AE923: =Årsværk_Pers.kat!K31 -> 44.21937 | AF923: ='HR-nøgletal_lønsum'!H30 -> 48.13432984 | AG923: ='HR-nøgletal_lønsum'!I30 -> 50.85910351
A924: Københavns Byret | B924: ='Produkt.SAML.'!D31 -> 78.76953181 | C924: ='Produkt.SAML.'!E31 -> 86.9740664 | D924: =Produkt.JUR!D31 -> 83.56560473 | E924: =Produkt.JUR!E31 -> 90.30701954 | F924: =Produkt.KON!D31 -> 69.05441269 | G924: =Produkt.KON!E31 -> 79.43854748 | H924: ='Generel ledelse_Adm.'!I175 -> 0.1439094017 | I924: ='Generel ledelse_Adm.'!J175 -> 0.1395859045 | J924: =Sagstid.Straf!F31 -> 241 | K924: =Sagstid.Straf!G31 -> 262 | L924: =Sagstid.Civil!D31 -> 619 | M924: =Sagstid.Civil!E31 -> 647 | N924: =Sagstid.Foged!D31 -> 88 | O924: =Sagstid.Foged!E31 -> 73 | P924: =Sagstid.Skifte!D31 -> 41 | Q924: =Sagstid.Skifte!E31 -> 42 | R924: =Målopf.VVV!D33 -> 0.43 | S924: =Målopf.VVV!E33 -> 0.45 | T924: =Målopf.VVV!F33 -> 0.19 | U924: =Målopf.VVV!G33 -> 0 | V924: ='HR-nøgletal_lønsum'!D31 -> 12.3 | W924: ='HR-nøgletal_lønsum'!E31 -> - | X924: ='HR-nøgletal_lønsum'!F31 -> 11 | Y924: ='HR-nøgletal_lønsum'!G31 -> 13.9 | Z924: =Årsværk_Pers.kat!I32 -> 191.46937 | AA924: =Årsværk_Pers.kat!O32 -> 188.22153 | AB924: =Årsværk_Pers.kat!D32 -> 60.18599 | AC924: =Årsværk_Pers.kat!J32 -> 61.67602 | AD924: =Årsværk_Pers.kat!E32 -> 117.0377 | AE924: =Årsværk_Pers.kat!K32 -> 111.06696 | AF924: ='HR-nøgletal_lønsum'!H31 -> 131.3629058 | AG924: ='HR-nøgletal_lønsum'!I31 -> 128.0368028

Sheet Produkt.SAML.
B2: PRODUKTIVITETSINDEKS SAMLET FOR RETTEN
D4: Samlet | F4: Retssager | H4: Straffesager | J4: Civile sager | L4: Fogedsager | N4: Skiftesager
D5: =Overblik!$D$6 -> 2021 | E5: =Overblik!$E$6 -> 2022 | F5: =Overblik!$D$6 -> 2021 | G5: =Overblik!$E$6 -> 2022 | H5: =Overblik!$D$6 -> 2021 | I5: =Overblik!$E$6 -> 2022 | J5: =Overblik!$D$6 -> 2021 | K5: =Overblik!$E$6 -> 2022 | L5: =Overblik!$D$6 -> 2021 | M5: =Overblik!$E$6 -> 2022 | N5: =Overblik!$D$6 -> 2021 | O5: =Overblik!$E$6 -> 2022
B6: SAMLET BYRETTERNE | D6: 89.35247903 | E6: 93.35002037 | F6: 90.17651081 | G6: 94.51940261 | H6: 88.05733766 | I6: 88.05114284 | J6: 93.12487181 | K6: 104.9344709 | L6: 81.01230163 | M6: 85.32895194 | N6: 93.94671004 | O6: 95.3904645
B7: 5. BEDSTE RET | D7: =LARGE(D9:D31,5) -> 100.7507619 | E7: 103.1396924 | F7: 102.9313247 | G7: 105.4141562 | H7: 101.482147 | I7: 95.91090653 | J7: 113.4587846 | K7: 119.0626778 | L7: 95.23401871 | M7: 100.461285 | N7: 108.035615 | O7: 110.3527341
B8: EID | C8: Ret
B9: 901 | C9: Retten i Hjørring | D9: 87.84852496 | E9: 92.53914513 | F9: 84.11212937 | G9: 91.44986357 | H9: 81.42282847 | I9: 85.75902635 | J9: 88.55556361 | K9: 100.4809887 | L9: 81.83194253 | M9: 91.89607226 | N9: 108.035615 | O9: 94.89244995
B10: 902 | C10: Retten i Aalborg | D10: 95.68886905 | E10: 97.49098313 | F10: 99.77107031 | G10: 101.2809488 | H10: 102.3506784 | I10: 91.75939173 | J10: 99.36554652 | K10: 116.3894933 | L10: 81.35931764 | M10: 78.54039237 | N10: 88.73218391 | O10: 96.75462486
B11: 903 | C11: Retten i Randers | D11: 99.15125084 | E11: 93.33676804 | F11: 95.97567679 | G11: 95.2713939 | H11: 84.76123529 | I11: 82.34164048 | J11: 113.4587846 | K11: 117.5955776 | L11: 95.38181064 | M11: 78.09453223 | N11: 110.6015241 | O11: 97.37069543
B12: 904 | C12: Retten i Aarhus | D12: 90.48986993 | E12: 96.44860828 | F12: 87.73181741 | G12: 94.19512172 | H12: 81.96958372 | I12: 82.15150065 | J12: 97.0305955 | K12: 117.7390457 | L12: 97.15618529 | M12: 118.0980722 | N12: 98.47105061 | O12: 90.96201494
B13: 905 | C13: Retten i Viborg | D13: 97.21890365 | E13: 90.33676431 | F13: 100.7306918 | G13: 92.70435776 | H13: 98.30510705 | I13: 87.08042636 | J13: 104.183745 | K13: 101.5899129 | L13: 71.32678905 | M13: 62.56618002 | N13: 110.6972752 | O13: 111.8320799
B14: 906 | C14: Retten i Holstebro | D14: 106.896309 | E14: 110.3319721 | F14: 118.678803 | G14: 121.6517799 | H14: 120.9151007 | I14: 122.2283321 | J14: 112.3283091 | K14: 118.456832 | L14: 76.91037033 | M14: 88.97961882 | N14: 91.12828185 | O14: 90.64881636
B15: 907 | C15: Retten i Herning | D15: 100.7507619 | E15: 96.62906985 | F15: 106.7647718 | G15: 100.5887743 | H15: 101.6358087 | I15: 95.05882013 | J15: 113.5600613 | K15: 108.9654905 | L15: 88.02867632 | M15: 79.52102911 | N15: 87.50722728 | O15: 94.6979614
B16: 908 | C16: Retten i Horsens | D16: 87.00257958 | E16: 95.48061841 | F16: 85.07786341 | G16: 94.4294609 | H16: 72.03663234 | I16: 87.24678504 | J16: 109.5073938 | K16: 106.0895045 | L16: 91.20863948 | M16: 85.22723991 | N16: 91.91339336 | O16: 110.3527341
B17: 909 | C17: Retten i Kolding | D17: 97.35457885 | E17: 106.4462631 | F17: 93.12255114 | G17: 105.4141562 | H17: 99.03839819 | I17: 91.44522217 | J17: 86.56913746 | K17: 129.4571276 | L17: 114.2460235 | M17: 112.2638857 | N17: 105.6730005 | O17: 107.7842203
B18: 910 | C18: Retten i Esbjerg | D18: 87.61060216 | E18: 88.82128629 | F18: 89.20406402 | G18: 91.8826565 | H18: 83.88634043 | I18: 79.79336187 | J18: 97.50758388 | K18: 115.3154326 | L18: 75.4530918 | M18: 86.2499288 | N18: 94.82457729 | O18: 80.29143193
B19: 911 | C19: Retten i Sønderborg | D19: 101.8334745 | E19: 97.73890597 | F19: 102.9313247 | G19: 94.58299217 | H19: 118.7170067 | I19: 95.88262217 | J19: 79.14066618 | K19: 93.15633117 | L19: 110.2428887 | M19: 97.95551601 | N19: 94.67363652 | O19: 123.7293391
B20: 912 | C20: Retten i Odense | D20: 102.53627 | E20: 99.36795789 | F20: 106.0643537 | G20: 101.8666454 | H20: 96.597554 | I20: 95.13769373 | J20: 122.6610973 | K20: 112.7059039 | L20: 91.06835856 | M20: 84.005231 | N20: 95.44640309 | O20: 99.14289068
B21: 913 | C21: Retten i Svendborg | D21: 86.34565215 | E21: 88.14970124 | F21: 80.07650046 | G21: 87.03677427 | H21: 73.51613836 | I21: 89.99115846 | J21: 90.66029301 | K21: 84.97069412 | L21: 86.56661223 | M21: 79.17615667 | N21: 106.7955987 | O21: 94.28405349
B22: 914 | C22: Retten i Nykøbing F. | D22: 89.47225158 | E22: 100.1645724 | F22: 95.2131157 | G22: 101.2212372 | H22: 98.25901305 | I22: 100.8417893 | J22: 90.39114873 | K22: 101.2269618 | L22: 74.56096982 | M22: 102.2945934 | N22: 87.14537931 | O22: 93.2128093
B23: 915 | C23: Retten i Næstved | D23: 86.56089525 | E23: 98.00625099 | F23: 88.31515508 | G23: 105.6999685 | H23: 84.07432563 | I23: 95.91090653 | J23: 94.90702762 | K23: 121.7566057 | L23: 81.0446569 | M23: 79.69530547 | N23: 83.66579456 | O23: 88.70291678
B24: 916 | C24: Retten i Holbæk | D24: 94.29437171 | E24: 103.1396924 | F24: 100.2368279 | G24: 110.9718737 | H24: 90.04553563 | I24: 105.6702484 | J24: 117.552701 | K24: 119.0626778 | L24: 74.78049425 | M24: 79.68237298 | N24: 94.51525517 | O24: 100.1691755
B25: 917 | C25: Retten i Roskilde | D25: 102.8396394 | E25: 108.8354598 | F25: 108.2640783 | G25: 114.297908 | H25: 101.482147 | I25: 95.87527518 | J25: 119.0433961 | K25: 146.0582833 | L25: 76.38129669 | M25: 81.10727985 | N25: 104.0176355 | O25: 110.8186722
B26: 918 | C26: Retten i Hillerød | D26: 96.84169872 | E26: 96.40414715 | F26: 93.13505653 | G26: 95.3996701 | H26: 99.81734394 | I26: 104.8184671 | J26: 85.9096251 | K26: 86.57355837 | L26: 95.23401871 | M26: 92.82709148 | N26: 117.6308208 | O26: 106.3978402
B27: 919 | C27: Retten i Helsingør | D27: 89.04705724 | E27: 95.33881414 | F27: 92.4638973 | G27: 95.13570169 | H27: 98.23943536 | I27: 92.45369813 | J27: 89.12498866 | K27: 100.9001711 | L27: 61.68746996 | M27: 82.17271265 | N27: 100.8688941 | O27: 103.9031497
B28: 920 | C28: Retten i Lyngby | D28: 86.65208101 | E28: 104.3863488 | F28: 85.79910912 | G28: 104.9148523 | H28: 88.19416915 | I28: 87.95512982 | J28: 88.52337382 | K28: 124.3301473 | L28: 85.42960582 | M28: 127.2997689 | N28: 73.95151759 | O28: 73.70063495
B29: 921 | C29: Retten i Glostrup | D29: 93.21809884 | E29: 91.55636753 | F29: 94.27388464 | G29: 91.41851591 | H29: 92.81814689 | I29: 91.35245581 | J29: 95.9111656 | K29: 91.45944276 | L29: 76.46314594 | M29: 79.63315838 | N29: 120.9982642 | O29: 117.1664686
B30: 922 | C30: Retten på Frederiksberg | D30: 84.65783016 | E30: 92.05612018 | F30: 85.71337847 | G30: 92.61298137 | H30: 92.82418864 | I30: 92.52828348 | J30: 73.78163888 | K30: 91.41290834 | L30: 89.16013612 | M30: 100.461285 | N30: 58.80509708 | O30: 75.34146719
B31: 923 | C31: Københavns Byret | D31: 78.76953181 | E31: 86.9740664 | F31: 83.52417974 | G31: 91.59006335 | H31: 80.57218275 | I31: 85.89425659 | J31: 87.03276367 | K31: 100.620961 | L31: 57.97308768 | M31: 68.187809 | N31: 59.11955763 | O31: 63.30401855
B34: 1) Indeks 100 svarer til gennemsnittet ved byretterne i 2019
B35: 2) "Retssager" svarer til den samlede produktivitet for straffesager og civile sager, "Fogedsager" til den samlede produktivitet for øvrige fogedsager og tvangsauktioner, "Skiftesager" til den samlede produktivitet for insolvensskifter og dødsboskifter.
B36: 3) Ved beregningen af den samlede produktivitet, samlet for retten, anvendes rettens samlede vægtede årsværksforbrug - dvs. også årsværksforbruget til generel ledelse og administration mv. Ved beregning af produktiviteten på de enkelte sagsområder er årsværkforbruget til generel ledelse og administration mv. nøgletalsfordelt, således at forskelle i andele i årsværksforbrug til generel ledelse og administration mv. ikke vanskeliggør en sammenligning af de enkelte retter.

Sheet Produkt.JUR
B2: PRODUKTIVITETSINDEKS JURISTER
D4: Samlet | F4: Retssager | H4: Straffesager | J4: Civile sager | L4: Fogedsager | N4: Skiftesager
D5: =Overblik!$D$6 -> 2021 | E5: =Overblik!$E$6 -> 2022 | F5: =Overblik!$D$6 -> 2021 | G5: =Overblik!$E$6 -> 2022 | H5: =Overblik!$D$6 -> 2021 | I5: =Overblik!$E$6 -> 2022 | J5: =Overblik!$D$6 -> 2021 | K5: =Overblik!$E$6 -> 2022 | L5: =Overblik!$D$6 -> 2021 | M5: =Overblik!$E$6 -> 2022 | N5: =Overblik!$D$6 -> 2021 | O5: =Overblik!$E$6 -> 2022
B6: SAMLET BYRETTERNE | D6: 94.40614646 | E6: 96.50235115 | F6: 95.4163527 | G6: 98.98770839 | H6: 94.80518025 | I6: 92.6333453 | J6: 95.96414175 | K6: 108.3974811 | L6: 82.82864831 | M6: 79.32095707 | N6: 90.40616685 | O6: 88.08469987
B7: 5. BEDSTE RET | D7: 92.3 | E7: =LARGE(E9:E31,5) -> 103.9474881 | F7: 106.7789465 | G7: 111.095471 | H7: 107.6270511 | I7: 104.6681819 | J7: 119.5977326 | K7: 126.3228468 | L7: 110.8456667 | M7: 104.8430241 | N7: 117.7175853 | O7: 110.2263832
B8: EID | C8: Ret
B9: 901 | C9: Retten i Hjørring | D9: 89.38261954 | E9: 93.75064523 | F9: 83.52784612 | G9: 91.35789137 | H9: 83.07466507 | I9: 86.73815677 | J9: 85.44660331 | K9: 98.77066018 | L9: 127.86456 | M9: 129.9403714 | N9: 115.476177 | O9: 81.77023829
B10: 902 | C10: Retten i Aalborg | D10: 99.39559181 | E10: 98.66292971 | F10: 99.5180341 | G10: 98.00634931 | H10: 107.6270511 | I10: 87.793029 | J10: 96.01097414 | K10: 113.5005742 | L10: 92.29959016 | M10: 76.69588131 | N10: 105.038689 | O10: 110.3906289
B11: 903 | C11: Retten i Randers | D11: 102.8262165 | E11: 100.1101562 | F11: 103.7859986 | G11: 106.6729109 | H11: 92.55964051 | I11: 96.31644827 | J11: 120.5698508 | K11: 122.4645512 | L11: 94.47066735 | M11: 68.16192833 | N11: 118.6323573 | O11: 83.51809291
B12: 904 | C12: Retten i Aarhus | D12: 97.29542964 | E12: 96.21304634 | F12: 94.11687516 | G12: 95.17010933 | H12: 93.18870119 | I12: 84.78297477 | J12: 94.1349102 | K12: 112.078209 | L12: 94.92268656 | M12: 104.8430241 | N12: 117.7175853 | O12: 79.28078285
B13: 905 | C13: Retten i Viborg | D13: 106.5621988 | E13: 98.76460671 | F13: 110.8953649 | G13: 101.5551909 | H13: 111.6831417 | I13: 99.10482465 | J13: 110.3126565 | K13: 105.2198893 | L13: 83.71533699 | M13: 70.541369 | N13: 97.11374401 | O13: 101.6645193
B14: 906 | C14: Retten i Holstebro | D14: 119.4218063 | E14: 114.5180103 | F14: 131.7960478 | G14: 134.4742916 | H14: 123.9946587 | I14: 128.1307663 | J14: 141.4035426 | K14: 141.8041437 | L14: 99.7120015 | M14: 103.5237215 | N14: 83.96537007 | O14: 63.06455139
B15: 907 | C15: Retten i Herning | D15: 102.6942274 | E15: 96.62136936 | F15: 103.4625662 | G15: 93.40174834 | H15: 96.42457704 | I15: 89.43056811 | J15: 112.5990348 | K15: 97.91965708 | L15: 122.6856077 | M15: 86.16866076 | N15: 60.58654777 | O15: 69.05136848
B16: 908 | C16: Retten i Horsens | D16: 87.92889129 | E16: 99.58494792 | F16: 88.53598745 | G16: 97.85368328 | H16: 77.23736535 | I16: 93.32005449 | J16: 106.7240833 | K16: 104.6016947 | L16: 107.8303253 | M16: 70.74447857 | N16: 69.36850108 | O16: 169.1850459
B17: 909 | C17: Retten i Kolding | D17: 92.75408802 | E17: 96.44699446 | F17: 86.6208597 | G17: 98.4275192 | H17: 97.87420323 | I17: 87.02332543 | J17: 76.55303812 | K17: 116.3225988 | L17: 129.8568996 | M17: 92.03079169 | N17: 94.46583633 | O17: 109.6739305
B18: 910 | C18: Retten i Esbjerg | D18: 88.42223882 | E18: 88.57878771 | F18: 85.14147434 | G18: 91.15012088 | H18: 77.72216826 | I18: 73.88565768 | J18: 96.51264302 | K18: 126.3228468 | L18: 86.90789717 | M18: 103.8271406 | N18: 106.5045714 | O18: 75.59150371
B19: 911 | C19: Retten i Sønderborg | D19: 106.2247952 | E19: 96.79811803 | F19: 110.7161518 | G19: 93.87676456 | H19: 126.4321689 | I19: 96.64795631 | J19: 87.49899958 | K19: 91.3947769 | L19: 127.7051778 | M19: 85.08125364 | N19: 75.92188839 | O19: 126.7214562
B20: 912 | C20: Retten i Odense | D20: 110.7567507 | E20: 101.4332418 | F20: 106.7789465 | G20: 98.48366282 | H20: 98.2064005 | I20: 93.85003938 | J20: 119.5977326 | K20: 104.6138323 | L20: 84.54001023 | M20: 67.28808221 | N20: 121.9394568 | O20: 102.6198222
B21: 913 | C21: Retten i Svendborg | D21: 88.48082216 | E21: 88.56899589 | F21: 84.41017715 | G21: 98.73252915 | H21: 74.53952363 | I21: 105.9075386 | J21: 99.94213852 | K21: 93.97260226 | L21: 96.86997693 | M21: 57.84739212 | N21: 118.3034218 | O21: 68.39009035
B22: 914 | C22: Retten i Nykøbing F. | D22: 96.26704402 | E22: 101.5967439 | F22: 102.3695173 | G22: 111.095471 | H22: 104.0069569 | I22: 107.9440292 | J22: 99.5347201 | K22: 114.8581854 | L22: 72.69174802 | M22: 122.3121287 | N22: 85.80180588 | O22: 95.74183687
B23: 915 | C23: Retten i Næstved | D23: 94.89830449 | E23: 106.2176039 | F23: 101.2206618 | G23: 117.5403001 | H23: 99.70848918 | I23: 104.439987 | J23: 103.8483637 | K23: 138.0302359 | L23: 91.3633377 | M23: 62.38105766 | N23: 70.23256512 | O23: 89.94229981
B24: 916 | C24: Retten i Holbæk | D24: 99.6854372 | E24: 106.0466548 | F24: 102.5719411 | G24: 111.2161648 | H24: 91.80041408 | I24: 104.6681819 | J24: 119.6139685 | K24: 120.4224179 | L24: 64.24015101 | M24: 61.58084945 | N24: 105.8342979 | O24: 106.874024
B25: 917 | C25: Retten i Roskilde | D25: 111.3369412 | E25: 113.2847348 | F25: 121.5706123 | G25: 122.2567131 | H25: 110.7556314 | I25: 98.84802137 | J25: 138.3182189 | K25: 161.9250445 | L25: 77.60951218 | M25: 59.70102127 | N25: 110.2915226 | O25: 106.5786743
B26: 918 | C26: Retten i Hillerød | D26: 97.77024487 | E26: 91.49979509 | F26: 94.45731656 | G26: 96.2311153 | H26: 100.1332109 | I26: 105.5457659 | J26: 88.89440575 | K26: 88.61035118 | L26: 69.3293375 | M26: 71.11448631 | N26: 140.889093 | O26: 131.8540104
B27: 919 | C27: Retten i Helsingør | D27: 84.92919768 | E27: 90.45552637 | F27: 85.17170955 | G27: 84.5041617 | H27: 96.58442373 | I27: 86.00560135 | J27: 78.92570845 | K27: 86.96928689 | L27: 62.74467237 | M27: 97.36860274 | N27: 100.4306366 | O27: 110.2263832
B28: 920 | C28: Retten i Lyngby | D28: 82.17333687 | E28: 103.9474881 | F28: 84.54288592 | G28: 105.0661823 | H28: 88.18044784 | I28: 85.50025711 | J28: 87.96685347 | K28: 127.5297628 | L28: 71.46373849 | M28: 143.1000864 | N28: 58.56242815 | O28: 51.98315523
B29: 921 | C29: Retten i Glostrup | D29: 89.77049127 | E29: 86.61281166 | F29: 90.84670578 | G29: 88.55807203 | H29: 91.0626931 | I29: 89.47238959 | J29: 90.07487024 | K29: 87.4821216 | L29: 74.48757715 | M29: 78.74923895 | N29: 74.92187816 | O29: 62.40804003
B30: 922 | C30: Retten på Frederiksberg | D30: 85.16575674 | E30: 95.76670241 | F30: 82.44767162 | G30: 92.51071813 | H30: 86.96870759 | I30: 88.01894035 | J30: 73.64972851 | K30: 97.86765189 | L30: 110.8456667 | M30: 149.5914378 | N30: 59.50966135 | O30: 78.77851321
B31: 923 | C31: Københavns Byret | D31: 83.56560473 | E31: 90.30701954 | F31: 89.13915056 | G31: 97.70132924 | H31: 87.34364245 | I31: 91.77529763 | J31: 89.10642261 | K31: 105.4139478 | L31: 49.81350596 | M31: 57.62637895 | N31: 35.5948961 | O31: 37.60883266
B34: 1) Indeks 100 svarer til gennemsnittet ved byretterne i 2019.
B35: 2) "Retssager" svarer til den samlede produktivitet for straffesager og civile sager, "Fogedsager" til den samlede produktivitet for øvrige fogedsager og tvangsauktioner, "Skiftesager" til den samlede produktivitet for insolvensskifter og dødsboskifter.
B36: 3) Ved beregningen af den samlede produktivitet for juristerne anvendes det samlede årsværksforbrug for gruppen - dvs. også årsværksforbruget til generel ledelse og administration mv. Ved beregning af produktiviteten på de enkelte sagsområder er kun medtaget det direkte årsværksforbrug - dvs. der er ikke foretaget en nøgletalsfordeling af årsværkforbruget til generel ledelse og administration mv.

Sheet Produkt.KON
B2: PRODUKTIVITETSINDEKS KONTORPERSONALE
D4: Samlet | F4: Retssager | H4: Straffesager | J4: Civile sager | L4: Fogedsager | N4: Skiftesager
D5: =Overblik!$D$6 -> 2021 | E5: =Overblik!$E$6 -> 2022 | F5: =Overblik!$D$6 -> 2021 | G5: =Overblik!$E$6 -> 2022 | H5: =Overblik!$D$6 -> 2021 | I5: =Overblik!$E$6 -> 2022 | J5: =Overblik!$D$6 -> 2021 | K5: =Overblik!$E$6 -> 2022 | L5: =Overblik!$D$6 -> 2021 | M5: =Overblik!$E$6 -> 2022 | N5: =Overblik!$D$6 -> 2021 | O5: =Overblik!$E$6 -> 2022
B6: SAMLET BYRETTERNE | D6: 88.9461913 | E6: 94.99269721 | F6: 89.63763259 | G6: 95.27073704 | H6: 87.27322506 | I6: 90.01121769 | J6: 92.80419039 | K6: 103.8965045 | L6: 80.23778343 | M6: 87.10936664 | N6: 96.98458512 | O6: 100.8575305
B7: 5. BEDSTE RET | D7: =LARGE(D9:D31,5) -> 98.40617146 | E7: 104.1544758 | F7: 100.5977174 | G7: 105.0916353 | H7: 100.3470824 | I7: 104.568026 | J7: 108.7721717 | K7: 119.8025086 | L7: 97.74766299 | M7: 110.0720536 | N7: 112.0954875 | O7: 114.2396229
B8: EID | C8: Ret
B9: 901 | C9: Retten i Hjørring | D9: 87.05609001 | E9: 90.86513468 | F9: 89.01861855 | G9: 92.93150879 | H9: 83.07985082 | I9: 86.51568828 | J9: 99.00040922 | K9: 103.2739975 | L9: 75.91541205 | M9: 81.43844232 | N9: 105.2577526 | O9: 102.0106888
B10: 902 | C10: Retten i Aalborg | D10: 89.00905781 | E10: 92.65104342 | F10: 92.85182949 | G10: 94.79920217 | H10: 91.32184942 | I10: 90.97541776 | J10: 94.44086035 | K10: 100.0428837 | L10: 80.94951306 | M10: 80.80512004 | N10: 76.39675673 | O10: 82.99463304
B11: 903 | C11: Retten i Randers | D11: 93.36964735 | E11: 90.29526298 | F11: 88.15305424 | G11: 79.7465389 | H11: 77.53947921 | I11: 67.61992929 | J11: 105.6722187 | K11: 105.3193279 | L11: 97.74766299 | M11: 86.96094314 | N11: 109.7396987 | O11: 105.1439012
B12: 904 | C12: Retten i Aarhus | D12: 90.39017586 | E12: 101.8695996 | F12: 83.28208284 | G12: 91.51870523 | H12: 73.54918367 | I12: 78.34448027 | J12: 108.7554134 | K12: 126.68668 | L12: 103.1947875 | M12: 129.7343988 | N12: 94.79267422 | O12: 101.8865961
B13: 905 | C13: Retten i Viborg | D13: 91.16839156 | E13: 82.2338775 | F13: 90.70578906 | G13: 80.30336728 | H13: 87.95323982 | I13: 74.04284845 | J13: 94.70511466 | K13: 93.18564845 | L13: 70.93181688 | M13: 59.72054832 | N13: 121.8184718 | O13: 120.1142214
B14: 906 | C14: Retten i Holstebro | D14: 99.1251152 | E14: 106.2404198 | F14: 100.256841 | G14: 98.92624802 | H14: 117.5687697 | I14: 109.5000141 | J14: 74.74569195 | K14: 80.50649881 | L14: 69.14844667 | M14: 80.59894793 | N14: 96.38977357 | O14: 110.3164809
B15: 907 | C15: Retten i Herning | D15: 102.2639586 | E15: 99.49918968 | F15: 107.2679567 | G15: 98.87206234 | H15: 105.5812128 | I15: 90.66357682 | J15: 108.7721717 | K15: 118.5419865 | L15: 74.9207583 | M15: 69.19804388 | N15: 106.6425935 | O15: 114.2396229
B16: 908 | C16: Retten i Horsens | D16: 95.97378081 | E16: 101.1448005 | F16: 90.85932378 | G16: 99.08709198 | H16: 76.64688211 | I16: 88.76201151 | J16: 122.6329514 | K16: 119.8025086 | L16: 94.94811559 | M16: 102.3824725 | N16: 113.3015198 | O16: 96.89946596
B17: 909 | C17: Retten i Kolding | D17: 100.1032868 | E17: 111.6087861 | F17: 93.99247088 | G17: 115.0657576 | H17: 90.16648262 | I17: 95.16003126 | J17: 99.79521476 | K17: 156.3420253 | L17: 102.7181157 | M17: 116.0525411 | N17: 104.4182383 | O17: 104.9813176
B18: 910 | C18: Retten i Esbjerg | D18: 94.54518214 | E18: 97.06509021 | F18: 100.5977174 | G18: 101.8563935 | H18: 98.78328413 | I18: 101.0612548 | J18: 102.5925929 | K18: 101.939184 | L18: 71.55351178 | M18: 85.96962952 | N18: 92.89264766 | O18: 90.75647309
B19: 911 | C19: Retten i Sønderborg | D19: 93.86566897 | E19: 96.69333076 | F19: 90.04178572 | G19: 96.09358296 | H19: 106.6420997 | I19: 95.01382224 | J19: 63.8187534 | K19: 96.80486222 | L19: 106.4395536 | M19: 110.0720536 | N19: 107.2118916 | O19: 123.9110465
B20: 912 | C20: Retten i Odense | D20: 94.83698175 | E20: 96.61834828 | F20: 95.81016464 | G20: 94.62954847 | H20: 86.75665445 | I20: 86.0296941 | J20: 116.4291651 | K20: 114.4163343 | L20: 87.15309352 | M20: 82.95295393 | N20: 80.303418 | O20: 89.14467609
B21: 913 | C21: Retten i Svendborg | D21: 95.55080734 | E21: 99.42128383 | F21: 84.91886561 | G21: 80.04307745 | H21: 84.33872791 | I21: 80.41434083 | J21: 85.05757147 | K21: 78.91593167 | L21: 87.77922219 | M21: 101.2049119 | N21: 117.8194079 | O21: 133.2184997
B22: 914 | C22: Retten i Nykøbing F. | D22: 82.56696321 | E22: 98.50902042 | F22: 87.87655009 | G22: 100.8909109 | H22: 93.69105641 | I22: 109.5696633 | J22: 77.81114112 | K22: 87.17104426 | L22: 76.48400129 | M22: 97.68970718 | N22: 90.35537195 | O22: 103.9405499
B23: 915 | C23: Retten i Næstved | D23: 80.63271479 | E23: 90.69343896 | F23: 81.24287572 | G23: 98.23122873 | H23: 75.34238954 | I23: 92.81386214 | J23: 91.87265084 | K23: 106.7143201 | L23: 80.90260538 | M23: 92.88937487 | N23: 100.2528422 | O23: 93.90405974
B24: 916 | C24: Retten i Holbæk | D24: 91.03242036 | E24: 101.09145 | F24: 100.7389341 | G24: 113.1885443 | H24: 92.49747484 | I24: 111.1910159 | J24: 114.2735422 | K24: 115.3246029 | L24: 79.23696005 | M24: 88.18600127 | N24: 90.30688865 | O24: 96.94859749
B25: 917 | C25: Retten i Roskilde | D25: 87.27214093 | E25: 96.85140501 | F25: 94.86858624 | G25: 105.0916353 | H25: 93.22910343 | I25: 93.21571659 | J25: 96.5975585 | K25: 124.9486034 | L25: 77.38058123 | M25: 91.79005769 | N25: 105.3372905 | O25: 110.9944566
B26: 918 | C26: Retten i Hillerød | D26: 104.2289337 | E26: 115.5724431 | F26: 102.8389001 | G26: 129.0754344 | H26: 124.7654097 | I26: 155.3585554 | J26: 79.70323616 | K26: 101.9758468 | L26: 118.0254298 | M26: 114.7343301 | N26: 112.0954875 | O26: 106.7698442
B27: 919 | C27: Retten i Helsingør | D27: 96.15993538 | E27: 104.1544758 | F27: 111.9244733 | G27: 122.8683618 | H27: 100.3470824 | I27: 104.568026 | J27: 130.266565 | K27: 152.1463967 | L27: 62.32711515 | M27: 76.18152393 | N27: 100.8438222 | O27: 97.89136997
B28: 920 | C28: Retten i Lyngby | D28: 93.58597796 | E28: 105.8183208 | F28: 94.32220545 | G28: 104.8890637 | H28: 91.75889408 | I28: 92.28757793 | J28: 96.86875909 | K28: 117.1600114 | L28: 92.42582085 | M28: 117.6206516 | N28: 83.87685455 | O28: 85.29071396
B29: 921 | C29: Retten i Glostrup | D29: 98.40617146 | E29: 97.48059395 | F29: 97.98507724 | G29: 94.48740767 | H29: 93.52281351 | I29: 92.9181664 | J29: 105.5612675 | K29: 96.09489147 | L29: 74.09282862 | M29: 77.03681267 | N29: 148.6190947 | O29: 153.1186394
B30: 922 | C30: Retten på Frederiksberg | D30: 83.80469812 | E30: 90.45935453 | F30: 83.53358421 | G30: 95.04254457 | H30: 95.23597527 | I30: 104.2763726 | J30: 65.38356254 | K30: 79.96426512 | L30: 75.69895714 | M30: 84.26506621 | N30: 57.54499274 | O30: 80.66159583
B31: 923 | C31: Københavns Byret | D31: 69.05441269 | E31: 79.43854748 | F31: 75.62081944 | G31: 83.16690149 | H31: 72.27514149 | I31: 79.2139002 | J31: 81.38327006 | K31: 90.15264983 | L31: 59.26772036 | M31: 70.55710496 | N31: 73.0916936 | O31: 78.63793908
B34: 1) Indeks 100 svarer til gennemsnittet ved byretterne i 2019.
B35: 2) "Retssager" svarer til den samlede produktivitet for straffesager og civile sager, "Fogedsager" til den samlede produktivitet for øvrige fogedsager og tvangsauktioner, "Skiftesager" til den samlede produktivitet for insolvensskifter og dødsboskifter.
B36: 3) Ved beregningen af den samlede produktivitet for kontorpersonale anvendes det samlede årsværksforbrug for gruppen - dvs. også årsværksforbruget til generel ledelse og administration mv. Ved beregning af produktiviteten på de enkelte sagsområder er kun medtaget det direkte årsværksforbrug - dvs. der er ikke foretaget en nøgletalsfordeling af årsværkforbruget til generel ledelse og administration mv.

Sheet Generel ledelse_Adm.
B2: ÅRSVÆRKSFORBRUG ANVENDT TIL GENEREL LEDELSE OG ADMINISTRATION MV.
E5: Årsværk til generel ledelse og administration | H5: %-del til generel ledelse og administration
E6: =Overblik!$D$6-1 -> 2020 | F6: =Overblik!$D$6 -> 2021 | G6: =Overblik!$E$6 -> 2022 | H6: =Overblik!$D$6-1 -> 2020 | I6: =Overblik!$D$6 -> 2021 | J6: =Overblik!$E$6 -> 2022
B8: SAMLET BYRETTERNE | D8: Jurister | E8: 28.93464517 | F8: 28.51129398 | G8: 31.60064951 | H8: 0.0684700315 | I8: 0.06772183786 | J8: 0.07037466347
D9: Kontor | E9: 98.65218565 | F9: 102.5049984 | G9: 100.754139 | H9: 0.1197269161 | I9: 0.1232791532 | J9: 0.1194922286
D10: Elev | E10: 6.498015594 | F10: 6.724486099 | G10: 6.638384617 | H10: 0.08794367388 | I10: 0.09658710631 | J10: 0.1063829557
D11: Fleks | E11: 14.47513311 | F11: 13.47844084 | G11: 10.01755349 | H11: 0.3610889873 | I11: 0.346892912 | J11: 0.2443045589
D12: Øvrige | E12: 69.88093873 | F12: 76.47446752 | G12: 69.46856562 | H12: 0.7595423974 | I12: 0.786190053 | J12: 0.7347349283
D13: Samlet | E13: 218.4409183 | F13: 227.6936869 | G13: 218.4792923 | H13: 0.1503849628 | I13: 0.1561427278 | J13: 0.1480792941
D14: - ekskl. fleks og elever | E14: 203.9657851 | F14: 207.4907599 | G14: 201.8233542 | H14: 0.1475215326 | I14: 0.1537236151 | J14: 0.1473496342
B15: EID | C15: Ret
B16: 901 | C16: Retten i Hjørring | D16: Jurister | E16: 1.00592375 | F16: 0.979805352 | G16: 0.8152823554 | H16: 0.07741483723 | I16: 0.07501803869 | J16: 0.06467143261
B17: 901 | C17: Retten i Hjørring | D17: Kontor | E17: 2.852173946 | F17: 3.811101133 | G17: 3.567526418 | H17: 0.104109024 | I17: 0.1386940301 | J17: 0.1318640868
B18: 901 | C18: Retten i Hjørring | D18: Elev | E18: 0.1517090096 | F18: 0.6821767098 | G18: 0.02782700998 | H18: 0.04598510791 | I18: 0.2942268452 | J18: 0.0180141578
B19: 901 | C19: Retten i Hjørring | D19: Fleks | E19: 0.0009025739759 | F19: 0 | G19: 0 | H19: 0.0007824248205 | I19: 0 | J19: 0
B20: 901 | C20: Retten i Hjørring | D20: Øvrige | E20: 1.949964163 | F20: 2.083776565 | G20: 2.07055897 | H20: 0.7755957929 | I20: 0.7012729824 | J20: 0.8180179953
B21: 901 | C21: Retten i Hjørring | D21: Samlet | E21: 5.960673442 | F21: 7.55685976 | G21: 6.481194753 | H21: 0.1258673985 | I21: 0.161184571 | J21: 0.1454211175
D22: - ekskl. fleks og elever | E22: 5.959770868 | F22: 6.874683051 | G22: 6.453367743 | H22: 0.1353730564 | I22: 0.1579993544 | J22: 0.1532268379
B23: 902 | C23: Retten i Aalborg | D23: Jurister | E23: 1.409823607 | F23: 1.545129568 | G23: 1.298834898 | H23: 0.06581471572 | I23: 0.07443498313 | J23: 0.05981513887
B24: 902 | C24: Retten i Aalborg | D24: Kontor | E24: 3.744894692 | F24: 4.061157816 | G24: 3.670466064 | H24: 0.08997558919 | I24: 0.09404655451 | J24: 0.08647999406
B25: 902 | C25: Retten i Aalborg | D25: Elev | E25: 0.1770278422 | F25: 0.2950296413 | G25: 0.3763501538 | H25: 0.02994219565 | I25: 0.05873480838 | J25: 0.07652659749
B26: 902 | C26: Retten i Aalborg | D26: Fleks | E26: 0.947002472 | F26: 1.158934155 | G26: 0.7547634388 | H26: 0.7905191969 | I26: 0.9122448912 | J26: 0.8556535487
B27: 902 | C27: Retten i Aalborg | D27: Øvrige | E27: 1.414775963 | F27: 0.8945238677 | G27: 0.9597179419 | H27: 0.3426121991 | I27: 0.2649491198 | J27: 0.3033616476
B28: 902 | C28: Retten i Aalborg | D28: Samlet | E28: 7.693524576 | F28: 7.954775048 | G28: 7.060132496 | H28: 0.1035718835 | I28: 0.1080661474 | J28: 0.09655449819
D29: - ekskl. fleks og elever | E29: 6.746522104 | F29: 6.500811252 | G29: 5.929018903 | H29: 0.09780150396 | I29: 0.09657050017 | J29: 0.08807124737
B30: 903 | C30: Retten i Randers | D30: Jurister | E30: 1.010042492 | F30: 1.212800198 | G30: 0.8066277 | H30: 0.08377486017 | I30: 0.0938781951 | J30: 0.0626806358
B31: 903 | C31: Retten i Randers | D31: Kontor | E31: 3.99994065 | F31: 4.181713174 | G31: 3.04225371 | H31: 0.1380386573 | I31: 0.1467749305 | J31: 0.1041486782
B32: 903 | C32: Retten i Randers | D32: Elev | E32: 0.2485480049 | F32: 0.08990295386 | G32: 0.1930754926 | H32: 0.07547859825 | I32: 0.03852857143 | J32: 0.08274285714
B33: 903 | C33: Retten i Randers | D33: Fleks | E33: 0.9413692726 | F33: 1.512766265 | G33: 1.371406242 | H33: 0.6694609949 | I33: 0.7599167454 | J33: 0.7489030495
B34: 903 | C34: Retten i Randers | D34: Øvrige | E34: 1.498893394 | F34: 2.143565846 | G34: 3.007968334 | H34: 0.756249158 | I34: 0.9608223537 | J34: 0.7736484373
B35: 903 | C35: Retten i Randers | D35: Samlet | E35: 7.698793814 | F35: 9.140748437 | G35: 8.421331478 | H35: 0.1613504976 | I35: 0.1905728066 | J35: 0.1679824169
D36: - ekskl. fleks og elever | E36: 6.757424541 | F36: 7.538079218 | G36: 6.856849744 | H36: 0.1513143263 | I36: 0.1727313148 | J36: 0.1491671462
B37: 904 | C37: Retten i Aarhus | D37: Jurister | E37: 0.9385830392 | F37: 1.455997585 | G37: 1.308008361 | H37: 0.03841934408 | I37: 0.05893135679 | J37: 0.04914278667
B38: 904 | C38: Retten i Århus | D38: Kontor | E38: 4.06426402 | F38: 5.017518869 | G38: 4.420166086 | H38: 0.08744933949 | I38: 0.1105341056 | J38: 0.1054774078
B39: 904 | C39: Retten i Århus | D39: Elev | E39: 0.08803628357 | F39: 0.2345726936 | G39: 0.4099565476 | H39: 0.03603997297 | I39: 0.0605503583 | J39: 0.1331693599
B40: 904 | C40: Retten i Århus | D40: Fleks | E40: 0.8619773696 | F40: 1.010147905 | G40: 0.9169456367 | H40: 0.3622484239 | I40: 0.3975880195 | J40: 0.3944802347
B41: 904 | C41: Retten i Århus | D41: Øvrige | E41: 4.315583335 | F41: 6.190252621 | G41: 4.857266743 | H41: 0.6902547816 | I41: 0.6734069106 | J41: 0.6500528957
B42: 904 | C42: Retten i Århus | D42: Samlet | E42: 10.26844405 | F42: 13.90848967 | G42: 11.91234337 | H42: 0.125255447 | I42: 0.162279109 | J42: 0.1458479646
D43: - ekskl. fleks og elever | E43: 9.406466679 | F43: 12.66376908 | G43: 10.58544119 | H43: 0.1207711369 | I43: 0.1597095246 | J43: 0.1388326962
B44: 905 | C44: Retten i Viborg | D44: Jurister | E44: 1.876658807 | F44: 1.052306211 | G44: 1.112150143 | H44: 0.1265602931 | I44: 0.07842075926 | J44: 0.07410001904
B45: 905 | C45: Retten i Viborg | D45: Kontor | E45: 3.317307252 | F45: 3.682444159 | G45: 4.306073973 | H45: 0.1224030414 | I45: 0.1233633103 | J45: 0.121934701
B46: 905 | C46: Retten i Viborg | D46: Elev | E46: 0.1169160411 | F46: 0.317063316 | G46: 0.1186528349 | H46: 0.02334333779 | I46: 0.07011944819 | J46: 0.02999101047
B47: 905 | C47: Retten i Viborg | D47: Fleks | E47: 0.4058273825 | F47: 0.678520355 | G47: 0.5646213138 | H47: 0.202907604 | I47: 0.33925 | J47: 0.2530311566
B48: 905 | C48: Retten i Viborg | D48: Øvrige | E48: 2.022072201 | F48: 3.017961725 | G48: 2.770720036 | H48: 0.6614672144 | I48: 0.7544885451 | J48: 0.8139050641
B49: 905 | C49: Retten i Viborg | D49: Samlet | E49: 7.738781683 | F49: 8.748295766 | G49: 8.872218301 | H49: 0.1488363489 | I49: 0.1626350858 | J49: 0.1480793437
D50: - ekskl. fleks og elever | E50: 7.332954301 | F50: 7.752712095 | G50: 8.188944152 | H50: 0.1604040279 | I50: 0.1640121596 | J50: 0.1524159962
B51: 906 | C51: Retten i Holstebro | D51: Jurister | E51: 0.8932017396 | F51: 0.8970766909 | G51: 1.042536567 | H51: 0.1113563758 | I51: 0.1015357745 | J51: 0.1135799321
B52: 906 | C52: Retten i Holstebro | D52: Kontor | E52: 1.158811163 | F52: 1.118436946 | G52: 1.172113686 | H52: 0.05885471908 | I52: 0.05598113132 | J52: 0.06092885091
B53: 906 | C53: Retten i Holstebro | D53: Elev | E53: 0.2396051047 | F53: 0.03258914048 | G53: 0.3094134147 | H53: 0.09074782214 | I53: 0.009829358701 | J53: 0.1201596161
B54: 906 | C54: Retten i Holstebro | D54: Fleks | E54: 2.199188801 | F54: 1.205124506 | G54: 1.166185455 | H54: 0.7463732569 | I54: 0.7115966499 | J54: 0.5318008276
B55: 906 | C55: Retten i Holstebro | D55: Øvrige | E55: 2.320829153 | F55: 2.722522269 | G55: 1.711242721 | H55: 0.9953335334 | I55: 0.9571012177 | J55: 0.8171925357
B56: 906 | C56: Retten i Holstebro | D56: Samlet | E56: 6.811635962 | F56: 5.975749553 | G56: 5.401491843 | H56: 0.1911822967 | I56: 0.1629713284 | J56: 0.1451286552
D57: - ekskl. fleks og elever | E57: 4.612447161 | F57: 4.738035906 | G57: 3.925892974 | H57: 0.1455567975 | I57: 0.1496610196 | J57: 0.1267876521
B58: 907 | C58: Retten i Herning | D58: Jurister | E58: 0.4058989207 | F58: 0.3840506525 | G58: 0.06692932713 | H58: 0.03143686129 | I58: 0.03255027909 | J58: 0.00519131802
B59: 907 | C59: Retten i Herning | D59: Kontor | E59: 1.653754705 | F59: 1.820932966 | G59: 1.504049767 | H59: 0.07546577388 | I59: 0.08202315768 | J59: 0.06564001776
B60: 907 | C60: Retten i Herning | D60: Elev | E60: 0.1364696445 | F60: 0.06998005353 | G60: 0 | H60: 0.03576670323 | I60: 0.02140940126 | J60: 0
B61: 907 | C61: Retten i Herning | D61: Fleks | E61: 0 | F61: 0 | G61: - | H61: - | I61: - | J61: -
B62: 907 | C62: Retten i Herning | D62: Øvrige | E62: 2.406457398 | F62: 3.23803 | G62: 2.721783436 | H62: 0.9995627838 | I62: 1 | J62: 0.8385735831
B63: 907 | C63: Retten i Herning | D63: Samlet | E63: 4.602580668 | F63: 5.512993672 | G63: 4.29276253 | H63: 0.1121251831 | I63: 0.1361044475 | J63: 0.1018433052
D64: - ekskl. fleks og elever | E64: 4.602580668 | F64: 5.443013618 | G64: 4.29276253 | H64: 0.1199502115 | I64: 0.1461723803 | J64: 0.109924578
B65: 908 | C65: Retten i Horsens | D65: Jurister | E65: 0.9786214392 | F65: 0.8168273814 | G65: 0.9476928099 | H65: 0.08127106281 | I65: 0.06840596182 | J65: 0.08147549446
B66: 908 | C66: Retten i Horsens | D66: Kontor | E66: 3.003412363 | F66: 2.643846305 | G66: 2.184604468 | H66: 0.1458755319 | I66: 0.1238192838 | J66: 0.1027066044
B67: 908 | C67: Retten i Horsens | D67: Elev | E67: 0.3835609597 | F67: 0.5830559473 | G67: 0.1886037586 | H67: 0.1429591987 | I67: 0.1731004413 | J67: 0.0806711982
B68: 908 | C68: Retten i Horsens | D68: Fleks | E68: 0.0002687098976 | F68: 0.4574163813 | G68: 0.1666865859 | H68: 0.000160551302 | I68: 0.2018696241 | J68: 0.1066058298
B69: 908 | C69: Retten i Horsens | D69: Øvrige | E69: 2.455990926 | F69: 3.044566266 | G69: 1.779857309 | H69: 0.5667427233 | I69: 0.6485182635 | J69: 0.3826851836
B70: 908 | C70: Retten i Horsens | D70: Samlet | E70: 6.821854398 | F70: 7.545712281 | G70: 5.267444931 | H70: 0.1650960443 | I70: 0.1729787191 | J70: 0.1264411931
D71: - ekskl. fleks og elever | E71: 6.821585688 | F71: 6.505239952 | G71: 4.912154587 | H71: 0.1741708851 | I71: 0.1712446474 | J71: 0.1305809057
B72: 909 | C72: Retten i Kolding | D72: Jurister | E72: 1.111163378 | F72: 0.7863987046 | G72: 2.099945617 | H72: 0.05267312988 | I72: 0.03541878616 | J72: 0.09030403401
B73: 909 | C73: Retten i Kolding | D73: Kontor | E73: 5.229467347 | F73: 3.960523647 | G73: 4.707553016 | H73: 0.1320818715 | I73: 0.101521432 | J73: 0.1249862022
B74: 909 | C74: Retten i Kolding | D74: Elev | E74: 0.05544067892 | F74: 0.03950186727 | G74: 0.1911103419 | H74: 0.0152886241 | I74: 0.01077272727 | J74: 0.04496470588
B75: 909 | C75: Retten i Kolding | D75: Fleks | E75: 0.9223873173 | F75: 0.9599778557 | G75: 0 | H75: 0.3075639352 | I75: 0.3119515475 | J75: 0
B76: 909 | C76: Retten i Kolding | D76: Øvrige | E76: 2.474173145 | F76: 2.50427129 | G76: 1.266225212 | H76: 0.852014403 | I76: 0.7798552848 | J76: 0.835551045
B77: 909 | C77: Retten i Kolding | D77: Samlet | E77: 9.792631866 | F77: 8.250673365 | G77: 8.264834187 | H77: 0.1394618911 | I77: 0.1159291882 | J77: 0.1197650914
D78: - ekskl. fleks og elever | E78: 8.870244548 | F78: 7.251193642 | G78: 8.073723845 | H78: 0.1386150246 | I78: 0.1125511366 | J78: 0.1293619305
B79: 910 | C79: Retten i Esbjerg | D79: Jurister | E79: 1.018200504 | F79: 0.773218967 | G79: 1.350454576 | H79: 0.06783250563 | I79: 0.05260007285 | J79: 0.08876253934
B80: 910 | C80: Retten i Esbjerg | D80: Kontor | E80: 2.598202199 | F80: 1.996903157 | G80: 2.558491077 | H80: 0.09919380567 | I80: 0.07523335555 | J80: 0.09707923026
B81: 910 | C81: Retten i Esbjerg | D81: Elev | E81: 0.003319448289 | F81: 0.03850176 | G81: 0.1054147653 | H81: 0.002522818038 | I81: 0.0165 | J81: 0.05341350926
B82: 910 | C82: Retten i Esbjerg | D82: Fleks | E82: 0 | F82: 0 | G82: 0 | H82: 0 | I82: 0 | J82: 0
B83: 910 | C83: Retten i Esbjerg | D83: Øvrige | E83: 4.112147411 | F83: 4.958875218 | G83: 4.46529122 | H83: 0.9078149225 | I83: 0.9539380451 | J83: 0.8562875443
B84: 910 | C84: Retten i Esbjerg | D84: Samlet | E84: 7.731869562 | F84: 7.767499103 | G84: 8.479651639 | H84: 0.1616506026 | I84: 0.1560536592 | J84: 0.1711464607
D85: - ekskl. fleks og elever | E85: 7.731869562 | F85: 7.728997343 | G85: 8.374236874 | H85: 0.1689913003 | I85: 0.1664259101 | J85: 0.1789993351
B86: 911 | C86: Retten i Sønderborg | D86: Jurister | E86: 1.386123234 | F86: 1.262381673 | G86: 0.9538050243 | H86: 0.08841233187 | I86: 0.08399375848 | J86: 0.05399640129
B87: 911 | C87: Retten i Sønderborg | D87: Kontor | E87: 3.604574052 | F87: 4.319873109 | G87: 5.489585435 | H87: 0.1036187796 | I87: 0.1311393493 | J87: 0.166569886
B88: 911 | C88: Retten i Sønderborg | D88: Elev | E88: 0.1184438906 | F88: 0.08543696425 | G88: 0.03760164845 | H88: 0.05820910684 | I88: 0.064075 | J88: 0.03104485045
B89: 911 | C89: Retten i Sønderborg | D89: Fleks | E89: 1.082904873 | F89: 1.048025387 | G89: 0.2086624 | H89: 0.9009117004 | I89: 0.7354770571 | J89: 0.16
B90: 911 | C90: Retten i Sønderborg | D90: Øvrige | E90: 3.216349632 | F90: 2.038782078 | G90: 2.029706519 | H90: 0.8653242413 | I90: 0.8933641571 | J90: 0.7702786929
B91: 911 | C91: Retten i Sønderborg | D91: Samlet | E91: 9.408395682 | F91: 8.754499211 | G91: 8.719361027 | H91: 0.1638563503 | I91: 0.1651447993 | J91: 0.1596957879
D92: - ekskl. fleks og elever | E92: 8.325490809 | F92: 7.62103686 | G92: 8.473096978 | H92: 0.1514725331 | I92: 0.1516542765 | J92: 0.1626889997
B93: 912 | C93: Retten i Odense | D93: Jurister | E93: 0.8559542887 | F93: 0.7367667803 | G93: 0.4815569811 | H93: 0.04118721207 | I93: 0.03564661907 | J93: 0.01578775741
B94: 912 | C94: Retten i Odense | D94: Kontor | E94: 3.483663033 | F94: 3.513672982 | G94: 3.316371453 | H94: 0.08015181156 | I94: 0.0774259445 | J94: 0.07313781788
B95: 912 | C95: Retten i Odense | D95: Elev | E95: 0.04837592715 | F95: 0 | G95: 0.02653446703 | H95: 0.01209349805 | I95: 0 | J95: 0.008806514006
B96: 912 | C96: Retten i Odense | D96: Fleks | E96: 0.1856353427 | F96: 0 | G96: 0.001976701692 | H96: 0.2254963287 | I96: 0 | J96: 0.004211303617
B97: 912 | C97: Retten i Odense | D97: Øvrige | E97: 5.051381833 | F97: 4.745342033 | G97: 4.766623657 | H97: 0.9983106156 | I97: 0.9605897196 | J97: 0.8324902285
B98: 912 | C98: Retten i Odense | D98: Samlet | E98: 9.625010425 | F98: 8.995781794 | G98: 8.593063259 | H98: 0.1298419414 | I98: 0.1198751887 | J98: 0.09999673912
D99: - ekskl. fleks og elever | E99: 9.439375082 | F99: 8.995781794 | G99: 8.564552091 | H99: 0.1355019294 | I99: 0.1267194639 | J99: 0.1043560944
B100: 913 | C100: Retten i Svendborg | D100: Jurister | E100: 0.7373465032 | F100: 0.8290483073 | G100: 0.805372161 | H100: 0.06632650979 | I100: 0.07916068848 | J100: 0.0798789338
B101: 913 | C101: Retten i Svendborg | D101: Kontor | E101: 2.402613834 | F101: 2.561741401 | G101: 2.46952261 | H101: 0.1147973229 | I101: 0.1235328464 | J101: 0.1264465496
B102: 913 | C102: Retten i Svendborg | D102: Elev | E102: 0.6946783458 | F102: 0.7194469163 | G102: 0.43208368 | H102: 0.3473287531 | I102: 0.4195588425 | J102: 0.4438
B103: 913 | C103: Retten i Svendborg | D103: Fleks | E103: 0.471683587 | F103: 0.209606288 | G103: 0.006600198 | H103: 0.4716694369 | I103: 0.2096 | J103: 0.0066
B104: 913 | C104: Retten i Svendborg | D104: Øvrige | E104: 3.209203021 | F104: 3.743422805 | G104: 3.539517716 | H104: 0.762911628 | I104: 0.7958210414 | J104: 0.8034844459
B105: 913 | C105: Retten i Svendborg | D105: Samlet | E105: 7.515525292 | F105: 8.063265719 | G105: 7.253096365 | H105: 0.1914651318 | I105: 0.208736288 | J105: 0.2015229287
D106: - ekskl. fleks og elever | E106: 7.043841705 | F106: 7.134212514 | G106: 6.814412487 | H106: 0.1751366759 | I106: 0.1986462307 | J106: 0.2003190827
B107: 914 | C107: Retten i Nykøbing F. | D107: Jurister | E107: 0.9839436734 | F107: 1.073025539 | G107: 2.062757033 | H107: 0.07463238589 | I107: 0.0820731144 | J107: 0.1495339857
B108: 914 | C108: Retten i Nykøbing F. | D108: Kontor | E108: 4.766787195 | F108: 4.502488272 | G108: 3.724564619 | H108: 0.1539866854 | I108: 0.1443591965 | J108: 0.1338376741
B109: 914 | C109: Retten i Nykøbing F. | D109: Elev | E109: 0.2855387205 | F109: 0.2676568009 | G109: 0.4814859253 | H109: 0.1427636497 | I109: 0.1446981235 | J109: 0.2407333333
B110: 914 | C110: Retten i Nykøbing F. | D110: Fleks | E110: 0.41472 | F110: 0.40544 | G110: 0.004359569892 | H110: 1 | I110: 1 | J110: 0.01075268817
B111: 914 | C111: Retten i Nykøbing F. | D111: Øvrige | E111: 2.882638878 | F111: 2.54852785 | G111: 1.775741342 | H111: 0.8508178313 | I111: 0.9146868171 | J111: 0.618910664
B112: 914 | C112: Retten i Nykøbing F. | D112: Samlet | E112: 9.333628467 | F112: 8.797138462 | G112: 8.04890849 | H112: 0.1868871532 | I112: 0.1784231001 | J112: 0.1715250806
D113: - ekskl. fleks og elever | E113: 8.918908467 | F113: 8.124041662 | G113: 7.563062995 | H113: 0.1816488784 | I113: 0.1726692515 | J113: 0.1698835934
B114: 915 | C114: Retten i Næstved | D114: Jurister | E114: 1.171592482 | F114: 1.492723761 | G114: 1.247247147 | H114: 0.06479326592 | I114: 0.08771883885 | J114: 0.07712009782
B115: 915 | C115: Retten i Næstved | D115: Kontor | E115: 5.678331675 | F115: 7.041212923 | G115: 6.284132864 | H115: 0.1464790378 | I115: 0.1744713777 | J115: 0.1718402091
B116: 915 | C116: Retten i Næstved | D116: Elev | E116: 0.4566530055 | F116: 0.4180029442 | G116: 0.7351403654 | H116: 0.2083774843 | I116: 0.1563954998 | J116: 0.2299713968
B117: 915 | C117: Retten i Næstved | D117: Fleks | E117: 1.049716308 | F117: 0.6972713994 | G117: 0.6815823346 | H117: 0.4208713621 | I117: 0.2420938345 | J117: 0.198161474
B118: 915 | C118: Retten i Næstved | D118: Øvrige | E118: 3.436761899 | F118: 3.930617586 | G118: 3.467594752 | H118: 0.9280318795 | I118: 0.8253109309 | J118: 0.8738171352
B119: 915 | C119: Retten i Næstved | D119: Samlet | E119: 11.79305537 | F119: 13.57982861 | G119: 12.41569746 | H119: 0.1807741594 | I119: 0.2006178252 | J119: 0.1959952203
D120: - ekskl. fleks og elever | E120: 10.74333906 | F120: 12.46455427 | G120: 10.99897476 | H120: 0.1698852774 | I120: 0.2005974892 | J120: 0.193948674
B121: 916 | C121: Retten i Holbæk | D121: Jurister | E121: 0.7809023305 | F121: 0.7259152039 | G121: 0.735426973 | H121: 0.06909044288 | I121: 0.06235002928 | J121: 0.05966284051
B122: 916 | C122: Retten i Holbæk | D122: Kontor | E122: 2.231927466 | F122: 3.032788622 | G122: 2.920613494 | H122: 0.09556950986 | I122: 0.1263265576 | J122: 0.1274794229
B123: 916 | C123: Retten i Holbæk | D123: Elev | E123: 0.08255483991 | F123: 0.1472759234 | G123: 0.209906297 | H123: 0.03121496412 | I123: 0.1262285714 | J123: 0.2099
B124: 916 | C124: Retten i Holbæk | D124: Fleks | E124: 0.08416258111 | F124: 0 | G124: 0.207795802 | H124: 0.03821281612 | I124: 0 | J124: 0.09152548581
B125: 916 | C125: Retten i Holbæk | D125: Øvrige | E125: 2.377329568 | F125: 2.563180647 | G125: 2.445348609 | H125: 0.8105508964 | I125: 0.8155800924 | J125: 0.8340889462
B126: 916 | C126: Retten i Holbæk | D126: Samlet | E126: 5.556876786 | F126: 6.469160396 | G126: 6.519091175 | H126: 0.1309449189 | I126: 0.1541756371 | J126: 0.1570829352
D127: - ekskl. fleks og elever | E127: 5.472714205 | F127: 6.321884473 | G127: 6.101389076 | H127: 0.1433951173 | I127: 0.1629650718 | J127: 0.1595920579
B128: 917 | C128: Retten i Roskilde | D128: Jurister | E128: 1.290647287 | F128: 2.220113508 | G128: 1.378120886 | H128: 0.07187889008 | I128: 0.1145947841 | J128: 0.07353700011
B129: 917 | C129: Retten i Roskilde | D129: Kontor | E129: 6.713309863 | F129: 7.578854417 | G129: 7.613124169 | H129: 0.1682486573 | I129: 0.1785332949 | J129: 0.1797658551
B130: 917 | C130: Retten i Roskilde | D130: Elev | E130: 0 | F130: 0.001850071154 | G130: 0 | H130: 0 | I130: 0.0008538461538 | J130: 0
B131: 917 | C131: Retten i Roskilde | D131: Fleks | E131: 0 | F131: 0 | G131: 0.56763 | H131: 0 | I131: 0 | J131: 1
B132: 917 | C132: Retten i Roskilde | D132: Øvrige | E132: 1.3244 | F132: 1.83343 | G132: 0.66419645 | H132: 1 | I132: 1 | J132: 0.395
B133: 917 | C133: Retten i Roskilde | D133: Samlet | E133: 9.32835715 | F133: 11.634248 | G133: 10.2230715 | H133: 0.1470982891 | I133: 0.1752355326 | J133: 0.1569738432
D134: - ekskl. fleks og elever | E134: 9.32835715 | F134: 11.63239793 | G134: 9.655441505 | H134: 0.1576231773 | I134: 0.182733614 | J134: 0.1524997048
B135: 918 | C135: Retten i Hillerød | D135: Jurister | E135: 0.7242452499 | F135: 0.6390081129 | G135: 1.664961819 | H135: 0.05561513002 | I135: 0.05434250762 | J135: 0.1221085154
B136: 918 | C136: Retten i Hillerød | D136: Kontor | E136: 2.797628992 | F136: 3.13325397 | G136: 2.968131273 | H136: 0.1244661324 | I136: 0.1475672439 | J136: 0.1461616666
B137: 918 | C137: Retten i Hillerød | D137: Elev | E137: 0.8415489018 | F137: 0.1583365023 | G137: 0.52622813 | H137: 0.2365688967 | I137: 0.05484104001 | J137: 0.1697389637
B138: 918 | C138: Retten i Hillerød | D138: Fleks | E138: 0.9599292479 | F138: 0.3825950112 | G138: 0.01219130453 | H138: 0.3592979877 | I138: 0.1628195519 | J138: 0.006150576917
B139: 918 | C139: Retten i Hillerød | D139: Øvrige | E139: 1.961469736 | F139: 2.301302438 | G139: 3.013688115 | H139: 0.4879362915 | I139: 0.5612836945 | J139: 0.6233080347
B140: 918 | C140: Retten i Hillerød | D140: Samlet | E140: 7.284822128 | F140: 6.614496034 | G140: 8.185200642 | H140: 0.1592366537 | I140: 0.1562650778 | J140: 0.186622656
D141: - ekskl. fleks og elever | E141: 6.32489288 | F141: 6.073564521 | G141: 7.646781207 | H141: 0.1387506539 | I141: 0.1637446156 | J141: 0.1971975131
B142: 919 | C142: Retten i Helsingør | D142: Jurister | E142: 0.8896454559 | F142: 0.9554570806 | G142: 0.7382266287 | H142: 0.07049577934 | I142: 0.07276767832 | J142: 0.05487853701
B143: 919 | C143: Retten i Helsingør | D143: Kontor | E143: 2.262557202 | F143: 2.382778781 | G143: 2.341416227 | H143: 0.09928125272 | I143: 0.1096379853 | J143: 0.101235941
B144: 919 | C144: Retten i Helsingør | D144: Elev | E144: 0 | F144: 0.02655628404 | G144: 0 | H144: 0 | I144: 0.02106504747 | J144: 0
B145: 919 | C145: Retten i Helsingør | D145: Fleks | E145: 1.774236806 | F145: 1.768921865 | G145: 1.199536289 | H145: 0.5861041189 | I145: 0.5843483733 | J145: 0.5236579013
B146: 919 | C146: Retten i Helsingør | D146: Øvrige | E146: 2.12788 | F146: 2.556434892 | G146: 2.640973452 | H146: 1 | I146: 0.8985869319 | J146: 0.8533087295
B147: 919 | C147: Retten i Helsingør | D147: Samlet | E147: 7.054319464 | F147: 7.690148903 | G147: 6.920152596 | H147: 0.1657331649 | I147: 0.1831153946 | J147: 0.1587813607
D148: - ekskl. fleks og elever | E148: 5.280082658 | F148: 5.894670754 | G148: 5.720616308 | H148: 0.1406630791 | I148: 0.1563227327 | J148: 0.1441858362
B149: 920 | C149: Retten i Lyngby | D149: Jurister | E149: 0.7626459636 | F149: 0.9702258356 | G149: 0.7207178749 | H149: 0.05219330504 | I149: 0.06788009677 | J149: 0.05120356838
B150: 920 | C150: Retten i Lyngby | D150: Kontor | E150: 3.490284994 | F150: 3.685093399 | G150: 3.393649023 | H150: 0.1369773258 | I150: 0.1420695911 | J150: 0.1285664764
B151: 920 | C151: Retten i Lyngby | D151: Elev | E151: 1.508626118 | F151: 1.527560769 | G151: 1.051230675 | H151: 0.4763821722 | I151: 0.4184914549 | J151: 0.3918890704
B152: 920 | C152: Retten i Lyngby | D152: Fleks | E152: 0.0751164988 | F152: 0.008608245513 | G152: 0 | H152: 0.08954592996 | I152: 0.01027384054 | J152: 0
B153: 920 | C153: Retten i Lyngby | D153: Øvrige | E153: 2.301554575 | F153: 2.999616907 | G153: 2.571060078 | H153: 0.9007442069 | I153: 0.9542830216 | J153: 0.9997
B154: 920 | C154: Retten i Lyngby | D154: Samlet | E154: 8.138228149 | F154: 9.191105157 | G154: 7.736657652 | H154: 0.1744395584 | I154: 0.1920284786 | J154: 0.1757279074
D155: - ekskl. fleks og elever | E155: 8.063111651 | F155: 7.654936142 | G155: 6.685426977 | H155: 0.1536884616 | I155: 0.1764818639 | J155: 0.1656263579
B156: 921 | C156: Retten i Glostrup | D156: Jurister | E156: 2.908136529 | F156: 1.786884369 | G156: 2.219571477 | H156: 0.09042977405 | I156: 0.05426367504 | J156: 0.06401305763
B157: 921 | C157: Retten i Glostrup | D157: Kontor | E157: 6.687093729 | F157: 6.273299216 | G157: 6.319575225 | H157: 0.1197208616 | I157: 0.1096108993 | J157: 0.1117315043
B158: 921 | C158: Retten i Glostrup | D158: Elev | E158: 0.3583573561 | F158: 0.5892152689 | G158: 1.042747464 | H158: 0.11226277 | I158: 0.1764788614 | J158: 0.2895684203
B159: 921 | C159: Retten i Glostrup | D159: Fleks | E159: 0.7638024484 | F159: 1.000065503 | G159: 0.744854421 | H159: 0.213506507 | I159: 0.3014524544 | J159: 0.08380465525
B160: 921 | C160: Retten i Glostrup | D160: Øvrige | E160: 5.915960891 | F160: 5.692279255 | G160: 5.122582192 | H160: 0.8232803529 | I160: 0.8151402518 | J160: 0.816441439
B161: 921 | C161: Retten i Glostrup | D161: Samlet | E161: 16.63335095 | F161: 15.34174361 | G161: 15.44933078 | H161: 0.1631197887 | I161: 0.1477988481 | J161: 0.1440297948
D162: - ekskl. fleks og elever | E162: 15.86954851 | F162: 13.75246284 | G162: 13.66172889 | H162: 0.1629316361 | I162: 0.141565925 | J162: 0.1401082542
B163: 922 | C163: Retten på Frederiksberg | D163: Jurister | E163: 0.7355191522 | F163: 1.027406519 | G163: 1.146934366 | H163: 0.02950369508 | I163: 0.04289016778 | J163: 0.04723953611
B164: 922 | C164: Retten på Frederiksberg | D164: Kontor | E164: 4.865037456 | F164: 2.973816358 | G164: 5.455220467 | H164: 0.106697818 | I164: 0.07032072529 | J164: 0.1233672137
B165: 922 | C165: Retten på Frederiksberg | D165: Elev | E165: 0.3111316433 | F165: 0.002549823452 | G165: 0.01139515729 | H165: 0.117702646 | I165: 0.0007780897495 | J165: 0.003695107509
B166: 922 | C166: Retten på Frederiksberg | D166: Fleks | E166: 1.315790913 | F166: 0.5683789217 | G166: 1.039231872 | H166: 0.2792899713 | I166: 0.189894499 | J166: 0.2217415894
B167: 922 | C167: Retten på Frederiksberg | D167: Øvrige | E167: 4.698675375 | F167: 4.391476554 | G167: 4.842137774 | H167: 0.8310914733 | I167: 0.8831384421 | J167: 0.7387512643
B168: 922 | C168: Retten på Frederiksberg | D168: Samlet | E168: 11.92615454 | F168: 8.963628177 | G168: 12.49491964 | H168: 0.1427695002 | I168: 0.1156799736 | J168: 0.1508619912
D169: - ekskl. fleks og elever | E169: 10.61036363 | F169: 8.392699431 | G169: 11.44429261 | H169: 0.1351964352 | I169: 0.1178480624 | J169: 0.1524828542
B170: 923 | C170: Københavns Byret | D170: Jurister | E170: 4.509354567 | F170: 4.26052891 | G170: 5.457545485 | H170: 0.07566156832 | I170: 0.07078937988 | J170: 0.08685855931
B171: 923 | C171: Københavns Byret | D171: Kontor | E171: 16.49064011 | F171: 18.18510286 | G171: 14.00447557 | H171: 0.1452854935 | I171: 0.1553781633 | J171: 0.1254947097
B172: 923 | C172: Københavns Byret | D172: Elev | E172: 0.1052553011 | F172: 0.3780569286 | G172: 0.139796099 | H172: 0.01773874066 | I172: 0.0616376397 | J172: 0.02608832189
B173: 923 | C173: Københavns Byret | D173: Fleks | E173: 0 | F173: 0.06758079857 | G173: 0.4018739221 | H173: - | I173: 0.2424423267 | J173: 0.6196689777
B174: 923 | C174: Københavns Byret | D174: Øvrige | E174: 5.247275623 | F174: 4.662972988 | G174: 6.159232521 | H174: 0.5009011951 | I174: 0.5952688412 | J174: 0.6795154228
B175: 923 | C175: Københavns Byret | D175: Samlet | E175: 26.3525256 | F175: 27.55424248 | G175: 26.16292359 | H175: 0.1390536342 | I175: 0.1439094017 | J175: 0.1395859045
D176: - ekskl. fleks og elever | E176: 26.3525256 | F176: 27.10860475 | G176: 25.62125357 | H176: 0.1429747578 | I176: 0.1464878012 | J176: 0.1412149548
B178: 1) I opgørelsen er årsværksforbrug under kategorierne "ledelse og administration", "hjælpefunktioner" og "transporttid" henført under generel ledelse og administration mv.

Sheet Aktivitet
B2: AKTIVITET VED RETTEN MÅLT SOM VÆGTEDE AFSLUTTEDE SAGER
D4: Samlet | F4: Straffesager | H4: Civile sager | J4: Øvrige Fogedsager | L4: Tvangsauktionssager | N4: Insolvensskiftesager | P4: Dødsboskiftesager | R4: Notarialforretninger
D5: =Overblik!$D$6 -> 2021 | E5: =Overblik!$E$6 -> 2022 | F5: =Overblik!$D$6 -> 2021 | G5: =Overblik!$E$6 -> 2022 | H5: =Overblik!$D$6 -> 2021 | I5: =Overblik!$E$6 -> 2022 | J5: =Overblik!$D$6 -> 2021 | K5: =Overblik!$E$6 -> 2022 | L5: =Overblik!$D$6 -> 2021 | M5: =Overblik!$E$6 -> 2022 | N5: =Overblik!$D$6 -> 2021 | O5: =Overblik!$E$6 -> 2022 | P5: =Overblik!$D$6 -> 2021 | Q5: =Overblik!$E$6 -> 2022 | R5: =Overblik!$D$6 -> 2021 | S5: =Overblik!$E$6 -> 2022
B7: SAMLET BYRETTERNE | D7: 743536 | E7: 786231 | F7: 204854 | G7: 211085 | H7: 46672 | I7: 52631 | J7: 258149 | K7: 265752.65 | L7: 7894 | M7: 8054.67 | N7: 15096 | O7: 14950.25 | P7: 56482 | Q7: 58836.65 | R7: 131209 | S7: 149500
B8: EID | C8: Ret
B9: 901 | C9: Retten i Hjørring | D9: 22772 | E9: 22999 | F9: 5237 | G9: 5186 | H9: 1392 | I9: 1457 | J9: 9171.26 | K9: 9061.68 | L9: 435.27 | M9: 406.15 | N9: 652.51 | O9: 668.11 | P9: 2340.38 | Q9: 2343.73 | R9: 3563 | S9: 4291
B10: 902 | C10: Retten i Aalborg | D10: 38604 | E10: 39835 | F10: 9159 | G10: 9558 | H10: 2825 | I10: 2835 | J10: 13845.54 | K10: 14222.56 | L10: 391.19 | M10: 407.54 | N10: 988.18 | O10: 1086.65 | P10: 3006.07 | Q10: 3079.15 | R10: 6368 | S10: 7467
B11: 903 | C11: Retten i Randers | D11: 25640 | E11: 25120 | F11: 5495 | G11: 5513 | H11: 1787 | I11: 1583 | J11: 9394.22 | K11: 9873.45 | L11: 442.86 | M11: 425.01 | N11: 830.03 | O11: 874.17 | P11: 2478.06 | Q11: 2504.75 | R11: 5026 | S11: 5437
B12: 904 | C12: Retten i Aarhus | D12: 43380 | E12: 46214 | F12: 12638 | G12: 12901 | H12: 2625 | I12: 2976 | J12: 13184.01 | K12: 14537.26 | L12: 233.91 | M12: 242.06 | N12: 1424.02 | O12: 1371.82 | P12: 2610.08 | Q12: 2932.75 | R12: 7584 | S12: 8765
B13: 905 | C13: Retten i Viborg | D13: 27005 | E13: 28346 | F13: 7095 | G13: 7375 | H13: 1651 | I13: 1736 | J13: 9457.11 | K13: 9281.59 | L13: 242.68 | M13: 290.89 | N13: 720.25 | O13: 771.46 | P13: 2341.34 | Q13: 2589.45 | R13: 5044 | S13: 6431
B14: 906 | C14: Retten i Holstebro | D14: 19807 | E14: 20105 | F14: 5824 | G14: 5663 | H14: 1069 | I14: 1091 | J14: 5867.58 | K14: 5989.13 | L14: 313.03 | M14: 341.39 | N14: 406.24 | O14: 452.87 | P14: 1787.93 | Q14: 1945.84 | R14: 4133 | S14: 5091
B15: 907 | C15: Retten i Herning | D15: 22733 | E15: 23134 | F15: 7083 | G15: 6747 | H15: 1190 | I15: 1350 | J15: 6590.17 | K15: 6400.99 | L15: 245.32 | M15: 276.63 | N15: 502.84 | O15: 528.87 | P15: 1759.88 | Q15: 1895.73 | R15: 4672 | S15: 5333
B16: 908 | C16: Retten i Horsens | D16: 20045 | E16: 21791 | F16: 4752 | G16: 5520 | H16: 1295 | I16: 1392 | J16: 7376.7 | K16: 6767.04 | L16: 252.88 | M16: 225.65 | N16: 636.16 | O16: 753.75 | P16: 1768.3 | Q16: 1766.8 | R16: 4388 | S16: 5732
B17: 909 | C17: Retten i Kolding | D17: 38841 | E17: 42308 | F17: 10473 | G17: 10912 | H17: 2525 | I17: 3114 | J17: 13895.5 | K17: 14466.35 | L17: 401.79 | M17: 494.96 | N17: 850.34 | O17: 803.72 | P17: 2725.88 | Q17: 2737.67 | R17: 6887 | S17: 7154
B18: 910 | C18: Retten i Esbjerg | D18: 24701 | E18: 25425 | F18: 6898 | G18: 6699 | H18: 1388 | I18: 1593 | J18: 8552.47 | K18: 9111.64 | L18: 244.2 | M18: 256.34 | N18: 607.74 | O18: 587.57 | P18: 2215.77 | Q18: 2124.55 | R18: 3537 | S18: 4647
B19: 911 | C19: Retten i Sønderborg | D19: 30394 | E19: 32032 | F19: 9200 | G19: 8610 | H19: 1487 | I19: 2071 | J19: 11243.78 | K19: 11651.54 | L19: 405 | M19: 353.9 | N19: 668.54 | O19: 625.99 | P19: 2396.2 | Q19: 2408.82 | R19: 4556 | S19: 5146
B20: 912 | C20: Retten i Odense | D20: 43008 | E20: 44069 | F20: 11392 | G20: 11990 | H20: 2510 | I20: 2619 | J20: 15971.52 | K20: 16693.86 | L20: 509.28 | M20: 539.63 | N20: 1378.21 | O20: 1052.37 | P20: 3374.73 | Q20: 3316.26 | R20: 6465 | S20: 7630
B21: 913 | C21: Retten i Svendborg | D21: 18432 | E21: 17900 | F21: 4155 | G21: 3895 | H21: 1120 | I21: 1071 | J21: 7725.31 | K21: 7454.87 | L21: 302.84 | M21: 246.43 | N21: 487.18 | O21: 484.35 | P21: 2023.06 | Q21: 2181.64 | R21: 3208 | S21: 3784
B22: 914 | C22: Retten i Nykøbing F. | D22: 24542 | E22: 26837 | F22: 6258 | G22: 7064 | H22: 1347 | I22: 1559 | J22: 10640.94 | K22: 10493.99 | L22: 721.81 | M22: 745.92 | N22: 525.93 | O22: 474.06 | P22: 2239.76 | Q22: 2386.37 | R22: 2267 | S22: 2939
B23: 915 | C23: Retten i Næstved | D23: 31288 | E23: 32658 | F23: 7532 | G23: 7956 | H23: 1860 | I23: 2141 | J23: 14573.64 | K23: 13929.1 | L23: 380.11 | M23: 427.56 | N23: 881.06 | O23: 753.73 | P23: 2609.11 | Q23: 2485.55 | R23: 4830 | S23: 5991
B24: 916 | C24: Retten i Holbæk | D24: 21816 | E24: 24066 | F24: 5216 | G24: 6363 | H24: 1346 | I24: 1489 | J24: 8855.84 | K24: 8909.27 | L24: 356.55 | M24: 352.88 | N24: 652.59 | O24: 568.14 | P24: 1987.98 | Q24: 1933.31 | R24: 2702 | S24: 3230
B25: 917 | C25: Retten i Roskilde | D25: 39014 | E25: 39080 | F25: 10972 | G25: 9235 | H25: 2270 | I25: 2883 | J25: 11936.93 | K25: 12420.34 | L25: 360.05 | M25: 357.96 | N25: 1215.37 | O25: 1205.94 | P25: 3146.8 | Q25: 3146.48 | R25: 6294 | S25: 6752
B26: 918 | C26: Retten i Hillerød | D26: 21814 | E26: 23443 | F26: 5520 | G26: 5923 | H26: 1339 | I26: 1527 | J26: 7436.81 | K26: 8130.19 | L26: 302.99 | M26: 277.11 | N26: 676.79 | O26: 702.71 | P26: 1946.86 | Q26: 1795.87 | R26: 4114 | S26: 5144
B27: 919 | C27: Retten i Helsingør | D27: 20906 | E27: 23365 | F27: 4822 | G27: 4702 | H27: 1500 | I27: 1696 | J27: 6611.28 | K27: 9150.26 | L27: 253.53 | M27: 282.6 | N27: 689.86 | O27: 864.06 | P27: 1901.77 | Q27: 2276.88 | R27: 2985 | S27: 3030
B28: 920 | C28: Retten i Lyngby | D28: 23008 | E28: 27343 | F28: 4277 | G28: 4710 | H28: 2140 | I28: 2848 | J28: 6040.33 | K28: 6809.91 | L28: 97.05 | M28: 131.84 | N28: 69.82 | O28: 48.27 | P28: 2456.88 | Q28: 2531.68 | R28: 16320 | S28: 19010
B29: 921 | C29: Retten i Glostrup | D29: 55903 | E29: 55894 | F29: 16086 | G29: 16011 | H29: 3546 | I29: 3721 | J29: 24348.3 | K29: 23064.6 | L29: 305.28 | M29: 312.28 | N29: 51.72 | O29: 63.74 | P29: 4270.21 | Q29: 4085.1 | R29: 4206 | S29: 4634
B30: 922 | C30: Retten på Frederiksberg | D30: 37125 | E30: 42119 | F30: 12149 | G30: 13229 | H30: 2186 | I30: 2662 | J30: 14990.8 | K30: 14940.99 | L30: 384.5 | M30: 295.21 | N30: 40.89 | O30: 27.66 | P30: 1623.29 | Q30: 2754.09 | R30: 4441 | S30: 4038
B31: 923 | C31: Københavns Byret | D31: 88653 | E31: 97622 | F31: 31652 | G31: 34339 | H31: 6016 | I31: 6921 | J31: 19271.71 | K31: 21022.85 | L31: 262.71 | M31: 309.79 | N31: 52.92 | O31: 52.92 | P31: 2885.49 | Q31: 3018.22 | R31: 16911 | S31: 16594
B33: 1) Vægtningen på tværs af sagstyper betyder, at antallet af vægtede sager inden for de enkelte sagområder ikke summer op til det samlede antal vægtede sager.

Sheet Målopf.Straf
B2: MÅLOPFYLDELSE STRAFFESAGER (80 pct. hurtigste sager)
D4: Nævninge- og domsmandssager (hfh.) | F4: Tilståelsessager | H4: Sager uden domsmænd - bødesager | J4: Sager uden domsmænd - øvrige | L4: Samlet VVV-sager | N4: Rettens andel af fristoverskridelser
D5: =Overblik!$D$6 -> 2021 | E5: =Overblik!$E$6 -> 2022 | F5: =Overblik!$D$6 -> 2021 | G5: =Overblik!$E$6 -> 2022 | H5: =Overblik!$D$6 -> 2021 | I5: =Overblik!$E$6 -> 2022 | J5: =Overblik!$D$6 -> 2021 | K5: =Overblik!$E$6 -> 2022 | L5: =Overblik!$D$6 -> 2021 | M5: =Overblik!$E$6 -> 2022 | N5: =Overblik!$D$6 -> 2021 | O5: =Overblik!$E$6 -> 2022
D6: 80 pct. | F6: 80 pct. | H6: 80 pct. | J6: 80 pct. | L6: < 37 dage
B8: MÅL | D8: < 88 dage | F8: < 43 dage | H8: < 10 dage | J8: < 93 dage | L8: 59 pct. | N8: 16 pct.
B9: SAMLET BYRETTERNE | D9: 136 | E9: 152 | F9: 66 | G9: 62 | H9: 4 | I9: 4 | J9: 145 | K9: 170 | L9: 0.4 | M9: 0.35 | N9: 0.24 | O9: 0.26
B10: 5. BEDSTE RET | D10: 96 | E10: =SMALL(E12:E34,5) -> 122 | F10: 37 | G10: =SMALL(G12:G34,5) -> 41 | H10: 2 | I10: =SMALL(I12:I34,5) -> 2 | J10: =SMALL(J12:J34,5) -> 104 | K10: =SMALL(K12:K34,5) -> 103 | L10: =LARGE(L12:L34,5) -> 0.5 | M10: =LARGE(M12:M34,5) -> 0.46 | N10: 0.1 | O10: =SMALL(O12:O34,5) -> 0.13
B11: EID | C11: Ret
B12: 901 | C12: Retten i Hjørring | D12: 126 | E12: 117 | F12: 71 | G12: 55 | H12: 5 | I12: 5 | J12: 138 | K12: 173 | L12: 0.42 | M12: 0.34 | N12: 0.21 | O12: 0.22
B13: 902 | C13: Retten i Aalborg | D13: 121 | E13: 134 | F13: 58 | G13: 66 | H13: 4 | I13: 3 | J13: 133 | K13: 163 | L13: 0.29 | M13: 0.23 | N13: 0.01 | O13: 0.02
B14: 903 | C14: Retten i Randers | D14: 137 | E14: 130 | F14: 96 | G14: 115 | H14: 7 | I14: 7 | J14: 185 | K14: 178 | L14: 0.56 | M14: 0.37 | N14: 0.29 | O14: 0.22
B15: 904 | C15: Retten i Aarhus | D15: 213 | E15: 266 | F15: 144 | G15: 144 | H15: 10 | I15: 11 | J15: 356 | K15: 463 | L15: 0.45 | M15: 0.51 | N15: 0.24 | O15: 0.3
B16: 905 | C16: Retten i Viborg | D16: 157 | E16: 221 | F16: 73 | G16: 68 | H16: 6 | I16: 4 | J16: 123 | K16: 121 | L16: 0.67 | M16: 0.42 | N16: 0 | O16: 0.13
B17: 906 | C17: Retten i Holstebro | D17: 115 | E17: 101 | F17: 37 | G17: 26 | H17: 3 | I17: 4 | J17: 102 | K17: 70 | L17: 0.48 | M17: 0.41 | N17: 0.55 | O17: 0.38
B18: 907 | C18: Retten i Herning | D18: 96 | E18: 122 | F18: 76 | G18: 89 | H18: 1 | I18: 1 | J18: 112 | K18: 136 | L18: 0.61 | M18: 0.34 | N18: 0.11 | O18: 0.23
B19: 908 | C19: Retten i Horsens | D19: 222 | E19: 266 | F19: 120 | G19: 176 | H19: 6 | I19: 8 | J19: 213 | K19: 218 | L19: 0.27 | M19: 0.21 | N19: 0.68 | O19: 0.79
B20: 909 | C20: Retten i Kolding | D20: 183 | E20: 147 | F20: 142 | G20: 67 | H20: 6 | I20: 3 | J20: 284 | K20: 268 | L20: 0.5 | M20: 0.51 | N20: 0.16 | O20: 0.05
B21: 910 | C21: Retten i Esbjerg | D21: 183 | E21: 228 | F21: 26 | G21: 36 | H21: 3 | I21: 3 | J21: 185 | K21: 147 | L21: 0.33 | M21: 0.35 | N21: 0.34 | O21: 0.35
B22: 911 | C22: Retten i Sønderborg | D22: 147 | E22: 164 | F22: 65 | G22: 63 | H22: 10 | I22: 10 | J22: 116 | K22: 141 | L22: 0.48 | M22: 0.31 | N22: 0.43 | O22: 0.49
B23: 912 | C23: Retten i Odense | D23: 146 | E23: 110 | F23: 99 | G23: 43 | H23: 2 | I23: 2 | J23: 125 | K23: 81 | L23: 0.23 | M23: 0.27 | N23: 0.35 | O23: 0.19
B24: 913 | C24: Retten i Svendborg | D24: 91 | E24: 126 | F24: 55 | G24: 78 | H24: 8 | I24: 16 | J24: 77 | K24: 163 | L24: 0.61 | M24: 0.37 | N24: 0.11 | O24: 0.11
B25: 914 | C25: Retten i Nykøbing F. | D25: 65 | E25: 69 | F25: 29 | G25: 36 | H25: 3 | I25: 2 | J25: 37 | K25: 54 | L25: 0.49 | M25: 0.5 | N25: 0.04 | O25: 0.14
B26: 915 | C26: Retten i Næstved | D26: 84 | E26: 124 | F26: 39 | G26: 41 | H26: 2 | I26: 2 | J26: 102 | K26: 103 | L26: 0.46 | M26: 0.57 | N26: 0.17 | O26: 0.2
B27: 916 | C27: Retten i Holbæk | D27: 142 | E27: 184 | F27: 42 | G27: 80 | H27: 4 | I27: 6 | J27: 128 | K27: 243 | L27: 0.32 | M27: 0.2 | N27: 0.28 | O27: 0.32
B28: 917 | C28: Retten i Roskilde | D28: 122 | E28: 151 | F28: 37 | G28: 31 | H28: 2 | I28: 1 | J28: 108 | K28: 185 | L28: 0.18 | M28: 0.29 | N28: 0.25 | O28: 0.22
B29: 918 | C29: Retten i Hillerød | D29: 117 | E29: 165 | F29: 76 | G29: 70 | H29: 13 | I29: 7 | J29: 130 | K29: 182 | L29: 0.35 | M29: 0.38 | N29: 0.37 | O29: 0.3
B30: 919 | C30: Retten i Helsingør | D30: 134 | E30: 150 | F30: 72 | G30: 63 | H30: 2 | I30: 3 | J30: 104 | K30: 89 | L30: 0.4 | M30: 0.28 | N30: 0.12 | O30: 0.12
B31: 920 | C31: Retten i Lyngby | D31: 122 | E31: 142 | F31: 82 | G31: 51 | H31: 1 | I31: 2 | J31: 119 | K31: 113 | L31: 0.4 | M31: 0.21 | N31: 0.29 | O31: 0.29
B32: 921 | C32: Retten i Glostrup | D32: 204 | E32: 265 | F32: 82 | G32: 74 | H32: 16 | I32: 15 | J32: 308 | K32: 290 | L32: 0.2 | M32: 0.08 | N32: 0.1 | O32: 0.19
B33: 922 | C33: Retten på Frederiksberg | D33: 132 | E33: 195 | F33: 51 | G33: 64 | H33: 8 | I33: 6 | J33: 158 | K33: 232 | L33: 0.1 | M33: 0.13 | N33: 0.43 | O33: 0.57
B34: 923 | C34: Københavns Byret | D34: 153 | E34: 156 | F34: 64 | G34: 46 | H34: 1 | I34: 1 | J34: 193 | K34: 248 | L34: 0.45 | M34: 0.46 | N34: 0.19 | O34: 0.16
B36: 1) Målene for de enkelte sagstyper er opstillet i samarbejde med byretterne. De aktuelle mål trådte i kraft i 2021.

Sheet Målopf.VVV
B2: MÅLOPFYLDELSE VVV-SAGER (PROCENT)
D4: Voldssager | F4: Voldtægtssager | H4: Våbensager | J4: Fast-track sager om ungdomskriminalitet
D5: =Overblik!$D$6 -> 2021 | E5: =Overblik!$E$6 -> 2022 | F5: =Overblik!$D$6 -> 2021 | G5: =Overblik!$E$6 -> 2022 | H5: =Overblik!$D$6 -> 2021 | I5: =Overblik!$E$6 -> 2022 | J5: =Overblik!$D$6 -> 2021 | K5: =Overblik!$E$6 -> 2022
D6: <37 dage | F6: <37 dage | H6: <37 dage | J6: <37 dage
B8: SAMLET BYRETTERNE | D8: 0.38 | E8: 0.35 | F8: 0.34 | G8: 0.24 | H8: 0.51 | I8: 0.43 | J8: 0.46 | K8: 0.39
B9: 5. BEDSTE RET | D9: 0.58 | E9: =LARGE(E11:E33,5) -> 0.45 | F9: =LARGE(F11:F33,5) -> 0.56 | G9: =LARGE(G11:G33,5) -> 0.4 | H9: =LARGE(H11:H33,5) -> 0.68 | I9: =LARGE(I11:I33,5) -> 0.6 | J9: 0.72 | K9: =LARGE(K11:K33,5) -> 0.57
B10: EID | C10: Ret
B11: 901 | C11: Retten i Hjørring | D11: 0.35 | E11: 0.35 | F11: 0.38 | G11: 0.13 | H11: 0.83 | I11: 0.38 | J11: 0.52 | K11: 0.49
B12: 902 | C12: Retten i Aalborg | D12: 0.24 | E12: 0.23 | F12: 0.38 | G12: 0.2 | H12: 0.41 | I12: 0.26 | J12: 0.27 | K12: 0.12
B13: 903 | C13: Retten i Randers | D13: 0.59 | E13: 0.37 | F13: 0.2 | G13: 0.4 | H13: 0.52 | I13: 0.27 | J13: 0.73 | K13: 0.5
B14: 904 | C14: Retten i Aarhus | D14: 0.45 | E14: 0.51 | F14: 0.22 | G14: 0 | H14: 0.61 | I14: 0.55 | J14: 0.44 | K14: 0.35
B15: 905 | C15: Retten i Viborg | D15: 0.65 | E15: 0.45 | F15: 0.71 | G15: 0.09 | H15: 0.89 | I15: 0.42 | J15: 0.78 | K15: 0.45
B16: 906 | C16: Retten i Holstebro | D16: 0.43 | E16: 0.42 | F16: 0.44 | G16: 0.19 | H16: 0.73 | I16: 0.53 | J16: 0.67 | K16: 0.65
B17: 907 | C17: Retten i Herning | D17: 0.65 | E17: 0.33 | F17: 0.5 | G17: 0.15 | H17: 0.38 | I17: 0.64 | J17: 0.73 | K17: 0.51
B18: 908 | C18: Retten i Horsens | D18: 0.26 | E18: 0.2 | F18: 0.5 | G18: 0.17 | H18: 0.25 | I18: 0.25 | J18: 0.53 | K18: 0.18
B19: 909 | C19: Retten i Kolding | D19: 0.49 | E19: 0.5 | F19: 0.56 | G19: 0.45 | H19: 0.55 | I19: 0.6 | J19: 0.72 | K19: 0.58
B20: 910 | C20: Retten i Esbjerg | D20: 0.31 | E20: 0.36 | F20: 0.27 | G20: 0.4 | H20: 0.44 | I20: 0.31 | J20: 0.54 | K20: 0.52
B21: 911 | C21: Retten i Sønderborg | D21: 0.47 | E21: 0.29 | F21: 0.56 | G21: 0.3 | H21: 0.46 | I21: 0.5 | J21: 0.61 | K21: 0.26
B22: 912 | C22: Retten i Odense | D22: 0.21 | E22: 0.26 | F22: 0.14 | G22: 0.27 | H22: 0.4 | I22: 0.4 | J22: 0.18 | K22: 0.34
B23: 913 | C23: Retten i Svendborg | D23: 0.58 | E23: 0.37 | F23: 0.63 | G23: 0.5 | H23: 1 | I23: 0.17 | J23: 0.61 | K23: 0.57
B24: 914 | C24: Retten i Nykøbing F. | D24: 0.46 | E24: 0.44 | F24: 0.6 | G24: 0.78 | H24: 0.67 | I24: 0.64 | J24: 0.57 | K24: 0.49
B25: 915 | C25: Retten i Næstved | D25: 0.41 | E25: 0.56 | F25: 0.6 | G25: 0.43 | H25: 0.63 | I25: 0.67 | J25: 0.55 | K25: 0.76
B26: 916 | C26: Retten i Holbæk | D26: 0.29 | E26: 0.15 | F26: 0.5 | G26: 0.33 | H26: 0.43 | I26: 0.39 | J26: 0.25 | K26: 0.3
B27: 917 | C27: Retten i Roskilde | D27: 0.12 | E27: 0.26 | F27: 0.3 | G27: 0.31 | H27: 0.54 | I27: 0.54 | J27: 0.22 | K27: 0.33
B28: 918 | C28: Retten i Hillerød | D28: 0.27 | E28: 0.38 | F28: 0.27 | G28: 0.3 | H28: 0.68 | I28: 0.42 | J28: 0.5 | K28: 0.46
B29: 919 | C29: Retten i Helsingør | D29: 0.36 | E29: 0.29 | F29: 0.33 | G29: 0.13 | H29: 0.63 | I29: 0.5 | J29: 0.5 | K29: 0.6
B30: 920 | C30: Retten i Lyngby | D30: 0.39 | E30: 0.2 | F30: 0 | G30: 0.14 | H30: 0.5 | I30: 1 | J30: 0.42 | K30: 0.16
B31: 921 | C31: Retten i Glostrup | D31: 0.19 | E31: 0.05 | F31: 0 | G31: 0.12 | H31: 0.3 | I31: 0.18 | J31: 0.19 | K31: 0.05
B32: 922 | C32: Retten på Frederiksberg | D32: 0.1 | E32: 0.15 | F32: 0 | G32: 0.05 | H32: 0.14 | I32: 0.08 | J32: 0.14 | K32: 0.29
B33: 923 | C33: Københavns Byret | D33: 0.43 | E33: 0.45 | F33: 0.19 | G33: 0 | H33: 0.59 | I33: 0.58 | J33: 0.42 | K33: 0.53
B35: 1) Målene for voldssager, voldtægtssager, våbensager og fast-track sager om ungdomskriminalitet er fastsat eksternt.

Sheet Målopf.Civil
B2: MÅLOPFYLDELSE CIVILE SAGER (80 pct. hurtigste sager)
D4: Alle alm. sager, boligsager og småsager | F4: Hfh. almindelige sager og boligsager | H4: Hfh. småsager | J4: Familieret - §6- og 7-sager | L4: Familieret - prøvelsessager efter forenklet proces | N4: Tvangsfuldbyrdelses- sager - forældreansvarsloven | P4: Konkurskarantæne- sager
D5: =Overblik!$D$6 -> 2021 | E5: =Overblik!$E$6 -> 2022 | F5: =Overblik!$D$6 -> 2021 | G5: =Overblik!$E$6 -> 2022 | H5: =Overblik!$D$6 -> 2021 | I5: =Overblik!$E$6 -> 2022 | J5: =Overblik!$D$6 -> 2021 | K5: =Overblik!$E$6 -> 2022 | L5: =Overblik!$D$6 -> 2021 | M5: =Overblik!$E$6 -> 2022 | N5: =Overblik!$D$6 -> 2021 | O5: =Overblik!$E$6 -> 2022 | P5: =Overblik!$D$6 -> 2021 | Q5: =Overblik!$E$6 -> 2022
D6: 80 pct. | F6: 80 pct. | H6: 80 pct. | J6: 80 pct. | L6: 80 pct. | N6: 80 pct. | P6: 80 pct.
B8: MÅL | D8: < 122 dage | F8: < 426 dage | H8: < 213 dage | J8: < 120 dage | L8: < 70 dage | N8: < 30 dage | P8: < 120 dage
B9: SAMLET BYRETTERNE | D9: 123 | E9: 128 | F9: 463 | G9: 497 | H9: 359 | I9: 413 | J9: 122 | K9: 137 | L9: 48 | M9: 47 | N9: 15 | O9: 14 | P9: 91 | Q9: 96
B10: 5. BEDSTE RET | D10: 95 | E10: =SMALL(E12:E34,5) -> 89 | F10: 391 | G10: =SMALL(G12:G34,5) -> 429 | H10: 193 | I10: =SMALL(I12:I34,5) -> 213 | J10: 98 | K10: =SMALL(K12:K34,5) -> 121 | L10: 32 | M10: =SMALL(M12:M34,5) -> 31 | N10: 11 | O10: =SMALL(O12:O34,5) -> 11 | P10: 62 | Q10: =SMALL(Q12:Q34,5) -> 64
B11: EID | C11: Ret
B12: 901 | C12: Retten i Hjørring | D12: 101 | E12: 88 | F12: 406 | G12: 401 | H12: 208 | I12: 218 | J12: 142 | K12: 130 | L12: 50 | M12: 53 | N12: 20 | O12: 20 | P12: 110 | Q12: 106
B13: 902 | C13: Retten i Aalborg | D13: 120 | E13: 89 | F13: 523 | G13: 507 | H13: 278 | I13: 190 | J13: 153 | K13: 123 | L13: 78 | M13: 66 | N13: 19 | O13: 14 | P13: 153 | Q13: 94
B14: 903 | C14: Retten i Randers | D14: 139 | E14: 98 | F14: 506 | G14: 545 | H14: 395 | I14: 393 | J14: 131 | K14: 121 | L14: 40 | M14: 30 | N14: 9 | O14: 12 | P14: 87 | Q14: 136
B15: 904 | C15: Retten i Aarhus | D15: 127 | E15: 115 | F15: 659 | G15: 693 | H15: 281 | I15: 291 | J15: 156 | K15: 153 | L15: 29 | M15: 16 | N15: 15 | O15: 13 | P15: 79 | Q15: 84
B16: 905 | C16: Retten i Viborg | D16: 159 | E16: 146 | F16: 537 | G16: 567 | H16: 261 | I16: 202 | J16: 141 | K16: 141 | L16: 105 | M16: 50 | N16: 19 | O16: 12 | P16: 129 | Q16: 90
B17: 906 | C17: Retten i Holstebro | D17: 99 | E17: 88 | F17: 452 | G17: 379 | H17: 129 | I17: 129 | J17: 109 | K17: 130 | L17: 42 | M17: 45 | N17: 10 | O17: 7 | P17: 65 | Q17: 93
B18: 907 | C18: Retten i Herning | D18: 97 | E18: 99 | F18: 327 | G18: 482 | H18: 193 | I18: 227 | J18: 95 | K18: 127 | L18: 28 | M18: 29 | N18: 12 | O18: 9 | P18: 62 | Q18: 99
B19: 908 | C19: Retten i Horsens | D19: 144 | E19: 139 | F19: 467 | G19: 622 | H19: 223 | I19: 300 | J19: 129 | K19: 168 | L19: 63 | M19: 92 | N19: 11 | O19: 13 | P19: 152 | Q19: 137
B20: 909 | C20: Retten i Kolding | D20: 187 | E20: 121 | F20: 543 | G20: 535 | H20: 440 | I20: 318 | J20: 119 | K20: 130 | L20: 49 | M20: 52 | N20: 12 | O20: 17 | P20: 109 | Q20: 158
B21: 910 | C21: Retten i Esbjerg | D21: 149 | E21: 147 | F21: 615 | G21: 612 | H21: 331 | I21: 354 | J21: 126 | K21: 117 | L21: 31 | M21: 41 | N21: 18 | O21: 16 | P21: 167 | Q21: 95
B22: 911 | C22: Retten i Sønderborg | D22: 81 | E22: 102 | F22: 358 | G22: 429 | H22: 212 | I22: 293 | J22: 127 | K22: 142 | L22: 42 | M22: 60 | N22: 23 | O22: 22 | P22: 89 | Q22: 137
B23: 912 | C23: Retten i Odense | D23: 113 | E23: 97 | F23: 445 | G23: 504 | H23: 236 | I23: 213 | J23: 119 | K23: 108 | L23: 26 | M23: 31 | N23: 8 | O23: 7 | P23: 89 | Q23: 92
B24: 913 | C24: Retten i Svendborg | D24: 113 | E24: 94 | F24: 401 | G24: 441 | H24: 353 | I24: 332 | J24: 135 | K24: 125 | L24: 35 | M24: 29 | N24: 9 | O24: 12 | P24: 110 | Q24: 83
B25: 914 | C25: Retten i Nykøbing F. | D25: 60 | E25: 66 | F25: 316 | G25: 334 | H25: 138 | I25: 150 | J25: 88 | K25: 101 | L25: 41 | M25: 42 | N25: 11 | O25: 10 | P25: 70 | Q25: 64
B26: 915 | C26: Retten i Næstved | D26: 56 | E26: 76 | F26: 461 | G26: 452 | H26: 169 | I26: 228 | J26: 132 | K26: 151 | L26: 46 | M26: 45 | N26: 20 | O26: 11 | P26: 94 | Q26: 100
B27: 916 | C27: Retten i Holbæk | D27: 118 | E27: 114 | F27: 491 | G27: 583 | H27: 298 | I27: 306 | J27: 109 | K27: 138 | L27: 61 | M27: 62 | N27: 13 | O27: 13 | P27: 116 | Q27: 106
B28: 917 | C28: Retten i Roskilde | D28: 95 | E28: 118 | F28: 456 | G28: 517 | H28: 305 | I28: 341 | J28: 150 | K28: 159 | L28: 67 | M28: 44 | N28: 17 | O28: 12 | P28: 63 | Q28: 65
B29: 918 | C29: Retten i Hillerød | D29: 102 | E29: 116 | F29: 419 | G29: 483 | H29: 298 | I29: 278 | J29: 143 | K29: 187 | L29: 49 | M29: 52 | N29: 20 | O29: 17 | P29: 70 | Q29: 133
B30: 919 | C30: Retten i Helsingør | D30: 120 | E30: 118 | F30: 515 | G30: 499 | H30: 339 | I30: 249 | J30: 99 | K30: 143 | L30: 38 | M30: 40 | N30: 18 | O30: 21 | P30: 94 | Q30: 109
B31: 920 | C31: Retten i Lyngby | D31: 113 | E31: 110 | F31: 391 | G31: 404 | H31: 196 | I31: 230 | J31: 98 | K31: 125 | L31: 43 | M31: 58 | N31: 32 | O31: 27 | P31: - | Q31: 8
B32: 921 | C32: Retten i Glostrup | D32: 99 | E32: 132 | F32: 499 | G32: 586 | H32: 214 | I32: 296 | J32: 122 | K32: 194 | L32: 66 | M32: 57 | N32: 17 | O32: 24 | P32: 6 | Q32: 6
B33: 922 | C33: Retten på Frederiksberg | D33: 109 | E33: 126 | F33: 452 | G33: 495 | H33: 218 | I33: 231 | J33: 96 | K33: 107 | L33: 58 | M33: 82 | N33: 21 | O33: 18 | P33: 8 | Q33: 10
B34: 923 | C34: Københavns Byret | D34: 165 | E34: 204 | F34: 451 | G34: 479 | H34: 473 | I34: 606 | J34: 125 | K34: 143 | L34: 59 | M34: 51 | N34: 12 | O34: 11 | P34: 19 | Q34: 8
B36: 1) Målene for de enkelte sagstyper er opstillet i samarbejde med byretterne. De aktuelle mål trådte i kraft i 2021.

Sheet Målopf.Foged
B2: MÅLOPFYLDELSE FOGEDSAGER (PROCENT)
D4: Alm. fogedsager og betalingspåkrav | F4: Særlige fogedsager | H4: Tvangsauktion solgt på eller efter 1. auktion
D5: =Overblik!$D$6 -> 2021 | E5: =Overblik!$E$6 -> 2022 | F5: =Overblik!$D$6 -> 2021 | G5: =Overblik!$E$6 -> 2022 | H5: =Overblik!$D$6 -> 2021 | I5: =Overblik!$E$6 -> 2022
D6: < 3 MDR. | F6: < 2 MDR. | H6: < 5 MDR.
B8: MÅL | D8: 70 pct. | F8: 70 pct. | H8: 80 pct.
B9: SAMLET BYRETTERNE | D9: 0.7 | E9: 0.77 | F9: 0.74 | G9: 0.8 | H9: 0.77 | I9: 0.83
B10: 5. BEDSTE RET | D10: 0.85 | E10: =LARGE(E12:E34,5) -> 0.86 | F10: 0.81 | G10: =LARGE(G12:G34,5) -> 0.88 | H10: 0.93 | I10: =LARGE(I12:I34,5) -> 0.94
B11: EID | C11: Ret
B12: 901 | C12: Retten i Hjørring | D12: 0.6 | E12: 0.72 | F12: 0.66 | G12: 0.8 | H12: 0.74 | I12: 0.76
B13: 902 | C13: Retten i Aalborg | D13: 0.83 | E13: 0.75 | F13: 0.7 | G13: 0.77 | H13: 0.78 | I13: 0.83
B14: 903 | C14: Retten i Randers | D14: 0.5 | E14: 0.78 | F14: 0.5 | G14: 0.73 | H14: 0.28 | I14: 0.73
B15: 904 | C15: Retten i Aarhus | D15: 0.8 | E15: 0.79 | F15: 0.89 | G15: 0.92 | H15: 1 | I15: 0.4
B16: 905 | C16: Retten i Viborg | D16: 0.49 | E16: 0.74 | F16: 0.74 | G16: 0.81 | H16: 0.51 | I16: 0.85
B17: 906 | C17: Retten i Holstebro | D17: 0.94 | E17: 0.88 | F17: 0.93 | G17: 0.89 | H17: 0.95 | I17: 0.94
B18: 907 | C18: Retten i Herning | D18: 0.78 | E18: 0.88 | F18: 0.81 | G18: 0.86 | H18: 0.83 | I18: 0.85
B19: 908 | C19: Retten i Horsens | D19: 0.63 | E19: 0.84 | F19: 0.74 | G19: 0.88 | H19: 0.63 | I19: 0.89
B20: 909 | C20: Retten i Kolding | D20: 0.73 | E20: 0.81 | F20: 0.74 | G20: 0.86 | H20: 0.66 | I20: 0.77
B21: 910 | C21: Retten i Esbjerg | D21: 0.87 | E21: 0.85 | F21: 0.77 | G21: 0.76 | H21: 0.81 | I21: 0.78
B22: 911 | C22: Retten i Sønderborg | D22: 0.72 | E22: 0.72 | F22: 0.7 | G22: 0.76 | H22: 0.74 | I22: 0.73
B23: 912 | C23: Retten i Odense | D23: 0.38 | E23: 0.68 | F23: 0.71 | G23: 0.74 | H23: 0.72 | I23: 0.83
B24: 913 | C24: Retten i Svendborg | D24: 0.68 | E24: 0.6 | F24: 0.71 | G24: 0.73 | H24: 0.91 | I24: 0.79
B25: 914 | C25: Retten i Nykøbing F. | D25: 0.87 | E25: 0.91 | F25: 0.83 | G25: 0.92 | H25: 0.87 | I25: 0.95
B26: 915 | C26: Retten i Næstved | D26: 0.82 | E26: 0.86 | F26: 0.79 | G26: 0.88 | H26: 0.74 | I26: 0.88
B27: 916 | C27: Retten i Holbæk | D27: 0.83 | E27: 0.85 | F27: 0.69 | G27: 0.74 | H27: 0.93 | I27: 0.92
B28: 917 | C28: Retten i Roskilde | D28: 0.85 | E28: 0.87 | F28: 0.75 | G28: 0.87 | H28: 0.79 | I28: 0.95
B29: 918 | C29: Retten i Hillerød | D29: 0.35 | E29: 0.69 | F29: 0.49 | G29: 0.71 | H29: 0.5 | I29: 1
B30: 919 | C30: Retten i Helsingør | D30: 0.62 | E30: 0.66 | F30: 0.71 | G30: 0.74 | H30: 0.64 | I30: 0.73
B31: 920 | C31: Retten i Lyngby | D31: 0.84 | E31: 0.85 | F31: 0.74 | G31: 0.89 | H31: 0 | I31: 1
B32: 921 | C32: Retten i Glostrup | D32: 0.66 | E32: 0.6 | F32: 0.8 | G32: 0.7 | H32: 0.67 | I32: 0.5
B33: 922 | C33: Retten på Frederiksberg | D33: 0.74 | E33: 0.84 | F33: 0.67 | G33: 0.77 | H33: 0.98 | I33: 0.75
B34: 923 | C34: Københavns Byret | D34: 0.66 | E34: 0.76 | F34: 0.67 | G34: 0.82 | H34: 0.2 | I34: 0.5
B36: 1) Målene for de enkelte sagstyper er opstillet i samarbejde med byretterne. De aktuelle mål trådte i kraft i 2019.

Sheet Målopf.Skifte
B2: MÅLOPFYLDELSE SKIFTESAGER (PROCENT)
D4: Udlevering af bo | F4: Tvangsopløsningssager (eksklusive likvidation) | H4: Gældssanering (kun indledte sager)
D5: =Overblik!$D$6 -> 2021 | E5: =Overblik!$E$6 -> 2022 | F5: =Overblik!$D$6 -> 2021 | G5: =Overblik!$E$6 -> 2022 | H5: =Overblik!$D$6 -> 2021 | I5: =Overblik!$E$6 -> 2022
D6: <2 MDR. | F6: <3 MDR. | H6: <9 MDR.
B8: MÅL | D8: 80 pct. | F8: 75 pct. | H8: 75 pct.
B9: SAMLET BYRETTERNE | D9: 0.81 | E9: 0.78 | F9: 0.81 | G9: 0.85 | H9: 0.81 | I9: 0.78
B10: 5. BEDSTE RET | D10: 0.88 | E10: =LARGE(E12:E34,5) -> 0.88 | F10: 0.93 | G10: =LARGE(G12:G34,5) -> 0.9 | H10: 0.88 | I10: =LARGE(I12:I34,5) -> 0.84
B11: EID | C11: Ret
B12: 901 | C12: Retten i Hjørring | D12: 0.81 | E12: 0.74 | F12: 0.84 | G12: 0.87 | H12: 0.94 | I12: 0.77
B13: 902 | C13: Retten i Aalborg | D13: 0.72 | E13: 0.45 | F13: 0.76 | G13: 0.82 | H13: 0.86 | I13: 0.73
B14: 903 | C14: Retten i Randers | D14: 0.84 | E14: 0.89 | F14: 0.59 | G14: 0.89 | H14: 0.81 | I14: 0.78
B15: 904 | C15: Retten i Aarhus | D15: 0.68 | E15: 0.71 | F15: 0.9 | G15: 0.85 | H15: 0.84 | I15: 0.84
B16: 905 | C16: Retten i Viborg | D16: 0.57 | E16: 0.78 | F16: 0.64 | G16: 0.98 | H16: 0.88 | I16: 0.7
B17: 906 | C17: Retten i Holstebro | D17: 0.9 | E17: 0.82 | F17: 0.96 | G17: 0.85 | H17: 0.91 | I17: 0.95
B18: 907 | C18: Retten i Herning | D18: 0.79 | E18: 0.76 | F18: 0.8 | G18: 0.9 | H18: 0.86 | I18: 0.72
B19: 908 | C19: Retten i Horsens | D19: 0.69 | E19: 0.73 | F19: 0.83 | G19: 0.94 | H19: 0.83 | I19: 0.69
B20: 909 | C20: Retten i Kolding | D20: 0.88 | E20: 0.84 | F20: 0.86 | G20: 0.66 | H20: 0.59 | I20: 0.85
B21: 910 | C21: Retten i Esbjerg | D21: 0.9 | E21: 0.92 | F21: 0.77 | G21: 0.77 | H21: 0.75 | I21: 0.79
B22: 911 | C22: Retten i Sønderborg | D22: 0.83 | E22: 0.69 | F22: 0.7 | G22: 0.83 | H22: 0.92 | I22: 0.8
B23: 912 | C23: Retten i Odense | D23: 0.78 | E23: 0.76 | F23: 0.93 | G23: 0.91 | H23: 0.87 | I23: 0.84
B24: 913 | C24: Retten i Svendborg | D24: 0.85 | E24: 0.81 | F24: 0.72 | G24: 0.78 | H24: 0.76 | I24: 0.69
B25: 914 | C25: Retten i Nykøbing F. | D25: 0.92 | E25: 0.91 | F25: 0.9 | G25: 0.85 | H25: 0.83 | I25: 0.87
B26: 915 | C26: Retten i Næstved | D26: 0.86 | E26: 0.81 | F26: 0.97 | G26: 0.83 | H26: 0.86 | I26: 0.94
B27: 916 | C27: Retten i Holbæk | D27: 0.83 | E27: 0.88 | F27: 0.85 | G27: 0.86 | H27: 0.78 | I27: 0.83
B28: 917 | C28: Retten i Roskilde | D28: 0.85 | E28: 0.88 | F28: 0.84 | G28: 0.87 | H28: 0.82 | I28: 0.79
B29: 918 | C29: Retten i Hillerød | D29: 0.87 | E29: 0.85 | F29: 0.84 | G29: 0.91 | H29: 0.81 | I29: 0.69
B30: 919 | C30: Retten i Helsingør | D30: 0.84 | E30: 0.82 | F30: 0.96 | G30: 0.84 | H30: 0.6 | I30: 0.71
B31: 920 | C31: Retten i Lyngby | D31: 0.86 | E31: 0.87 | F31: - | G31: - | H31: - | I31: -
B32: 921 | C32: Retten i Glostrup | D32: 0.83 | E32: 0.76 | F32: - | G32: - | H32: - | I32: -
B33: 922 | C33: Retten på Frederiksberg | D33: 0.65 | E33: 0.49 | F33: - | G33: - | H33: - | I33: -
B34: 923 | C34: Københavns Byret | D34: 0.84 | E34: 0.82 | F34: - | G34: - | H34: - | I34: -
B36: 1) Målene for de enkelte sagstyper er opstillet i samarbejde med byretterne. De aktuelle mål trådte i kraft i 2019.

Sheet Sagstid.Straf
B2: GENNEMSNITLIG SAGSBEHANDLINGSTID STRAFFESAGER (DAGE)
D4: Nævningesager | F4: Domsmandssager | H4: Sager uden domsmænd | J4: Tilståelsessager
D5: =Overblik!$D$6 -> 2021 | E5: =Overblik!$E$6 -> 2022 | F5: =Overblik!$D$6 -> 2021 | G5: =Overblik!$E$6 -> 2022 | H5: =Overblik!$D$6 -> 2021 | I5: =Overblik!$E$6 -> 2022 | J5: =Overblik!$D$6 -> 2021 | K5: =Overblik!$E$6 -> 2022
B6: SAMLET BYRETTERNE | D6: 244 | E6: 242 | F6: 222 | G6: 255 | H6: 40 | I6: 42 | J6: 132 | K6: 124
B7: 5. BEDSTE RET | D7: 118 | E7: =SMALL(E9:E31,5) -> 136 | F7: 154 | G7: =SMALL(G9:G31,5) -> 178 | H7: 21 | I7: =SMALL(I9:I31,5) -> 21 | J7: 71 | K7: =SMALL(K9:K31,5) -> 71
B8: EID | C8: Ret
B9: 901 | C9: Retten i Hjørring | D9: 141 | E9: 131 | F9: 196 | G9: 182 | H9: 42 | I9: 44 | J9: 106 | K9: 92
B10: 902 | C10: Retten i Aalborg | D10: 2 | E10: 209 | F10: 189 | G10: 206 | H10: 37 | I10: 35 | J10: 94 | K10: 110
B11: 903 | C11: Retten i Randers | D11: 207 | E11: 257 | F11: 229 | G11: 222 | H11: 54 | I11: 49 | J11: 163 | K11: 176
B12: 904 | C12: Retten i Aarhus | D12: 176 | E12: 262 | F12: 358 | G12: 437 | H12: 69 | I12: 88 | J12: 261 | K12: 248
B13: 905 | C13: Retten i Viborg | D13: 164 | E13: 229 | F13: 239 | G13: 307 | H13: 52 | I13: 33 | J13: 130 | K13: 124
B14: 906 | C14: Retten i Holstebro | D14: 162 | E14: 143 | F14: 171 | G14: 151 | H14: 29 | I14: 21 | J14: 65 | K14: 66
B15: 907 | C15: Retten i Herning | D15: 162 | E15: 162 | F15: 140 | G15: 176 | H15: 38 | I15: 33 | J15: 116 | K15: 136
B16: 908 | C16: Retten i Horsens | D16: 290 | E16: 171 | F16: 314 | G16: 412 | H16: 55 | I16: 81 | J16: 211 | K16: 248
B17: 909 | C17: Retten i Kolding | D17: 192 | E17: 117 | F17: 270 | G17: 245 | H17: 59 | I17: 52 | J17: 214 | K17: 146
B18: 910 | C18: Retten i Esbjerg | D18: 183 | E18: 186 | F18: 301 | G18: 367 | H18: 70 | I18: 50 | J18: 61 | K18: 64
B19: 911 | C19: Retten i Sønderborg | D19: 131 | E19: 188 | F19: 239 | G19: 260 | H19: 55 | I19: 64 | J19: 111 | K19: 105
B20: 912 | C20: Retten i Odense | D20: 302 | E20: 287 | F20: 195 | G20: 174 | H20: 36 | I20: 20 | J20: 146 | K20: 71
B21: 913 | C21: Retten i Svendborg | D21: 101 | E21: 136 | F21: 154 | G21: 190 | H21: 43 | I21: 48 | J21: 88 | K21: 116
B22: 914 | C22: Retten i Nykøbing F. | D22: 99 | E22: 136 | F22: 103 | G22: 106 | H22: 12 | I22: 13 | J22: 50 | K22: 54
B23: 915 | C23: Retten i Næstved | D23: 118 | E23: 232 | F23: 139 | G23: 178 | H23: 21 | I23: 16 | J23: 84 | K23: 79
B24: 916 | C24: Retten i Holbæk | D24: 216 | E24: 279 | F24: 202 | G24: 286 | H24: 28 | I24: 41 | J24: 71 | K24: 134
B25: 917 | C25: Retten i Roskilde | D25: 153 | E25: 233 | F25: 181 | G25: 229 | H25: 29 | I25: 45 | J25: 75 | K25: 53
B26: 918 | C26: Retten i Hillerød | D26: 144 | E26: 221 | F26: 181 | G26: 239 | H26: 32 | I26: 33 | J26: 116 | K26: 129
B27: 919 | C27: Retten i Helsingør | D27: 280 | E27: 113 | F27: 190 | G27: 227 | H27: 21 | I27: 24 | J27: 118 | K27: 112
B28: 920 | C28: Retten i Lyngby | D28: 170 | E28: 212 | F28: 164 | G28: 204 | H28: 18 | I28: 17 | J28: 115 | K28: 96
B29: 921 | C29: Retten i Glostrup | D29: 257 | E29: 304 | F29: 285 | G29: 370 | H29: 57 | I29: 64 | J29: 152 | K29: 143
B30: 922 | C30: Retten på Frederiksberg | D30: 219 | E30: 266 | F30: 189 | G30: 274 | H30: 32 | I30: 38 | J30: 94 | K30: 124
B31: 923 | C31: Københavns Byret | D31: 498 | E31: 304 | F31: 241 | G31: 262 | H31: 29 | I31: 42 | J31: 147 | K31: 105

Sheet Sagstid.Civil
B2: GENNEMSNITLIG SAGSBEHANDLINGSTID CIVILE SAGER (DAGE)
D4: Hovedforhandlede almindelige sager | F4: Hovedforhandlede boligretssager | H4: Hovedforhandlede småsager | J4: Hovedforhandlede §§ 6 og 7-sager
D5: =Overblik!$D$6 -> 2021 | E5: =Overblik!$E$6 -> 2022 | F5: =Overblik!$D$6 -> 2021 | G5: =Overblik!$E$6 -> 2022 | H5: =Overblik!$D$6 -> 2021 | I5: =Overblik!$E$6 -> 2022 | J5: =Overblik!$D$6 -> 2021 | K5: =Overblik!$E$6 -> 2022
B6: SAMLET BYRETTERNE | D6: 626 | E6: 668 | F6: 591 | G6: 566 | H6: 440 | I6: 529 | J6: 202 | K6: 224
B7: 5. BEDSTE RET | D7: 526 | E7: =SMALL(E9:E31,5) -> 594 | F7: 401 | G7: =SMALL(G9:G31,5) -> 408 | H7: 229 | I7: =SMALL(I9:I31,5) -> 252 | J7: 172 | K7: =SMALL(K9:K31,5) -> 199
B8: EID | C8: Ret
B9: 901 | C9: Retten i Hjørring | D9: 578 | E9: 554 | F9: 401 | G9: 305 | H9: 249 | I9: 264 | J9: 210 | K9: 223
B10: 902 | C10: Retten i Aalborg | D10: 664 | E10: 669 | F10: 630 | G10: 528 | H10: 329 | I10: 252 | J10: 224 | K10: 233
B11: 903 | C11: Retten i Randers | D11: 639 | E11: 704 | F11: 642 | G11: 771 | H11: 512 | I11: 562 | J11: 216 | K11: 200
B12: 904 | C12: Retten i Aarhus | D12: 844 | E12: 913 | F12: 872 | G12: 940 | H12: 354 | I12: 391 | J12: 257 | K12: 234
B13: 905 | C13: Retten i Viborg | D13: 685 | E13: 716 | F13: 523 | G13: 538 | H13: 287 | I13: 251 | J13: 215 | K13: 199
B14: 906 | C14: Retten i Holstebro | D14: 710 | E14: 529 | F14: 475 | G14: 572 | H14: 167 | I14: 172 | J14: 188 | K14: 212
B15: 907 | C15: Retten i Herning | D15: 494 | E15: 695 | F15: 396 | G15: 594 | H15: 239 | I15: 256 | J15: 160 | K15: 213
B16: 908 | C16: Retten i Horsens | D16: 632 | E16: 782 | F16: 550 | G16: 709 | H16: 319 | I16: 392 | J16: 203 | K16: 233
B17: 909 | C17: Retten i Kolding | D17: 706 | E17: 694 | F17: 771 | G17: 617 | H17: 512 | I17: 369 | J17: 187 | K17: 213
B18: 910 | C18: Retten i Esbjerg | D18: 814 | E18: 832 | F18: 644 | G18: 507 | H18: 422 | I18: 413 | J18: 181 | K18: 193
B19: 911 | C19: Retten i Sønderborg | D19: 551 | E19: 594 | F19: 258 | G19: 540 | H19: 335 | I19: 329 | J19: 192 | K19: 206
B20: 912 | C20: Retten i Odense | D20: 572 | E20: 656 | F20: 1210 | G20: 403 | H20: 298 | I20: 250 | J20: 198 | K20: 175
B21: 913 | C21: Retten i Svendborg | D21: 517 | E21: 606 | F21: 626 | G21: 572 | H21: 492 | I21: 397 | J21: 184 | K21: 229
B22: 914 | C22: Retten i Nykøbing F. | D22: 425 | E22: 501 | F22: 282 | G22: 332 | H22: 161 | I22: 180 | J22: 123 | K22: 165
B23: 915 | C23: Retten i Næstved | D23: 571 | E23: 651 | F23: 779 | G23: 441 | H23: 208 | I23: 268 | J23: 217 | K23: 240
B24: 916 | C24: Retten i Holbæk | D24: 612 | E24: 714 | F24: 584 | G24: 408 | H24: 363 | I24: 346 | J24: 203 | K24: 209
B25: 917 | C25: Retten i Roskilde | D25: 646 | E25: 628 | F25: 423 | G25: 509 | H25: 369 | I25: 412 | J25: 262 | K25: 286
B26: 918 | C26: Retten i Hillerød | D26: 535 | E26: 615 | F26: 527 | G26: 637 | H26: 368 | I26: 338 | J26: 238 | K26: 299
B27: 919 | C27: Retten i Helsingør | D27: 651 | E27: 659 | F27: 406 | G27: 489 | H27: 397 | I27: 332 | J27: 178 | K27: 227
B28: 920 | C28: Retten i Lyngby | D28: 526 | E28: 556 | F28: 473 | G28: 371 | H28: 229 | I28: 279 | J28: 163 | K28: 203
B29: 921 | C29: Retten i Glostrup | D29: 657 | E29: 739 | F29: 661 | G29: 716 | H29: 287 | I29: 377 | J29: 216 | K29: 284
B30: 922 | C30: Retten på Frederiksberg | D30: 611 | E30: 671 | F30: 564 | G30: 545 | H30: 289 | I30: 310 | J30: 172 | K30: 181
B31: 923 | C31: Københavns Byret | D31: 619 | E31: 647 | F31: 501 | G31: 549 | H31: 539 | I31: 703 | J31: 230 | K31: 246
E32: 13302

Sheet Sagstid.Foged
B2: GENNEMSNITLIG SAGSBEHANDLINGSTID FOGEDSAGER (DAGE)
D4: Alm. fogedsager | F4: Særlige fogedsager | H4: Betalingspåkrav | J4: Tvangsauktioner
D5: =Overblik!$D$6 -> 2021 | E5: =Overblik!$E$6 -> 2022 | F5: =Overblik!$D$6 -> 2021 | G5: =Overblik!$E$6 -> 2022 | H5: =Overblik!$D$6 -> 2021 | I5: =Overblik!$E$6 -> 2022 | J5: =Overblik!$D$6 -> 2021 | K5: =Overblik!$E$6 -> 2022
B6: SAMLET BYRETTERNE | D6: 94 | E6: 82 | F6: 56 | G6: 46 | H6: 66 | I6: 64 | J6: 73 | K6: 70
B7: 5. BEDSTE RET | D7: 67 | E7: =SMALL(E9:E31,5) -> 62 | F7: 41 | G7: =SMALL(G9:G31,5) -> 37 | H7: 45 | I7: =SMALL(I9:I31,5) -> 51 | J7: 53 | K7: =SMALL(K9:K31,5) -> 56.42
B8: EID | C8: Ret
B9: 901 | C9: Retten i Hjørring | D9: 88 | E9: 84 | F9: 58 | G9: 55 | H9: 49 | I9: 51 | J9: 80 | K9: 80.16
B10: 902 | C10: Retten i Aalborg | D10: 68 | E10: 77 | F10: 58 | G10: 50 | H10: 66 | I10: 54 | J10: 109 | K10: 95.77
B11: 903 | C11: Retten i Randers | D11: 113 | E11: 89 | F11: 89 | G11: 51 | H11: 74 | I11: 98 | J11: 95 | K11: 73.71
B12: 904 | C12: Retten i Aarhus | D12: 93 | E12: 93 | F12: 33 | G12: 35 | H12: 104 | I12: 89 | J12: 55 | K12: 80.13
B13: 905 | C13: Retten i Viborg | D13: 114 | E13: 103 | F13: 47 | G13: 52 | H13: 66 | I13: 76 | J13: 83 | K13: 69.72
B14: 906 | C14: Retten i Holstebro | D14: 37 | E14: 50 | F14: 31 | G14: 35 | H14: 35 | I14: 53 | J14: 52 | K14: 50.19
B15: 907 | C15: Retten i Herning | D15: 72 | E15: 62 | F15: 41 | G15: 40 | H15: 47 | I15: 51 | J15: 57 | K15: 59.27
B16: 908 | C16: Retten i Horsens | D16: 92 | E16: 62 | F16: 47 | G16: 37 | H16: 79 | I16: 56 | J16: 97 | K16: 59.59
B17: 909 | C17: Retten i Kolding | D17: 78 | E17: 69 | F17: 54 | G17: 45 | H17: 79 | I17: 67 | J17: 87 | K17: 89.75
B18: 910 | C18: Retten i Esbjerg | D18: 54 | E18: 62 | F18: 54 | G18: 48 | H18: 60 | I18: 65 | J18: 69 | K18: 74.22
B19: 911 | C19: Retten i Sønderborg | D19: 108 | E19: 144 | F19: 50 | G19: 47 | H19: 65 | I19: 77 | J19: 105 | K19: 116.84
B20: 912 | C20: Retten i Odense | D20: 132 | E20: 106 | F20: 61 | G20: 52 | H20: 86 | I20: 67 | J20: 63 | K20: 56.45
B21: 913 | C21: Retten i Svendborg | D21: 95 | E21: 102 | F21: 50 | G21: 56 | H21: 79 | I21: 74 | J21: 80 | K21: 97.67
B22: 914 | C22: Retten i Nykøbing F. | D22: 67 | E22: 53 | F22: 38 | G22: 37 | H22: 53 | I22: 51 | J22: 60 | K22: 46.85
B23: 915 | C23: Retten i Næstved | D23: 82 | E23: 68 | F23: 46 | G23: 36 | H23: 68 | I23: 58 | J23: 69 | K23: 62.02
B24: 916 | C24: Retten i Holbæk | D24: 75 | E24: 71 | F24: 56 | G24: 51 | H24: 45 | I24: 46 | J24: 56 | K24: 57.13
B25: 917 | C25: Retten i Roskilde | D25: 67 | E25: 60 | F25: 64 | G25: 47 | H25: 42 | I25: 35 | J25: 63 | K25: 56.42
B26: 918 | C26: Retten i Hillerød | D26: 175 | E26: 101 | F26: 66 | G26: 67 | H26: 56 | I26: 53 | J26: 53 | K26: 50.59
B27: 919 | C27: Retten i Helsingør | D27: 115 | E27: 107 | F27: 59 | G27: 57 | H27: 67 | I27: 62 | J27: 72 | K27: 59.15
B28: 920 | C28: Retten i Lyngby | D28: 67 | E28: 58 | F28: 55 | G28: 34 | H28: 34 | I28: 36 | J28: 38 | K28: 34.16
B29: 921 | C29: Retten i Glostrup | D29: 129 | E29: 92 | F29: 49 | G29: 48 | H29: 68 | I29: 80 | J29: 45 | K29: 59.28
B30: 922 | C30: Retten på Frederiksberg | D30: 100 | E30: 64 | F30: 76 | G30: 46 | H30: 49 | I30: 50 | J30: 85 | K30: 66.87
B31: 923 | C31: Københavns Byret | D31: 88 | E31: 73 | F31: 73 | G31: 49 | H31: 80 | I31: 72 | J31: 60 | K31: 114.57

Sheet Sagstid.Skifte
B2: GENNEMSNITLIG SAGSBEHANDLINGSTID SKIFTESAGER (DAGE)
D4: Boudlæg | F4: Uskiftet bo | H4: Privat skifte | J4: Forenklet privat skifte
D5: =Overblik!$D$6 -> 2021 | E5: =Overblik!$E$6 -> 2022 | F5: =Overblik!$D$6 -> 2021 | G5: =Overblik!$E$6 -> 2022 | H5: =Overblik!$D$6 -> 2021 | I5: =Overblik!$E$6 -> 2022 | J5: =Overblik!$D$6 -> 2021 | K5: =Overblik!$E$6 -> 2022
B6: SAMLET BYRETTERNE | D6: 46 | E6: 49 | F6: 93 | G6: 96 | H6: 336 | I6: 342 | J6: 71 | K6: 78
B7: 5. BEDSTE RET | D7: 33 | E7: =SMALL(E9:E31,5) -> 35 | F7: 82 | G7: =SMALL(G9:G31,5) -> 86 | H7: 316 | I7: =SMALL(I9:I31,5) -> 310 | J7: 57 | K7: =SMALL(K9:K31,5) -> 65
B8: EID | C8: Ret
B9: 901 | C9: Retten i Hjørring | D9: 50 | E9: 60 | F9: 85 | G9: 93 | H9: 334 | I9: 310 | J9: 71 | K9: 81
B10: 902 | C10: Retten i Aalborg | D10: 52 | E10: 67 | F10: 87 | G10: 105 | H10: 339 | I10: 366 | J10: 85 | K10: 107
B11: 903 | C11: Retten i Randers | D11: 49 | E11: 35 | F11: 97 | G11: 73 | H11: 346 | I11: 316 | J11: 67 | K11: 63
B12: 904 | C12: Retten i Aarhus | D12: 61 | E12: 61 | F12: 104 | G12: 111 | H12: 396 | I12: 404 | J12: 76 | K12: 80
B13: 905 | C13: Retten i Viborg | D13: 72 | E13: 44 | F13: 107 | G13: 87 | H13: 372 | I13: 335 | J13: 93 | K13: 65
B14: 906 | C14: Retten i Holstebro | D14: 39 | E14: 53 | F14: 64 | G14: 89 | H14: 314 | I14: 348 | J14: 52 | K14: 68
B15: 907 | C15: Retten i Herning | D15: 49 | E15: 53 | F15: 82 | G15: 94 | H15: 338 | I15: 342 | J15: 72 | K15: 83
B16: 908 | C16: Retten i Horsens | D16: 64 | E16: 63 | F16: 114 | G16: 123 | H16: 387 | I16: 364 | J16: 82 | K16: 81
B17: 909 | C17: Retten i Kolding | D17: 29 | E17: 32 | F17: 82 | G17: 93 | H17: 337 | I17: 350 | J17: 57 | K17: 82
B18: 910 | C18: Retten i Esbjerg | D18: 29 | E18: 28 | F18: 83 | G18: 88 | H18: 314 | I18: 304 | J18: 44 | K18: 47
B19: 911 | C19: Retten i Sønderborg | D19: 51 | E19: 69 | F19: 101 | G19: 108 | H19: 317 | I19: 339 | J19: 73 | K19: 86
B20: 912 | C20: Retten i Odense | D20: 54 | E20: 57 | F20: 82 | G20: 86 | H20: 329 | I20: 329 | J20: 75 | K20: 74
B21: 913 | C21: Retten i Svendborg | D21: 46 | E21: 43 | F21: 84 | G21: 86 | H21: 354 | I21: 342 | J21: 84 | K21: 78
B22: 914 | C22: Retten i Nykøbing F. | D22: 33 | E22: 33 | F22: 51 | G22: 51 | H22: 316 | I22: 291 | J22: 53 | K22: 56
B23: 915 | C23: Retten i Næstved | D23: 37 | E23: 47 | F23: 90 | G23: 103 | H23: 316 | I23: 323 | J23: 57 | K23: 73
B24: 916 | C24: Retten i Holbæk | D24: 32 | E24: 31 | F24: 83 | G24: 75 | H24: 344 | I24: 318 | J24: 63 | K24: 63
B25: 917 | C25: Retten i Roskilde | D25: 41 | E25: 38 | F25: 98 | G25: 100 | H25: 325 | I25: 308 | J25: 63 | K25: 67
B26: 918 | C26: Retten i Hillerød | D26: 37 | E26: 46 | F26: 93 | G26: 103 | H26: 322 | I26: 334 | J26: 72 | K26: 94
B27: 919 | C27: Retten i Helsingør | D27: 40 | E27: 38 | F27: 118 | G27: 111 | H27: 321 | I27: 327 | J27: 79 | K27: 79
B28: 920 | C28: Retten i Lyngby | D28: 39 | E28: 38 | F28: 124 | G28: 121 | H28: 344 | I28: 340 | J28: 65 | K28: 73
B29: 921 | C29: Retten i Glostrup | D29: 52 | E29: 54 | F29: 117 | G29: 121 | H29: 320 | I29: 321 | J29: 78 | K29: 90
B30: 922 | C30: Retten på Frederiksberg | D30: 60 | E30: 77 | F30: 122 | G30: 112 | H30: 416 | I30: 505 | J30: 104 | K30: 122
B31: 923 | C31: Københavns Byret | D31: 41 | E31: 42 | F31: 90 | G31: 96 | H31: 307 | I31: 308 | J31: 69 | K31: 85

Sheet HR-nøgletal_lønsum
B2: UDVALGTE HR-NØGLETAL
D4: Gnst. antal sygedage pr. ansat | F4: Personaleomsætning (%) | H4: Lønsumsforbrug (mio.) 2022-pl
D5: =Overblik!$D$6 -> 2021 | E5: =Overblik!$E$6 -> 2022 | F5: =Overblik!$D$6 -> 2021 | G5: =Overblik!$E$6 -> 2022 | H5: =Overblik!$D$6 -> 2021 | I5: =Overblik!$E$6 -> 2022
B6: SAMLET BYRETTERNE | D6: 11.6 | E6: 12.1 | F6: 11.8 | G6: 10.3 | H6: 36.93479625 | I6: 36.99203646
B7: 5. BEDSTE RET | D7: 8.5 | E7: =SMALL(E9:E31,5) -> 9.1
B8: EID | C8: Ret
B9: 901 | C9: Retten i Hjørring | D9: 6.7 | E9: - | F9: 9 | G9: 10.6 | H9: 26.62975761 | I9: 25.28865984
B10: 902 | C10: Retten i Aalborg | D10: 5.5 | E10: 8.6 | F10: 12.5 | G10: 5.8 | H10: 42.0992892 | I10: 42.36790273
B11: 903 | C11: Retten i Randers | D11: 9.9 | E11: 14.6 | F11: 3.7 | G11: 2.9 | H11: 28.97948699 | I11: 29.22232497
B12: 904 | C12: Retten i Aarhus | D12: 18.3 | E12: 15.7 | F12: 12.8 | G12: 10.7 | H12: 51.99449505 | I12: 52.73250782
B13: 905 | C13: Retten i Viborg | D13: 8.8 | E13: 8.9 | F13: 11.7 | G13: 12.1 | H13: 29.38358967 | I13: 32.4765407
B14: 906 | C14: Retten i Holstebro | D14: 8.8 | E14: 11.9 | F14: 13.4 | G14: 6.7 | H14: 21.11386531 | I14: 21.14904125
B15: 907 | C15: Retten i Herning | D15: 7.2 | E15: 9.1 | F15: 13 | G15: 8.9 | H15: 23.77129493 | I15: 25.32585448
B16: 908 | C16: Retten i Horsens | D16: 8.7 | E16: 11.4 | F16: 14.7 | G16: 9 | H16: 24.13361403 | I16: 24.24661403
B17: 909 | C17: Retten i Kolding | D17: - | E17: 9.8 | F17: 14.9 | G17: 9.4 | H17: 43.067836 | I17: 42.43657876
B18: 910 | C18: Retten i Esbjerg | D18: 11.5 | E18: 12.9 | F18: 15.3 | G18: 11.7 | H18: 28.26838972 | I18: 28.10174416
B19: 911 | C19: Retten i Sønderborg | D19: 11 | E19: 9 | F19: 14.2 | G19: 14.4 | H19: 34.48254435 | I19: 36.0328521
B20: 912 | C20: Retten i Odense | D20: 9.8 | E20: 11 | F20: 10 | G20: 12.5 | H20: 44.6214518 | I20: 45.30974469
B21: 913 | C21: Retten i Svendborg | D21: 9.5 | E21: 11.7 | F21: 13.6 | G21: 6.7 | H21: 22.01272758 | I21: 21.2277535
B22: 914 | C22: Retten i Nykøbing F. | D22: 8.5 | E22: 9 | F22: 11.7 | G22: 5.8 | H22: 28.39453054 | I22: 27.51485302
B23: 915 | C23: Retten i Næstved | D23: 11.3 | E23: 11.4 | F23: 12 | G23: 6.6 | H23: 36.6441894 | I23: 34.93696215
B24: 916 | C24: Retten i Holbæk | D24: 12.5 | E24: 17.2 | F24: 7 | G24: 6.6 | H24: 24.85072896 | I24: 25.25480805
B25: 917 | C25: Retten i Roskilde | D25: 8.4 | E25: - | F25: 4.5 | G25: 9.4 | H25: 42.1185121 | I25: 40.66873175
B26: 918 | C26: Retten i Hillerød | D26: 19.2 | E26: - | F26: 15.1 | G26: 10.4 | H26: 25.07080167 | I26: 25.74850554
B27: 919 | C27: Retten i Helsingør | D27: 20.6 | E27: 11.1 | F27: 18.1 | G27: 12.2 | H27: 24.72481749 | I27: 25.05734586
B28: 920 | C28: Retten i Lyngby | D28: 15.1 | E28: - | F28: 10.8 | G28: 12.4 | H28: 29.14060654 | I28: 27.09016351
B29: 921 | C29: Retten i Glostrup | D29: 11.6 | E29: 13.5 | F29: 10.4 | G29: 7.7 | H29: 64.25054656 | I29: 65.08067325
B30: 922 | C30: Retten på Frederiksberg | D30: 15.8 | E30: 17.9 | F30: 17.3 | G30: 17.3 | H30: 48.13432984 | I30: 50.85910351
B31: 923 | C31: Københavns Byret | D31: 12.3 | E31: - | F31: 11 | G31: 13.9 | H31: 131.3629058 | I31: 128.0368028
B32: 1) Gennemsnitlig antal sygedage pr. ansat er ekskl. ansatte under socialt kapitel. Deltidssygdom er inkluderet, men barns sygdom, omsorgsdage og særlige feriedage indgår ikke.
B33: 2) "-" betyder, at der ikke er data for rettens gennemsnitlige antal sygedage i ISOLA. Retten kan kontakte Økonomistyrelsen for mere information om årsagen til de manglende fraværsdata i ISOLA.
B34: 3) Det gennemsnitlige antal sygedage pr. ansat "samlet" er for alle byretter.
B35: 4) Personaleomsætning dækker ikke et kalenderår, men i stedet et rullende år, der sammenholder medarbejderstaben i 4. kvartals midterste måned med medarbejderstaben i samme måned året før.
B36: 5) Lønsumsforbruget inkluderer egentlig løn, over- og merarbejde, stævningsmænd, refusioner og pensionsbidrag og er i faste priser (2022). Lønsummen for 2021 er opregnet til 2022-PL, så der kan foretages en sammenligning mellem de to år. Samlet vises det gns. lønsumsforbrug pr. byret.

Sheet Årsværk_Pers.kat
B2: ÅRSVÆRKSFORBRUG 2021 OG 2022
D4: Jur | E4: Kon | F4: Elev | G4: Fleks | H4: Øvr. | I4: I ALT | J4: Jur | K4: Kon | L4: Elev | M4: Fleks | N4: Øvr. | O4: I ALT | P4: Jur | Q4: Kon | R4: Elev | S4: Fleks | T4: Øvr. | U4: I ALT | V4: Jur | W4: Kon | X4: Elev | Y4: Fleks | Z4: Øvr. | AA4: I ALT
D5: =Overblik!$D$6 -> 2021 | J5: =Overblik!$E$6 -> 2022 | P5: =Overblik!$D$6 -> 2021 | V5: =Overblik!$E$6 -> 2022
D6: - absolutte tal - | J6: - absolutte tal - | P6: - indeks - | V6: - indeks -
B8: SAMLET BYRETTERNE | D8: 421.00591 | E8: 831.48688 | F8: 69.62095 | G8: 38.85476 | H8: 97.27224 | I8: 1458.24074 | J8: 438.33797 | K8: 816.19951 | L8: 62.38315 | M8: 37.27392 | N8: 96.15197 | O8: 1450.34652 | P8: 100 | Q8: 100 | R8: 100 | S8: 100 | T8: 100 | U8: 100 | V8: =J8*100/D8 -> 104.1168211 | W8: =K8*100/E8 -> 98.16144183 | X8: =L8*100/F8 -> 89.60399133 | Y8: 95.93141226 | Z8: 98.84831479 | AA8: =O8*100/I8 -> 99.45864769
B9: EID | C9: Ret
B10: 901 | C10: Retten i Hjørring | D10: 13.06093 | E10: 27.47848 | F10: 2.31854 | G10: 1.0539 | H10: 2.97142 | I10: 46.88327 | J10: 12.60653 | K10: 26.51046 | L10: 1.54473 | M10: 0.88216 | N10: 2.53119 | O10: 44.07507 | P10: 100 | Q10: 100 | R10: 100 | S10: 100 | T10: 100 | U10: 100 | V10: =J10*100/D10 -> 96.52092156 | W10: =K10*100/E10 -> 96.4771705 | X10: 66.62511753 | Y10: 83.70433627 | Z10: 85.18452457 | AA10: 94.01023009
B11: 902 | C11: Retten i Aalborg | D11: 20.75811 | E11: 43.18242 | F11: 5.02308 | G11: 1.27042 | H11: 3.37621 | I11: 73.61024 | J11: 21.71415 | K11: 42.44295 | L11: 4.9179 | M11: 0.88209 | N11: 3.16361 | O11: 73.1207 | P11: 100 | Q11: 100 | R11: 100 | S11: 100 | T11: 100 | U11: 100 | V11: =J11*100/D11 -> 104.6056216 | W11: =K11*100/E11 -> 98.28756702 | X11: =L11*100/F11 -> 97.9060656 | Y11: =M11*100/G11 -> 69.43294344 | Z11: =N11*100/H11 -> 93.70299833 | AA11: =O11*100/I11 -> 99.33495666
B12: 903 | C12: Retten i Randers | D12: 12.91887 | E12: 28.49065 | F12: 2.33341 | G12: 1.9907 | H12: 2.23097 | I12: 47.9646 | J12: 12.86885 | K12: 29.21068 | L12: 2.33344 | M12: 1.83122 | N12: 3.88803 | O12: 50.13222 | P12: 100 | Q12: 100 | R12: 100 | S12: 100 | T12: 100 | U12: 100 | V12: 99.61281443 | W12: 102.5272502 | X12: =L12*100/F12 -> 100.0012857 | Y12: 91.98874768 | Z12: 174.2753152 | AA12: 104.5192079
B13: 904 | C13: Retten i Aarhus | D13: 24.70667 | E13: 45.3934 | F13: 3.87401 | G13: 2.54069 | H13: 9.19244 | I13: 85.70721 | J13: 26.74794 | K13: 42.59814 | L13: 3.07846 | M13: 2.32444 | N13: 7.47211 | O13: 82.22109 | P13: 100 | Q13: 100 | R13: 100 | S13: 100 | T13: 100 | U13: 100 | V13: 108.2620199 | W13: 93.84214445 | X13: 79.46443091 | Y13: 91.48853264 | Z13: 81.28538234 | AA13: 95.93252423
B14: 905 | C14: Retten i Viborg | D14: 13.41872 | E14: 29.8504 | F14: 4.52176 | G14: 2.00006 | H14: 4.00001 | I14: 53.79095 | J14: 15.00877 | K14: 35.31459 | L14: 3.95628 | M14: 2.23143 | N14: 3.40423 | O14: 59.9153 | P14: 100 | Q14: 100 | R14: 100 | S14: 100 | T14: 100 | U14: 100 | V14: 111.8494909 | W14: 118.3052488 | X14: 87.49425003 | Y14: 111.568153 | Z14: 85.10553724 | AA14: 111.3854654
B15: 906 | C15: Retten i Holstebro | D15: 8.83508 | E15: 19.97882 | F15: 3.31549 | G15: 1.69355 | H15: 2.84455 | I15: 36.66749 | J15: 9.17888 | K15: 19.39348 | L15: 2.57502 | M15: 1.61763 | N15: 2.02557 | O15: 34.79058 | P15: 100 | Q15: 100 | R15: 100 | S15: 100 | T15: 100 | U15: 100 | V15: 103.891306 | W15: 97.07019734 | X15: 77.66634796 | Y15: 95.51710903 | Z15: 71.2088028 | AA15: 94.88126948
B16: 907 | C16: Retten i Herning | D16: 11.79869 | E16: 22.20023 | F16: 3.26866 | G16: 0 | H16: 3.23803 | I16: 40.50561 | J16: 12.89255 | K16: 22.91361 | L16: 3.09877 | N16: 3.24573 | O16: 42.15066 | P16: 100 | Q16: 100 | R16: 100 | S16: 100 | T16: 100 | U16: 100 | V16: 109.2710292 | W16: 103.2133901 | X16: 94.80245728 | Y16: - | Z16: 100.2377989 | AA16: 104.0612893
B17: 908 | C17: Retten i Horsens | D17: 11.94088 | E17: 21.35246 | F17: 3.36831 | G17: 2.2659 | H17: 4.69465 | I17: 43.6222 | J17: 11.68295 | K17: 21.48335 | L17: 2.40356 | M17: 2.3464 | N17: 4.65097 | O17: 42.56723 | P17: 100 | Q17: 100 | R17: 100 | S17: 100 | T17: 100 | U17: 100 | V17: 97.83994144 | W17: 100.6129973 | X17: 71.35804009 | Y17: =M17*100/G17 -> 103.5526722 | Z17: 99.0695792 | AA17: 97.58157544
B18: 909 | C18: Retten i Kolding | D18: 22.20287 | E18: 39.0117 | F18: 3.66684 | G18: 3.07733 | H18: 3.2112 | I18: 71.16994 | J18: 23.30973 | K18: 38.01906 | L18: 4.25023 | M18: 2.38197 | N18: 1.52479 | O18: 69.48578 | P18: 100 | Q18: 100 | R18: 100 | S18: 100 | T18: 100 | U18: 100 | V18: 104.9852114 | W18: 97.45553257 | X18: 115.9098843 | Y18: 77.40378835 | Z18: 47.48349527 | AA18: 97.63360767
B19: 910 | C19: Retten i Esbjerg | D19: 14.69996 | E19: 26.54279 | F19: 2.33344 | G19: 1.00003 | H19: 5.19832 | I19: 49.77454 | J19: 15.21424 | K19: 26.35467 | L19: 1.97356 | M19: 0.78899 | N19: 5.21471 | O19: 49.54617 | P19: 100 | Q19: 100 | R19: 100 | S19: 100 | T19: 100 | U19: 100 | V19: 103.4985129 | W19: 99.29125763 | X19: 84.57727647 | Y19: 78.8966331 | Z19: 100.3152942 | AA19: 99.54119114
B20: 911 | C20: Retten i Sønderborg | D20: 15.02947 | E20: 32.94109 | F20: 1.33339 | G20: 1.42496 | H20: 2.28214 | I20: 53.01105 | J20: 17.68612 | K20: 32.95665 | L20: 1.25006 | M20: 1.30414 | N20: 2.95339 | O20: 56.15036 | P20: 100 | Q20: 100 | R20: 100 | S20: 100 | T20: 100 | U20: 100 | V20: 117.676272 | W20: 100.0472358 | X20: 93.7505156 | Y20: 91.52116551 | Z20: 129.4131824 | AA20: 105.9219917
B21: 912 | C21: Retten i Odense | D21: 20.66863 | E21: 45.38108 | F21: 3.51256 | G21: 0.5406 | H21: 4.94003 | I21: 75.0429 | J21: 23.22764 | K21: 45.34414 | L21: 3.01305 | M21: 0.46938 | N21: 4.76945 | O21: 76.82366 | P21: 100 | Q21: 100 | R21: 100 | S21: 100 | T21: 100 | U21: 100 | V21: 112.3811302 | W21: 99.91860044 | X21: 85.77931765 | Y21: 86.82574917 | Z21: 96.54698453 | AA21: 102.3729893
B22: 913 | C22: Retten i Svendborg | D22: 10.47298 | E22: 20.73733 | F22: 1.71477 | G22: 1.00003 | H22: 4.70385 | I22: 38.62896 | J22: 10.08241 | K22: 19.53017 | L22: 0.9736 | M22: 1.00003 | N22: 4.40521 | O22: 35.99142 | P22: 100 | Q22: 100 | R22: 100 | S22: 100 | T22: 100 | U22: 100 | V22: 96.27068895 | W22: 94.17880701 | X22: 56.77729375 | Y22: 100 | Z22: 93.65115809 | AA22: 93.1721175
B23: 914 | C23: Retten i Nykøbing F. | D23: 13.07402 | E23: 31.18948 | F23: 1.84976 | G23: 0.40544 | H23: 2.78623 | I23: 49.30493 | J23: 13.79457 | K23: 27.95344 | L23: 2.00008 | M23: 0.40544 | N23: 2.86914 | O23: 47.02267 | P23: 100 | Q23: 100 | R23: 100 | S23: 100 | T23: 100 | U23: 100 | V23: 105.5113117 | W23: 89.62457854 | X23: 108.1264596 | Y23: 100 | Z23: 102.9757055 | AA23: 95.37113226
B24: 915 | C24: Retten i Næstved | D24: 17.01714 | E24: 40.35741 | F24: 2.67273 | G24: 2.88017 | H24: 4.76259 | I24: 67.69004 | J24: 16.17279 | K24: 36.56963 | L24: 3.19666 | M24: 3.43953 | N24: 3.96833 | O24: 63.34694 | P24: 100 | Q24: 100 | R24: 100 | S24: 100 | T24: 100 | U24: 100 | V24: 95.03823792 | W24: 90.61441257 | X24: 119.6028031 | Y24: 119.4210758 | Z24: 83.32293983 | AA24: 93.58384188
B25: 916 | C25: Retten i Holbæk | D25: 11.64258 | E25: 24.00753 | F25: 1.16674 | G25: 2.00006 | H25: 3.14277 | I25: 41.95968 | J25: 12.42627 | K25: 22.91047 | L25: 1.00003 | M25: 2.27036 | N25: 2.93176 | O25: 41.53889 | P25: 100 | Q25: 100 | R25: 100 | S25: 100 | T25: 100 | U25: 100 | V25: 106.73124 | W25: 95.43035039 | X25: 85.71146956 | Y25: 113.5145946 | Z25: 93.28585929 | AA25: 98.99715632
B26: 917 | C26: Retten i Roskilde | D26: 19.3736 | E26: 42.45065 | F26: 2.16675 | G26: 0.56763 | H26: 1.83343 | I26: 66.39206 | J26: 18.74051 | K26: 39.31742 | L26: 1.34573 | M26: 0.56763 | N26: 1.68151 | O26: 61.6528 | P26: 100 | Q26: 100 | R26: 100 | S26: 100 | T26: 100 | U26: 100 | V26: 96.73220258 | W26: 92.61912362 | X26: 62.10822661 | Y26: 100 | Z26: 91.71389145 | AA26: 92.86170666
B27: 918 | C27: Retten i Hillerød | D27: 11.7589 | E27: 21.23272 | F27: 2.88719 | G27: 2.34981 | H27: 4.10007 | I27: 42.32869 | J27: 13.6351 | K27: 20.30718 | L27: 3.10022 | M27: 1.98214 | N27: 4.83499 | O27: 43.85963 | P27: 100 | Q27: 100 | R27: 100 | S27: 100 | T27: 100 | U27: 100 | V27: 115.9555741 | W27: 95.64097299 | X27: 107.3784545 | Y27: 84.35320302 | Z27: 117.924572 | AA27: 103.6167904
B28: 919 | C28: Retten i Helsingør | D28: 13.13024 | E28: 21.73315 | F28: 1.26068 | G28: 3.02717 | H28: 2.84495 | I28: 41.99619 | J28: 13.45201 | K28: 23.12831 | L28: 1.00003 | M28: 2.02224 | N28: 3.09498 | O28: 42.69757 | P28: 100 | Q28: 100 | R28: 100 | S28: 100 | T28: 100 | U28: 100 | V28: 102.4506026 | W28: 106.419502 | X28: 79.32465019 | Y28: =M28*100/G28 -> 66.80298761 | Z28: 108.7885552 | AA28: 101.6701039
B29: 920 | C29: Retten i Lyngby | D29: 14.29323 | E29: 25.93865 | F29: 3.65016 | G29: 0.83788 | H29: 3.14332 | I29: 47.86324 | J29: 14.07554 | K29: 25.67835 | L29: 2.68247 | M29: 0.83788 | N29: 3.07191 | O29: 46.34615 | P29: 100 | Q29: 100 | R29: 100 | S29: 100 | T29: 100 | U29: 100 | V29: 98.47697127 | W29: 98.99647823 | X29: 73.48910733 | Y29: 100 | Z29: 97.72819821 | AA29: 96.83036501
B30: 921 | C30: Retten i Glostrup | D30: 32.92966 | E30: 57.23244 | F30: 3.33873 | G30: 3.31749 | H30: 6.98319 | I30: 103.80151 | J30: 34.67373 | K30: 56.56037 | L30: 3.60104 | M30: 2.35296 | N30: 6.27428 | O30: 103.46238 | P30: 100 | Q30: 100 | R30: 100 | S30: 100 | T30: 100 | U30: 100 | V30: 105.2963499 | W30: 98.82571842 | X30: 107.8565802 | Y30: 70.92591085 | Z30: 89.84833579 | AA30: 99.67328992
B31: 922 | C31: Retten på Frederiksberg | D31: 23.95436 | E31: 42.28933 | F31: 3.27703 | G31: 2.99313 | H31: 4.97258 | I31: 77.48643 | J31: 24.27912 | K31: 44.21937 | L31: 3.08385 | M31: 4.68668 | N31: 6.55449 | O31: 82.82351 | P31: 100 | Q31: 100 | R31: 100 | S31: 100 | T31: 100 | U31: 100 | V31: 101.3557448 | W31: 104.5638935 | X31: 94.10502803 | Y31: 156.5812377 | Z31: 131.8126606 | AA31: 106.8877609
B32: 923 | C32: Københavns Byret | D32: 60.18599 | E32: 117.0377 | F32: 6.13354 | G32: 0.27875 | H32: 7.83339 | I32: 191.46937 | J32: 61.67602 | K32: 111.06696 | L32: 5.35857 | M32: 0.64853 | N32: 9.47145 | O32: 188.22153 | P32: 100 | Q32: 100 | R32: 100 | S32: 100 | T32: 100 | U32: 100 | V32: 102.475709 | W32: 94.89844725 | X32: 87.36504531 | Y32: - | Z32: 120.911253 | AA32: 98.30372869
B33: 1) Det opgjorte årsværksforbrug er inkl. de korrektioner, der foretages som led i produktivitetsberegningen, hvorfor det ikke kan stemmes af i forhold til eksempelvis prognoseværktøjet SOL.

Sheet Årsværk_Sagsområder
B2: ÅRSVÆRKSFORBRUG DE ENKELTE SAGSOMRÅDER I 2022
E4: Straf | G4: Civil | I4: Foged | K4: Skifte | M4: Notarial
E5: Årsværk | F5: Pct. | G5: =E5 -> Årsværk | H5: =F5 -> Pct. | I5: =G5 -> Årsværk | J5: Pct. | K5: Årsværk | L5: Pct. | M5: Årsværk | N5: Pct.
B7: SAMLET BYRETTERNE | D7: Jurister | E7: 194.5246604 | F7: 0.4437778009 | G7: 146.1771144 | H7: 0.3334803837 | I7: 33.07322685 | J7: 0.07545143042 | K7: 33.16827077 | L7: 0.07566825837 | M7: 0.548162336 | N7: 0.001250547234
D8: Kontor | E8: 253.9144827 | F8: 0.3110936476 | G8: 138.0117273 | H8: 0.1690906765 | I8: 158.3420002 | J8: 0.1939991366 | K8: 145.0207127 | L8: 0.1776780198 | M8: 23.34524436 | N8: 0.02860237487
D9: Elev | E9: 17.72778713 | F9: 0.2841758893 | G9: 8.220866977 | H9: 0.131780248 | I9: 15.64063481 | J9: 0.2507189011 | K9: 13.76982359 | L9: 0.220729854 | M9: 0.387422375 | N9: 0.006210368906
D10: Fleks | E10: 6.880797128 | F10: 0.184600845 | G10: 5.43765356 | H10: 0.145883598 | I10: 9.747967124 | J10: 0.2615224566 | K10: 3.905054949 | L10: 0.1047664144 | M10: 2.195898048 | N10: 0.05891245269
D11: Øvrige | E11: 12.67279562 | F11: 0.1317996461 | G11: 2.73367483 | H11: 0.02843077297 | I11: 4.607108984 | J11: 0.04791486834 | K11: 3.396047645 | L11: 0.03531958466 | M11: 2.095654481 | N11: 0.02179523187
B12: EID | C12: Ret
B13: 901 | C13: Retten i Hjørring | D13: Jurister | E13: 5.057557545 | F13: 0.4011855399 | G13: 4.457517334 | H13: 0.3535879686 | I13: 0.719770043 | J13: 0.05709501687 | K13: 1.522421554 | L13: 0.1207645207 | M13: 0.03414026418 | N13: 0.002708141271
B14: 901 | C14: Retten i Hjørring | D14: Kontor | E14: 6.606005853 | F14: 0.2491848822 | G14: 3.808282056 | H14: 0.1436520549 | I14: 5.9909838 | J14: 0.22598566 | K14: 5.812762783 | L14: 0.2192629921 | M14: 0.7962846258 | N14: 0.03003662048
B15: 901 | C15: Retten i Hjørring | D15: Elev | E15: 0.5106574693 | F15: 0.3305804052 | G15: 0.4778568738 | H15: 0.3093465355 | I15: 0.5276053056 | J15: 0.3415517958 | K15: 0 | L15: 0 | M15: 0.0007192564272 | N15: 0.000465619511
B16: 901 | C16: Retten i Hjørring | D16: Fleks | E16: 0.4548917753 | F16: 0.5156567689 | G16: 0.2110054156 | H16: 0.2391917743 | I16: 0.2162628091 | J16: 0.2451514568 | K16: 0 | L16: 0 | M16: 0 | N16: 0
B17: 901 | C17: Retten i Hjørring | D17: Øvrige | E17: 0.2832164833 | F17: 0.1118906456 | G17: 0.001300052941 | H17: 0.0005136133363 | I17: 0.1725143475 | J17: 0.06815543184 | K17: 0.003600146605 | L17: 0.001422313854 | M17: 0 | N17: 0
B18: 902 | C18: Retten i Aalborg | D18: Jurister | E18: 9.258027078 | F18: 0.4263591749 | G18: 7.654983555 | H18: 0.3525343407 | I18: 1.819025337 | J18: 0.08377142727 | K18: 1.677273419 | L18: 0.0772433376 | M18: 0.005982741835 | N18: 0.0002755227276
B19: 902 | C19: Retten i Aalborg | D19: Kontor | E19: 11.46378355 | F19: 0.2700986512 | G19: 7.392876174 | H19: 0.1741838438 | I19: 9.101325459 | J19: 0.2144366841 | K19: 9.802488543 | L19: 0.2309568148 | M19: 1.012019365 | N19: 0.02384422773
B20: 902 | C20: Retten i Aalborg | D20: Elev | E20: 0.7888685907 | F20: 0.1604076111 | G20: 0.4540512315 | H20: 0.09232624321 | I20: 2.429641186 | J20: 0.4940403802 | K20: 0.8581216859 | L20: 0.174489454 | M20: 0.01080048271 | N20: 0.002196157448
B21: 902 | C21: Retten i Aalborg | D21: Fleks | E21: 0.002578020914 | F21: 0.002922627979 | G21: 0 | H21: 0 | I21: 0.03603486782 | J21: 0.04085169067 | K21: 0.08871367251 | L21: 0.1005721327 | M21: 0 | N21: 0
B22: 902 | C22: Retten i Aalborg | D22: Øvrige | E22: 0.9786051298 | F22: 0.3093317855 | G22: 0.01681901187 | H22: 0.00531639863 | I22: 1.184618913 | J22: 0.3744516273 | K22: 0.02384900381 | L22: 0.007538541037 | M22: 0 | N22: 0
B23: 903 | C23: Retten i Randers | D23: Jurister | E23: 4.844956194 | F23: 0.3764871138 | G23: 3.871916485 | H23: 0.3008750964 | I23: 1.494013711 | J23: 0.1160953551 | K23: 1.805398085 | L23: 0.1402921073 | M23: 0.04594757919 | N23: 0.003570449511
B24: 903 | C24: Retten i Randers | D24: Kontor | E24: 8.975210829 | F24: 0.3072578532 | G24: 4.145062841 | H24: 0.1419023056 | I24: 6.072669735 | J24: 0.2078921044 | K24: 6.247683636 | L24: 0.2138835397 | M24: 0.7278032615 | N24: 0.02491565624
B25: 903 | C25: Retten i Randers | D25: Elev | E25: 0.8269044663 | F25: 0.3543714286 | G25: 0.7191328731 | H25: 0.3081857143 | I25: 0.1724078811 | J25: 0.07388571429 | K25: 0.414885632 | L25: 0.1778 | M25: 0.006900315429 | N25: 0.002957142857
B26: 903 | C26: Retten i Randers | D26: Fleks | E26: 0 | F26: 0 | G26: 0 | H26: 0 | I26: 0.2900942574 | J26: 0.1584158416 | K26: 0.1052688021 | L26: 0.05748561183 | M26: 0.0644708453 | N26: 0.03520649911
B27: 903 | C27: Retten i Randers | D27: Øvrige | E27: 0.3925832218 | F27: 0.1009722718 | G27: 0.01347260273 | H27: 0.003465148862 | I27: 0.4560719204 | J27: 0.1173015436 | K27: 0.01544845341 | L27: 0.003973336987 | M27: 0.002333431344 | N27: 0.0006001577519
B28: 904 | C28: Retten i Aarhus | D28: Jurister | E28: 13.23932288 | F28: 0.4949660753 | G28: 8.129844071 | H28: 0.3039428109 | I28: 1.340624068 | J28: 0.05012064734 | K28: 2.685954047 | L28: 0.1004172301 | M28: 0.03772662114 | N28: 0.001410449595
B29: 904 | C29: Retten i Aarhus | D29: Kontor | E29: 17.14868539 | F29: 0.4025688771 | G29: 6.148661315 | H29: 0.1443410749 | I29: 5.548459178 | J29: 0.1302512076 | K29: 8.103874203 | L29: 0.1902400951 | M29: 1.154073439 | N29: 0.02709210869
B30: 904 | C30: Retten i Aarhus | D30: Elev | E30: 1.035831818 | F30: 0.3364772704 | G30: 0.4204307782 | H30: 0.1365717853 | I30: 0.6767973045 | J30: 0.2198493092 | K30: 0.5230659231 | L30: 0.1699115542 | M30: 0.01248335816 | N30: 0.004055065898
B31: 904 | C31: Retten i Aarhus | D31: Fleks | E31: 0 | F31: 0 | G31: 0.2967394496 | H31: 0.1276606192 | I31: 0.9149276145 | J31: 0.393612059 | K31: 0.1958470837 | L31: 0.08425559865 | M31: 0 | N31: 0
B32: 904 | C32: Retten i Aarhus | D32: Øvrige | E32: 1.343458608 | F32: 0.1797964173 | G32: 0.1203984908 | H32: 0.01611305117 | I32: 0.5513315168 | J32: 0.07378525166 | K32: 0.5995527861 | L32: 0.08023875265 | M32: 0.0001018556758 | N32: 1.363144758e-05
B33: 905 | C33: Retten i Viborg | D33: Jurister | E33: 6.203313063 | F33: 0.4133125542 | G33: 5.004473763 | H33: 0.3334366349 | I33: 1.293820117 | J33: 0.08620427373 | K33: 1.380003739 | L33: 0.0919464912 | M33: 0.01510206223 | N33: 0.001006215848
B34: 905 | C34: Retten i Viborg | D34: Kontor | E34: 11.28756124 | F34: 0.3196288344 | G34: 4.990319545 | H34: 0.14131042 | I34: 8.115477523 | J34: 0.2298052313 | K34: 5.515929779 | L34: 0.1561940767 | M34: 1.099171515 | N34: 0.03112513879
B35: 905 | C35: Retten i Viborg | D35: Elev | E35: 1.104768671 | F35: 0.2792443081 | G35: 0.3792113963 | H35: 0.09585049498 | I35: 1.19587142 | J35: 0.3022716845 | K35: 1.146115502 | L35: 0.2896952445 | M35: 0.01170048339 | N35: 0.00295744573
B36: 905 | C36: Retten i Viborg | D36: Fleks | E36: 0.4078611623 | F36: 0.1827801734 | G36: 0.005300200077 | H36: 0.002375248194 | I36: 0.9158345717 | J36: 0.4104249614 | K36: 0.06090229899 | L36: 0.02729294622 | M36: 0.2770104568 | N36: 0.1241403301
B37: 905 | C37: Retten i Viborg | D37: Øvrige | E37: 0.2857119669 | F37: 0.0839285145 | G37: 0.001900087714 | H37: 0.0005581549173 | I37: 0.2213921616 | J37: 0.06503443116 | K37: 0.1212055952 | L37: 0.03560440841 | M37: 0.003400156962 | N37: 0.0009988035363
B38: 906 | C38: Retten i Holstebro | D38: Jurister | E38: 3.744502378 | F38: 0.4079476339 | G38: 2.34756706 | H38: 0.2557574628 | I38: 0.611642781 | J38: 0.06663588379 | K38: 1.428640801 | L38: 0.1556443489 | M38: 0.00399437978 | N38: 0.0004351707158
B39: 906 | C39: Retten i Holstebro | D39: Kontor | E39: 5.683844517 | F39: 0.2930801752 | G39: 3.578073122 | H39: 0.1844987657 | I39: 4.145657893 | J39: 0.2137655487 | K39: 4.378604343 | L39: 0.2257771345 | M39: 0.4256843303 | N39: 0.02194986822
B40: 906 | C40: Retten i Holstebro | D40: Elev | E40: 1.007450035 | F40: 0.3912396933 | G40: 0.03775220822 | H40: 0.01466093786 | I40: 0.7931866229 | J40: 0.3080312475 | K40: 0.4272177191 | L40: 0.1659085052 | M40: 0 | N40: 0
B41: 906 | C41: Retten i Holstebro | D41: Fleks | E41: 0.3403215373 | F41: 0.2103828053 | G41: 0 | H41: 0 | I41: 0.1657760083 | J41: 0.1024807949 | K41: 0.1758351112 | L41: 0.108699215 | M41: 0.07544037046 | N41: 0.04663635718
B42: 906 | C42: Retten i Holstebro | D42: Øvrige | E42: 0 | F42: 0 | G42: 0 | H42: 0 | I42: 0 | J42: 0 | K42: 0 | L42: 0 | M42: 0.3702052734 | N42: 0.1827659737
B43: 907 | C43: Retten i Herning | D43: Jurister | E43: 6.459591432 | F43: 0.501032878 | G43: 4.200185274 | H43: 0.3257839042 | I43: 0.7530514192 | J43: 0.05840981181 | K43: 1.388880046 | L43: 0.1077273345 | M43: 0.02400611688 | N43: 0.001862014642
B44: 907 | C44: Retten i Herning | D44: Kontor | E44: 8.011033315 | F44: 0.3496189957 | G44: 3.018531113 | H44: 0.1317352924 | I44: 4.992077539 | J44: 0.21786517 | K44: 4.268950329 | L44: 0.1863063188 | M44: 1.118956261 | N44: 0.04883369584
B45: 907 | C45: Retten i Herning | D45: Elev | E45: 1.105409747 | F45: 0.3567253286 | G45: 0.01502260112 | H45: 0.004847923893 | I45: 0.8981187545 | J45: 0.2898307246 | K45: 1.062287033 | L45: 0.3428092543 | M45: 0.01776401022 | N45: 0.005732600425
B46: 907 | C46: Retten i Herning | D46: Fleks | E46: 0 | F46: 0 | G46: 0 | H46: 0 | I46: 0 | J46: 0 | K46: 0 | L46: 0 | M46: 0 | N46: 0
B47: 907 | C47: Retten i Herning | D47: Øvrige | E47: 0.1051392644 | F47: 0.03239310246 | G47: 0.00138478953 | H47: 0.0004266496381 | I47: 0.00276957906 | J47: 0.0008532992762 | K47: 0.4025580852 | L47: 0.1240269786 | M47: 0.01194355351 | N47: 0.003679774198
B48: 908 | C48: Retten i Horsens | D48: Jurister | E48: 5.056834912 | F48: 0.4328388731 | G48: 4.003462919 | H48: 0.3426756871 | I48: 0.9527737942 | J48: 0.08155250123 | K48: 0.7087413641 | L48: 0.06066458934 | M48: 0.009222555916 | N48: 0.0007894030117
B49: 908 | C49: Retten i Horsens | D49: Kontor | E49: 6.714584199 | F49: 0.312548285 | G49: 3.169217716 | H49: 0.1475197172 | I49: 3.458008597 | J49: 0.1609622613 | K49: 5.03395827 | L49: 0.234319055 | M49: 0.9009332708 | N49: 0.04193634935
B50: 908 | C50: Retten i Horsens | D50: Elev | E50: 1.071529512 | F50: 0.4458093462 | G50: 0.09577897393 | H50: 0.03984879676 | I50: 0.2384068997 | J50: 0.09918907774 | K50: 0.8002159935 | L50: 0.3329294852 | M50: 0.003730555557 | N50: 0.001552095873
B51: 908 | C51: Retten i Horsens | D51: Fleks | E51: 0.02352545289 | F51: 0.01002619029 | G51: 1.168648783 | H51: 0.4980603406 | I51: 0.2713979775 | J51: 0.115665691 | K51: 0.4760935921 | L51: 0.2029038493 | M51: 0.1566372794 | N51: 0.06675642662
B52: 908 | C52: Retten i Horsens | D52: Øvrige | E52: 1.199600492 | F52: 0.2579247967 | G52: 0.472434851 | H52: 0.1015777034 | I52: 0.5057281736 | J52: 0.1087360644 | K52: 0.3908472703 | L52: 0.08403564638 | M52: 0.3022734249 | N52: 0.06499148025
B53: 909 | C53: Retten i Kolding | D53: Jurister | E53: 10.61543253 | F53: 0.455407786 | G53: 7.705205032 | H53: 0.3305574553 | I53: 1.505667161 | J53: 0.06459393397 | K53: 1.341703074 | L53: 0.05755978616 | M53: 0.03673282782 | N53: 0.001575858142
B54: 909 | C54: Retten i Kolding | D54: Kontor | E54: 12.61871834 | F54: 0.3319050587 | G54: 5.980756632 | H54: 0.1573094293 | I54: 6.666553609 | J54: 0.1753476706 | K54: 6.652170172 | L54: 0.1749693489 | M54: 1.349588362 | N54: 0.03549767832
B55: 909 | C55: Retten i Kolding | D55: Elev | E55: 1.713609398 | F55: 0.4031803922 | G55: 0.4464908284 | H55: 0.1050509804 | I55: 0.8505793622 | J55: 0.2001254902 | K55: 1.047390013 | L55: 0.2464313725 | M55: 0.001100059529 | N55: 0.0002588235294
B56: 909 | C56: Retten i Kolding | D56: Fleks | E56: 1.196208956 | F56: 0.5021931242 | G56: 0.1091084513 | H56: 0.04580597206 | I56: 1.076746972 | J56: 0.4520405262 | K56: 0 | L56: 0 | M56: 0 | N56: 0
B57: 909 | C57: Retten i Kolding | D57: Øvrige | E57: 0.1554834237 | F57: 0.1019703852 | G57: 0 | H57: 0 | I57: 0 | J57: 0 | K57: 0.07950638917 | L57: 0.05214251744 | M57: 0.01576030923 | N57: 0.01033605233
B58: 910 | C58: Retten i Esbjerg | D58: Jurister | E58: 7.651516499 | F58: 0.5029180885 | G58: 3.841058547 | H58: 0.2524647007 | I58: 0.8664185863 | J58: 0.05694787162 | K58: 1.455920072 | L58: 0.09569456457 | M58: 0.04920136191 | N58: 0.003233902049
B59: 910 | C59: Retten i Esbjerg | D59: Kontor | E59: 7.339876997 | F59: 0.2785038476 | G59: 4.139837219 | H59: 0.1570817324 | I59: 5.451424057 | J59: 0.2068485038 | K59: 5.917913941 | L59: 0.2245489676 | M59: 0.9472148562 | N59: 0.03594106305
B60: 910 | C60: Retten i Esbjerg | D60: Elev | E60: 0.02557111644 | F60: 0.01295684775 | G60: 0.009326967161 | H60: 0.004725960782 | I60: 0.5376975019 | J60: 0.2724505472 | K60: 1.292633593 | L60: 0.6549755736 | M60: 0.002916056092 | N60: 0.001477561408
B61: 910 | C61: Retten i Esbjerg | D61: Fleks | E61: 0 | F61: 0 | G61: 0 | H61: 0 | I61: 0 | J61: 0 | K61: 0.786070737 | L61: 0.9963 | M61: 0.002919263 | N61: 0.0037
B62: 910 | C62: Retten i Esbjerg | D62: Øvrige | E62: 0.02574770424 | F62: 0.004937514117 | G62: 0.00210013469 | H62: 0.0004027327868 | I62: 0.3056028758 | J62: 0.05860400209 | K62: 0.276827391 | L62: 0.05308586499 | M62: 0.1391406743 | N62: 0.02668234175
B63: 911 | C63: Retten i Sønderborg | D63: Jurister | E63: 7.555781664 | F63: 0.4272153341 | G63: 6.860828167 | H63: 0.3879216112 | I63: 1.352223149 | J63: 0.07645674401 | K63: 0.9451834267 | L63: 0.05344210187 | M63: 0.01712526694 | N63: 0.0009682885186
B64: 911 | C64: Retten i Sønderborg | D64: Kontor | E64: 9.938942558 | F64: 0.301576239 | G64: 5.750119592 | H64: 0.1744752453 | I64: 5.494747645 | J64: 0.1667265224 | K64: 4.87977484 | L64: 0.1480664704 | M64: 1.403483337 | N64: 0.04258574025
B65: 911 | C65: Retten i Sønderborg | D65: Elev | E65: 0.01214529425 | F65: 0.009715769044 | G65: 0.1977969065 | H65: 0.1582299301 | I65: 0.2403873275 | J65: 0.1923006316 | K65: 0.7609486552 | L65: 0.6087297051 | M65: 0 | N65: 0
B66: 911 | C66: Retten i Sønderborg | D66: Fleks | E66: 0.7303184 | F66: 0.56 | G66: 0.3651592 | H66: 0.28 | I66: 0 | J66: 0 | K66: 0 | L66: 0 | M66: 0 | N66: 0
B67: 911 | C67: Retten i Sønderborg | D67: Øvrige | E67: 0.1788513656 | F67: 0.06055799119 | G67: 0 | H67: 0 | I67: 0.4368374032 | J67: 0.1479105039 | K67: 0.06279155318 | L67: 0.02126084032 | M67: 0 | N67: 0
B68: 912 | C68: Retten i Odense | D68: Jurister | E68: 10.93198759 | F68: 0.4706456441 | G68: 7.657709519 | H68: 0.3296809112 | I68: 2.441316759 | J68: 0.105103952 | K68: 1.813535895 | L68: 0.07807663177 | M68: 0.01664080471 | N68: 0.0007164225339
B69: 912 | C69: Retten i Odense | D69: Kontor | E69: 15.0194217 | F69: 0.3312318129 | G69: 5.999585508 | H69: 0.1323122571 | I69: 10.54726916 | J69: 0.2326049001 | K69: 9.644756477 | L69: 0.2127012769 | M69: 0.8171081996 | N69: 0.01802014989
B70: 912 | C70: Retten i Odense | D70: Elev | E70: 0.9896565269 | F70: 0.3284567222 | G70: 0.2564874767 | H70: 0.08512552952 | I70: 0.5199555486 | J70: 0.1725678461 | K70: 1.204884812 | L70: 0.3998887547 | M70: 0.01546449885 | N70: 0.005132506547
B71: 912 | C71: Retten i Odense | D71: Fleks | E71: 0.4674032983 | F71: 0.9957886964 | G71: 0 | H71: 0 | I71: 0 | J71: 0 | K71: 0 | L71: 0 | M71: 0 | N71: 0
B72: 912 | C72: Retten i Odense | D72: Øvrige | E72: 0.6204685461 | F72: 0.1300922635 | G72: 0.1770225384 | H72: 0.03711592287 | I72: 0.001528295156 | J72: 0.0003204342547 | K72: 0 | L72: 0 | M72: 0 | N72: 0
B73: 913 | C73: Retten i Svendborg | D73: Jurister | E73: 3.124300599 | F73: 0.3098763687 | G73: 3.424570372 | H73: 0.3396579163 | I73: 1.251512316 | J73: 0.1241282904 | K73: 1.475107756 | L73: 0.1463050755 | M73: 0.001637987494 | N73: 0.0001624599172
B74: 913 | C74: Retten i Svendborg | D74: Kontor | E74: 5.296090084 | F74: 0.2711748072 | G74: 3.718705591 | H74: 0.1904082551 | I74: 3.896031554 | J74: 0.1994878465 | K74: 3.988606107 | L74: 0.2042279257 | M74: 0.1611295517 | N74: 0.008250289253
B75: 913 | C75: Retten i Svendborg | D75: Elev | E75: 0.447856 | F75: 0.46 | G75: 0.09375768 | H75: 0.0963 | I75: 0 | J75: 0 | K75: 0 | L75: 0 | M75: 0 | N75: 0
B76: 913 | C76: Retten i Svendborg | D76: Fleks | E76: 0 | F76: 0 | G76: 0.008800264 | H76: 0.0088 | I76: 0.000700021 | J76: 0.0007 | K76: 0.983929517 | L76: 0.9839 | M76: 0 | N76: 0
B77: 913 | C77: Retten i Svendborg | D77: Øvrige | E77: 0.1337244285 | F77: 0.03035597133 | G77: 0.02729543417 | H77: 0.006196170937 | I77: 0.1210890331 | J77: 0.02748768687 | K77: 0.2970360812 | L77: 0.06742835896 | M77: 0.2864512297 | N77: 0.06502555603
B78: 914 | C78: Retten i Nykøbing F. | D78: Jurister | E78: 5.565931529 | F78: 0.4034871351 | G78: 4.084543676 | H78: 0.2960979339 | I78: 0.9466267024 | J78: 0.06862313957 | K78: 1.127586829 | L78: 0.08174135398 | M78: 0.007219797329 | N78: 0.000523379658
B79: 914 | C79: Retten i Nykøbing F. | D79: Kontor | E79: 7.029997771 | F79: 0.2514895401 | G79: 4.879740706 | H79: 0.1745667333 | I79: 6.188162748 | J79: 0.2213739256 | K79: 5.413246545 | L79: 0.1936522498 | M79: 0.7010991325 | N79: 0.02508096079
B80: 914 | C80: Retten i Nykøbing F. | D80: Elev | E80: 0.55852234 | F80: 0.27925 | G80: 0.007200288 | H80: 0.0036 | I80: 0.64352574 | J80: 0.32175 | K80: 0.2871448187 | L80: 0.1435666667 | M80: 0.02206754933 | N80: 0.01103333333
B81: 914 | C81: Retten i Nykøbing F. | D81: Fleks | E81: 0.1569445161 | F81: 0.3870967742 | G81: 0.244135914 | H81: 0.6021505376 | I81: 0 | J81: 0 | K81: 0 | L81: 0 | M81: 0 | N81: 0
B82: 914 | C82: Retten i Nykøbing F. | D82: Øvrige | E82: 0.7178880075 | F82: 0.2502101701 | G82: 0.05522215442 | H82: 0.01924693616 | I82: 0 | J82: 0 | K82: 0.3202884956 | L82: 0.1116322297 | M82: 0 | N82: 0
B83: 915 | C83: Retten i Næstved | D83: Jurister | E83: 6.46858341 | F83: 0.3999670688 | G83: 4.692759421 | H83: 0.2901638753 | I83: 2.194497822 | J83: 0.1356907387 | K83: 1.534784382 | L83: 0.09489917211 | M83: 0.03486536404 | N83: 0.002155803917
B84: 915 | C84: Retten i Næstved | D84: Kontor | E84: 9.378447638 | F84: 0.2564545399 | G84: 5.403390898 | H84: 0.1477562365 | I84: 7.811987775 | J84: 0.2136195465 | K84: 6.736438713 | L84: 0.1842085554 | M84: 0.9552922544 | N84: 0.02612255728
B85: 915 | C85: Retten i Næstved | D85: Elev | E85: 1.097952178 | F85: 0.3434685509 | G85: 0.2885915118 | H85: 0.09027907623 | I85: 0.5911631579 | J85: 0.1849315091 | K85: 0.4517176931 | L85: 0.1413092706 | M85: 0.03229461679 | N85: 0.01010261235
B86: 915 | C86: Retten i Næstved | D86: Fleks | E86: 0.2720578192 | F86: 0.07909738225 | G86: 0 | H86: 0 | I86: 1.591577181 | J86: 0.4627310071 | K86: 0.5967956648 | L86: 0.1735108183 | M86: 0.297416995 | N86: 0.08647024304
B87: 915 | C87: Retten i Næstved | D87: Øvrige | E87: 0.1537223935 | F87: 0.03873730095 | G87: 0.1468902871 | H87: 0.03701564313 | I87: 0 | J87: 0 | K87: 0.07707947965 | L87: 0.01942365671 | M87: 0.1229341358 | N87: 0.03097880867
B88: 916 | C88: Retten i Holbæk | D88: Jurister | E88: 5.437560343 | F88: 0.437585884 | G88: 3.78193556 | H88: 0.304350023 | I88: 1.444322533 | J88: 0.1162313818 | K88: 0.9959015901 | L88: 0.08014485361 | M88: 0.02536790939 | N88: 0.002041474182
B89: 916 | C89: Retten i Holbæk | D89: Kontor | E89: 5.608508123 | F89: 0.2448010941 | G89: 3.386346537 | H89: 0.1478078161 | I89: 5.414432277 | J89: 0.2363300394 | K89: 5.017430606 | L89: 0.2190016445 | M89: 0.5631408408 | N89: 0.02458006496
B90: 916 | C90: Retten i Holbæk | D90: Elev | E90: 0.329909897 | F90: 0.3299 | G90: 0.015800474 | H90: 0.0158 | I90: 0.402212066 | J90: 0.4022 | K90: 0.032300969 | L90: 0.0323 | M90: 0.009900297 | N90: 0.0099
B91: 916 | C91: Retten i Holbæk | D91: Fleks | E91: 1.000037049 | F91: 0.4404751003 | G91: 1.000037049 | H91: 0.4404751003 | I91: 0.0624901007 | J91: 0.02752431363 | K91: 0 | L91: 0 | M91: 0 | N91: 0
B92: 916 | C92: Retten i Holbæk | D92: Øvrige | E92: 0.2753316046 | F92: 0.09391341875 | G92: 0.00453139542 | H92: 0.001545622909 | I92: 0.01103744832 | J92: 0.003764785768 | K92: 0.01904089495 | L92: 0.006494697707 | M92: 0.1767164438 | N92: 0.06027657236
B93: 917 | C93: Retten i Roskilde | D93: Jurister | E93: 8.022892902 | F93: 0.4281042993 | G93: 5.406533741 | H93: 0.2884944829 | I93: 2.045873805 | J93: 0.1091685234 | K93: 1.884365108 | L93: 0.1005503643 | M93: 0.002604549721 | N93: 0.0001389796607
B94: 917 | C94: Retten i Roskilde | D94: Kontor | E94: 10.60058376 | F94: 0.2696154469 | G94: 6.161184472 | H94: 0.1567036818 | I94: 6.993201616 | J94: 0.1778652215 | K94: 7.588508397 | L94: 0.1930062653 | M94: 0.9057028969 | N94: 0.02303566452
B95: 917 | C95: Retten i Roskilde | D95: Elev | E95: 0.2052594889 | F95: 0.1525265016 | G95: 0.1281995433 | H95: 0.09526394101 | I95: 0.7778508843 | J95: 0.5780140774 | K95: 0.2336045304 | L95: 0.1735894499 | M95: 0.0008155529861 | N95: 0.000606030174
B96: 917 | C96: Retten i Roskilde | D96: Fleks | E96: 0 | F96: 0 | G96: 0 | H96: 0 | I96: 0 | J96: 0 | K96: 0 | L96: 0 | M96: 0 | N96: 0
B97: 917 | C97: Retten i Roskilde | D97: Øvrige | E97: 0.5000279737 | F97: 0.2973684211 | G97: 0.5130818013 | H97: 0.3051315789 | I97: 0.004203775 | J97: 0.0025 | K97: 0 | L97: 0 | M97: 0 | N97: 0
B98: 918 | C98: Retten i Hillerød | D98: Jurister | E98: 4.785157204 | F98: 0.3509440491 | G98: 5.150448394 | H98: 0.3777345523 | I98: 1.134397796 | J98: 0.08319688127 | K98: 0.8793156829 | L98: 0.06448912607 | M98: 0.02065255132 | N98: 0.001514660788
B99: 918 | C99: Retten i Hillerød | D99: Kontor | E99: 4.136200841 | F99: 0.2036816949 | G99: 4.148696715 | H99: 0.2042970376 | I99: 3.72552434 | J99: 0.1834584783 | K99: 4.529433388 | L99: 0.2230459073 | M99: 0.7991145443 | N99: 0.03935133013
B100: 918 | C100: Retten i Hillerød | D100: Elev | E100: 0.9294827787 | F100: 0.2998118774 | G100: 0.4064553476 | H100: 0.131105324 | I100: 0.6261781578 | J100: 0.2019786202 | K100: 0.6046977873 | L100: 0.1950499601 | M100: 0.007200240549 | N100: 0.002322493419
B101: 918 | C101: Retten i Hillerød | D101: Fleks | E101: 0.405780361 | F101: 0.2047183151 | G101: 0.011089354 | H101: 0.005594637111 | I101: 1.135390601 | J101: 0.5728104983 | K101: 0.2176854605 | L101: 0.1098234537 | M101: 0.2000029189 | N101: 0.1009025189
B102: 918 | C102: Retten i Hillerød | D102: Øvrige | E102: 1.132002853 | F102: 0.2341272377 | G102: 0.173768917 | H102: 0.03593987101 | I102: 0.0698686585 | J102: 0.01445063144 | K102: 0.1746756824 | L102: 0.03612741338 | M102: 0.2708589797 | N102: 0.05602058737
B103: 919 | C103: Retten i Helsingør | D103: Jurister | E103: 4.60985625 | F103: 0.3426890294 | G103: 5.825912304 | H103: 0.4330886094 | I103: 0.9273392913 | J103: 0.06893685712 | K103: 1.328168826 | L103: 0.09873385658 | M103: 0.02257879289 | N103: 0.001678469827
B104: 919 | C104: Retten i Helsingør | D104: Kontor | E104: 4.98568635 | F104: 0.2155663925 | G104: 3.092225255 | H104: 0.1336987119 | I104: 6.249923564 | J104: 0.2702282858 | K104: 6.156289167 | L104: 0.2661798103 | M104: 0.3027925394 | N104: 0.01309185753
B105: 919 | C105: Retten i Helsingør | D105: Elev | E105: 0.006300189 | F105: 0.0063 | G105: 0.125703771 | H105: 0.1257 | I105: 0.339810194 | J105: 0.3398 | K105: 0.526915807 | L105: 0.5269 | M105: 0.001400042 | N105: 0.0014
B106: 919 | C106: Retten i Helsingør | D106: Fleks | E106: 0.4257017111 | F106: 0.2105099845 | G106: 0.0540473222 | H106: 0.02672646283 | I106: 0.1407804059 | J106: 0.06961607224 | K106: 0.1122674408 | L106: 0.05551637829 | M106: 0.2304811656 | N106: 0.1139732008
B107: 919 | C107: Retten i Helsingør | D107: Øvrige | E107: 0.1808323721 | F107: 0.05842763834 | G107: 0.004080597762 | H107: 0.001318456908 | I107: 0.2247809135 | J107: 0.07262758191 | K107: 0.03839996218 | L107: 0.01240717619 | M107: 0.00591270288 | N107: 0.001910417153
B108: 920 | C108: Retten i Lyngby | D108: Jurister | E108: 4.713776581 | F108: 0.3348913492 | G108: 7.018978435 | H108: 0.4986649489 | I108: 0.4696015009 | J108: 0.03336294742 | K108: 1.14971863 | L108: 0.0816820264 | M108: 0.002897837953 | N108: 0.0002058775687
B109: 920 | C109: Retten i Lyngby | D109: Kontor | E109: 5.501208612 | F109: 0.2142352843 | G109: 5.946151377 | H109: 0.2315628293 | I109: 2.870857798 | J109: 0.1118007114 | K109: 6.369272246 | L109: 0.2480405574 | M109: 1.689267519 | N109: 0.06578567233
B110: 920 | C110: Retten i Lyngby | D110: Elev | E110: 0.6005093081 | F110: 0.2238643146 | G110: 0.2448463997 | H110: 0.0912764727 | I110: 0.5175797295 | J110: 0.1929489349 | K110: 0.1826175378 | L110: 0.06807812865 | M110: 0.08575615885 | N110: 0.03196910267
B111: 920 | C111: Retten i Lyngby | D111: Fleks | E111: 0 | F111: 0 | G111: 0.009973722326 | H111: 0.01190352118 | I111: 0.6024794509 | J111: 0.7190521924 | K111: 0.004816578099 | L111: 0.00574852974 | M111: 0.2206102486 | N111: 0.2632957567
B112: 920 | C112: Retten i Lyngby | D112: Øvrige | E112: 0 | F112: 0 | G112: 0 | H112: 0 | I112: 0.000921573 | J112: 0.0003 | K112: 0 | L112: 0 | M112: 0 | N112: 0
B113: 921 | C113: Retten i Glostrup | D113: Jurister | E113: 15.3454396 | F113: 0.4425667387 | G113: 12.77557611 | H113: 0.3684511621 | I113: 2.769046563 | J113: 0.07986007168 | K113: 1.523765161 | L113: 0.0439458103 | M113: 0.04078426667 | N113: 0.001176229574
B114: 921 | C114: Retten i Glostrup | D114: Kontor | E114: 18.48967728 | F114: 0.3269016324 | G114: 10.60364791 | H114: 0.1874748682 | I114: 14.79044721 | J114: 0.2614984169 | K114: 5.707315761 | L114: 0.10090662 | M114: 0.6496799429 | N114: 0.01148648679
B115: 921 | C115: Retten i Glostrup | D115: Elev | E115: 0.4869729784 | F115: 0.135231205 | G115: 0.4437536705 | H115: 0.1232293089 | I115: 0.7341022969 | J115: 0.2038584123 | K115: 0.8655122711 | L115: 0.2403506407 | M115: 0.02795131892 | N115: 0.007762012896
B116: 921 | C116: Retten i Glostrup | D116: Fleks | E116: 0.8762723912 | F116: 0.372412787 | G116: 0 | H116: 0 | I116: 1.279498607 | J116: 0.5437825578 | K116: 0 | L116: 0 | M116: 0 | N116: 0
B117: 921 | C117: Retten i Glostrup | D117: Øvrige | E117: 0.6695021363 | F117: 0.1067058111 | G117: 0.01599853995 | H117: 0.002549860693 | I117: 0.2743136147 | J117: 0.04372033359 | K117: 0.05998919793 | L117: 0.009561128597 | M117: 0.1318943192 | N117: 0.02102142704
B118: 922 | C118: Retten på Frederiksberg | D118: Jurister | E118: 13.01542136 | F118: 0.5360746747 | G118: 8.235970437 | H118: 0.3392203027 | I118: 0.9587454806 | J118: 0.03948847737 | K118: 0.8401587892 | L118: 0.03460416972 | M118: 0.08173083423 | N118: 0.003366301342
B119: 922 | C119: Retten på Frederiksberg | D119: Kontor | E119: 13.34301957 | F119: 0.301746035 | G119: 8.946256341 | H119: 0.2023153279 | I119: 8.928122212 | J119: 0.2019052332 | K119: 7.146998303 | L119: 0.161625964 | M119: 0.399683223 | N119: 0.009038645802
B120: 922 | C120: Retten på Frederiksberg | D120: Elev | E120: 0.4055426107 | F120: 0.1315052972 | G120: 1.165929429 | H120: 0.378075921 | I120: 0.7818977104 | J120: 0.2535459605 | K120: 0.7139979689 | L120: 0.2315281122 | M120: 0.005087123791 | N120: 0.001649601567
B121: 922 | C121: Retten på Frederiksberg | D121: Fleks | E121: 0.1208946773 | F121: 0.02579537697 | G121: 1.706952357 | H121: 0.3642135493 | I121: 1.047975678 | J121: 0.223607261 | K121: 0.1008289899 | L121: 0.02151394801 | M121: 0.6709085053 | N121: 0.1431521899
B122: 922 | C122: Retten på Frederiksberg | D122: Øvrige | E122: 0.8020825288 | F122: 0.1223714627 | G122: 0.4769185202 | H122: 0.07276210967 | I122: 0 | J122: 0 | K122: 0.4333511769 | L122: 0.06611516334 | M122: 0 | N122: 0
B123: 923 | C123: Københavns Byret | D123: Jurister | E123: 31.75381425 | F123: 0.5148486275 | G123: 19.07473092 | H123: 0.3092730517 | I123: 3.536503035 | J123: 0.05734000079 | K123: 1.953792444 | L123: 0.03167831588 | M123: 0 | N123: 0
B124: 923 | C124: Københavns Byret | D124: Kontor | E124: 47.48076659 | F124: 0.4274967694 | G124: 22.61906454 | H124: 0.2036525042 | I124: 14.61314356 | J124: 0.131570573 | K124: 8.130571081 | L124: 0.07320422816 | M124: 4.285102649 | N124: 0.03858125449
B125: 923 | C125: Københavns Byret | D125: Elev | E125: 1.911693525 | F125: 0.3567544186 | G125: 1.754054521 | H125: 0.3273363082 | I125: 1.108728911 | J125: 0.2069076099 | K125: 0.3333447325 | L125: 0.06220777791 | M125: 0.1107616481 | N125: 0.02067000116
B126: 923 | C126: Københavns Byret | D126: Fleks | E126: 0 | F126: 0 | G126: 0.2466560779 | H126: 0.3803310223 | I126: 0 | J126: 0 | K126: 0 | L126: 0 | M126: 0 | N126: 0
B127: 923 | C127: Københavns Byret | D127: Øvrige | E127: 2.527967014 | F127: 0.2669039074 | G127: 0.5074966351 | H127: 0.05358172562 | I127: 0 | J127: 0 | K127: 0 | L127: 0 | M127: 0 | N127: 0
B129: 1) Procenten er beregnet i forhold til det samlede årsværksforbrug ved retten inkl. generel ledelse og administration, hvorfor der ikke kan summes op til 100 % for den enkelte ret.
B130: 2) Ansatte under socialt kapitel (fleksjobbere mv.) uden tidsfordeling indgår ikke i denne opgørelse.
B131: 3) Det opgjorte årsværksforbrug er inkl. de korrektioner, der foretages som led i produktivitetsberegningen.

Sheet Dataark til 901-924 (hidden)
B11: Samlet produktivitet, retten | D11: Samlet produktivitet, jurister | F11: Samlet produktivitet, kontor | H11: ÅRVK ledelse og adm. | J11: Sagstider domsmandssager | L11: Sagstider hfh. alm. Civil | N11: Sagstid alm. fogedsag | P11: Målopfyldelse vold | R11: Målopfyldelse voldtægt | T11: Sygefravær | V11: Personaleomsætning | X11: Årsværk retten | Z11: Årsværk jurist | AB11: Årsværk kontor | AD11: Samlet lønsum
A12: Ret | B12: 2013 | C12: 2014 | D12: 2013 | E12: 2014 | F12: 2013 | G12: 2014 | H12: 2013 | I12: 2014 | J12: 2013 | K12: 2014 | L12: 2013 | M12: 2014 | N12: 2013 | O12: 2014 | P12: 2013 | Q12: 2014 | R12: 2013 | S12: 2014 | T12: 2013 | U12: 2014 | V12: 2013 | W12: 2014 | X12: 2013 | Y12: 2014 | Z12: 2013 | AA12: 2014 | AB12: 2013 | AC12: 2014 | AD12: 2013 | AE12: 2014
A13: Retten i Hjørring | B13: 102.9146793 | C13: 103.5231212 | D13: 101.4346809 | E13: 100.759754 | F13: 103.2149744 | G13: 103.3974315 | H13: 0.1868261939 | I13: 0.1665256771 | J13: 96 | K13: 95 | L13: 631.7745665 | M13: 525.5742574 | N13: 49.86269469 | O13: 49.91041129 | P13: 64 | Q13: 56.25 | R13: 75 | S13: 33.33333333 | T13: 5.7 | U13: 8.9 | V13: 12.7 | W13: 5.7 | X13: 53.476 | Y13: 50.05401 | Z13: 14.51677 | AA13: 13.73052 | AB13: 29.3254 | AC13: 28.51714 | AD13: 25.23077424 | AE13: 23.90913679 | AF13: Retten i Hjørring
A14: Retten i Aalborg | B14: 98.62855147 | C14: 96.6556053 | D14: 98.45801217 | E14: 89.37239006 | F14: 98.27397591 | G14: 106.1063077 | H14: 0.1339181623 | I14: 0.1197207669 | J14: 106 | K14: 114 | L14: 593.4757282 | M14: 527.4122807 | N14: 41.55710276 | O14: 43.94413408 | P14: 33.89830508 | Q14: 54.28571429 | R14: 60 | S14: 100 | T14: 5.1 | U14: 7.5 | V14: 12 | W14: 14.9 | X14: 75.60557 | Y14: 74.76297 | Z14: 20.77576 | AA14: 23.25516 | AB14: 43.97071 | AC14: 40.42406 | AD14: 36.32284163 | AE14: 36.63402749 | AF14: Retten i Aalborg
A15: Retten i Randers | B15: 97.0241151 | C15: 103.339095 | D15: 91.55018696 | E15: 96.00976208 | F15: 105.3368061 | G15: 117.9593277 | H15: 0.1980503732 | I15: 0.2099300769 | J15: 151 | K15: 124 | L15: 622.7865854 | M15: 555.5109489 | N15: 47.72560892 | O15: 58.37249399 | P15: 40 | Q15: 47.72727273 | R15: 0 | S15: 66.66666667 | T15: 6.9 | U15: 8.2 | V15: 10.8 | W15: 16.8 | X15: 51.35568 | Y15: 51.06822 | Z15: 14.54448 | AA15: 14.54934 | AB15: 28.09834 | AC15: 26.15055 | AD15: 26.74664964 | AE15: 25.62575263 | AF15: Retten i Randers
A16: Retten i Århus | B16: 98.14882931 | C16: 96.18247078 | D16: 94.28098483 | E16: 89.7982108 | F16: 104.1593869 | G16: 109.6431052 | H16: 0.1656399121 | I16: 0.1516882453 | J16: 140 | K16: 139 | L16: 494.8684211 | M16: 483.0638298 | N16: 56.95581015 | O16: 59.21347896 | P16: 38.46153846 | Q16: 27.08333333 | R16: 100 | S16: 14.28571429 | T16: 10.8 | U16: 9.6 | V16: 11.6 | W16: 13.7 | X16: 83.99051 | Y16: 81.20104 | Z16: 25.22725 | AA16: 25.26038 | AB16: 45.35235 | AC16: 41.33383 | AD16: 41.02113215 | AE16: 40.6273674 | AF16: Retten i Århus
A17: Retten i Viborg | B17: 97.24417792 | C17: 96.93034019 | D17: 92.31263346 | E17: 86.7549527 | F17: 105.8387295 | G17: 111.2954665 | H17: 0.1831987808 | I17: 0.1776954429 | J17: 108 | K17: 128 | L17: 534.7073171 | M17: 519.2689655 | N17: 47.35630204 | O17: 51.79351254 | P17: 67.74193548 | Q17: 62.16216216 | R17: 0 | S17: 100 | T17: 4.7 | U17: 5.9 | V17: 16.2 | W17: 19.2 | X17: 53.08464 | Y17: 52.03653 | Z17: 15.00269 | AA17: 15.44982 | AB17: 28.03999 | AC17: 26.36467 | AD17: 25.88336059 | AE17: 24.61018693 | AF17: Retten i Viborg
A18: Retten i Holstebro | B18: 103.5572491 | C18: 100.812459 | D18: 103.5300145 | E18: 99.45621923 | F18: 106.9435187 | G18: 105.1031682 | H18: 0.2155162205 | I18: 0.2143408913 | J18: 86 | K18: 84 | L18: 475.9032258 | M18: 413.4242424 | N18: 32.54022491 | O18: 34.27151899 | P18: 72.72727273 | Q18: 71.42857143 | R18: 100 | S18: 50 | T18: 5 | U18: 7.3 | V18: 16.2 | W18: 14.1 | X18: 38.40156 | Y18: 37.12805 | Z18: 9.67165 | AA18: 9.58671 | AB18: 20.53304 | AC18: 20.18777 | AD18: 19.40336905 | AE18: 19.09541128 | AF18: Retten i Holstebro
A19: Retten i Herning | B19: 92.5848018 | C19: 99.65816242 | D19: 82.04356593 | E19: 89.417041 | F19: 104.7436876 | G19: 111.3990738 | H19: 0.1955231872 | I19: 0.1893007858 | J19: 94 | K19: 91 | L19: 433.9708738 | M19: 520.7297297 | N19: 46.84155791 | O19: 46.73239437 | P19: 52.63157895 | Q19: 76.92307692 | R19: 16.66666667 | S19: 66.66666667 | T19: 8.6 | U19: 5.7 | V19: 15.3 | W19: 15.6 | X19: 38.76992 | Y19: 37.47035 | Z19: 11.84085 | AA19: 11.39788 | AB19: 20.75833 | AC19: 20.21608 | AD19: 20.02559767 | AE19: 19.00288448 | AF19: Retten i Herning
A20: Retten i Horsens | B20: 96.30874721 | C20: 89.74637006 | D20: 90.97352822 | E20: 80.99846156 | F20: 103.1020684 | G20: 100.8419553 | H20: 0.1979407442 | I20: 0.1918271636 | J20: 96 | K20: 111 | L20: 418 | M20: 434.1073826 | N20: 49.71742972 | O20: 46.29432687 | P20: 47.05882353 | Q20: 40 | R20: 0 | S20: 50 | T20: 5.3 | U20: 7.7 | V20: 13.3 | W20: 15.7 | X20: 49.88988 | Y20: 48.3814 | Z20: 14.06581 | AA20: 14.3927 | AB20: 25.31688 | AC20: 24.3045 | AD20: 24.53226103 | AE20: 24.09609649 | AF20: Retten i Horsens
A21: Retten i Kolding | B21: 103.4065127 | C21: 102.7438446 | D21: 93.44213967 | E21: 95.50833868 | F21: 112.1976912 | G21: 109.1412959 | H21: 0.1814648532 | I21: 0.1734292531 | J21: 105 | K21: 99 | L21: 510.0465116 | M21: 480.371134 | N21: 46.31372549 | O21: 52.97362322 | P21: 61.2244898 | Q21: 60 | R21: 100 | S21: 75 | T21: 11.7 | U21: 15.9 | V21: 6.6 | W21: 15.3 | X21: 67.53552 | Y21: 66.6538 | Z21: 21.33572 | AA21: 19.78779 | AB21: 37.2161 | AC21: 36.96165 | AD21: 35.21200134 | AE21: 33.98298785 | AF21: Retten i Kolding
A22: Retten i Esbjerg | B22: 99.69839621 | C22: 96.95557776 | D22: 95.03327915 | E22: 90.16354519 | F22: 101.4630039 | G22: 101.1639788 | H22: 0.1544399994 | I22: 0.1449473346 | J22: 143 | K22: 133 | L22: 631.4972067 | M22: 627.1860465 | N22: 58.91485835 | O22: 42.71642026 | P22: 30.86419753 | Q22: 40 | R22: 0 | S22: 0 | T22: 10.3 | U22: 8.5 | V22: 15 | W22: 15.2 | X22: 54.27444 | Y22: 51.83652 | Z22: 14.92874 | AA22: 14.62602 | AB22: 29.74744 | AC22: 27.96305 | AD22: 26.28483427 | AE22: 25.05472688 | AF22: Retten i Esbjerg
A23: Retten i Sønderborg | B23: 103.0055282 | C23: 106.4151909 | D23: 98.84884045 | E23: 103.7144091 | F23: 105.9415153 | G23: 108.6960709 | H23: 0.1968216784 | I23: 0.2000639601 | J23: 77 | K23: 81 | L23: 588.0246914 | M23: 405.7076923 | N23: 52.85101266 | O23: 51.7282204 | P23: 75.67567568 | Q23: 63.82978723 | R23: 100 | S23: - | T23: 7 | U23: 6.2 | V23: 10.2 | W23: 10.3 | X23: 58.41784 | Y23: 55.80884 | Z23: 17.36145 | AA23: 15.55415 | AB23: 33.50583 | AC23: 32.17316 | AD23: 32.07104816 | AE23: 30.87363142 | AF23: Retten i Sønderborg
A24: Retten i Odense | B24: 108.3800934 | C24: 96.5395286 | D24: 106.2807687 | E24: 89.58908157 | F24: 110.9626462 | G24: 104.5850874 | H24: 0.1610274217 | I24: 0.1668205188 | J24: 97 | K24: 92 | L24: 460.0165746 | M24: 410.88 | N24: 50.36748596 | O24: 60.92986425 | P24: 51.11111111 | Q24: 45.71428571 | R24: 40 | S24: 30.76923077 | T24: 7.7 | U24: 9.5 | V24: 8.3 | W24: 7.9 | X24: 77.86296 | Y24: 77.07732 | Z24: 21.81471 | AA24: 23.71285 | AB24: 45.22965 | AC24: 43.9482 | AD24: 38.81514503 | AE24: 38.61886183 | AF24: Retten i Odense
A25: Retten i Svendborg | B25: 98.99112703 | C25: 99.80214422 | D25: 96.48288534 | E25: 95.62400779 | F25: 103.5551398 | G25: 107.9791467 | H25: 0.1662743921 | I25: 0.1705922523 | J25: 105 | K25: 122 | L25: 479.2658228 | M25: 477.09375 | N25: 47.2630719 | O25: 56.18881119 | P25: 56.60377358 | Q25: 51.28205128 | R25: 40 | S25: 0 | T25: 14.2 | U25: 7.4 | V25: 17.7 | W25: 14.5 | X25: 36.96098 | Y25: 36.62017 | Z25: 10.30021 | AA25: 10.27236 | AB25: 21.70681 | AC25: 20.21508 | AD25: 19.70705955 | AE25: 18.51114105 | AF25: Retten i Svendborg
A26: Retten i Nykøbing F. | B26: 101.1958707 | C26: 99.31443827 | D26: 103.2506045 | E26: 101.3997252 | F26: 99.98645671 | G26: 96.93095285 | H26: 0.2136326657 | I26: 0.1807260383 | J26: 94 | K26: 80 | L26: 390.2222222 | M26: 382.2692308 | N26: 51.22872467 | O26: 46.03074305 | P26: 43.83561644 | Q26: 67.30769231 | R26: 100 | S26: 50 | T26: 3.8 | U26: 7.2 | V26: 15.8 | W26: 11.5 | X26: 49.93317 | Y26: 50.32492 | Z26: 13.97805 | AA26: 13.82973 | AB26: 30.55141 | AC26: 30.67865 | AD26: 25.6823684 | AE26: 25.17850572 | AF26: Retten i Nykøbing F.
A27: Retten i Næstved | B27: 106.4522251 | C27: 102.3117616 | D27: 101.2406033 | E27: 95.96222851 | F27: 111.6879755 | G27: 108.2319237 | H27: 0.2110018934 | I27: 0.2055415245 | J27: 132 | K27: 137 | L27: 524.7538462 | M27: 502.7627119 | N27: 59.44236241 | O27: 69.69931074 | P27: 38.0952381 | Q27: 31.81818182 | R27: 50 | S27: 22.22222222 | T27: 9 | U27: 8 | V27: 19.7 | W27: 12.6 | X27: 63.45753 | Y27: 60.64993 | Z27: 18.70124 | AA27: 17.55258 | AB27: 35.80973 | AC27: 34.2524 | AD27: 31.63077126 | AE27: 29.79163161 | AF27: Retten i Næstved
A28: Retten i Holbæk | B28: 97.5198651 | C28: 101.478968 | D28: 98.0654575 | E28: 98.97449175 | F28: 95.65987869 | G28: 102.2496137 | H28: 0.1791150763 | I28: 0.1726009196 | J28: 121 | K28: 92 | L28: 423.1904762 | M28: 406.2105263 | N28: 61.38024691 | O28: 62.59675489 | P28: 66.66666667 | Q28: 60 | R28: 66.66666667 | S28: 33.33333333 | T28: 7.3 | U28: 8.7 | V28: 14.1 | W28: 18.7 | X28: 49.02491 | Y28: 45.54094 | Z28: 12.88079 | AA28: 12.52644 | AB28: 27.5082 | AC28: 25.08951 | AD28: 23.08612638 | AE28: 22.46541318 | AF28: Retten i Holbæk
A29: Retten i Roskilde | B29: 101.069153 | C29: 101.644567 | D29: 93.84592474 | E29: 99.36044334 | F29: 107.666467 | G29: 101.7161825 | H29: 0.1856861136 | I29: 0.1794598483 | J29: 152 | K29: 133 | L29: 631.7375566 | M29: 468.0430108 | N29: 62.14235163 | O29: 56.66790871 | P29: 38.46153846 | Q29: 26.66666667 | R29: - | S29: 0 | T29: 8 | U29: 4.5 | V29: 19.9 | W29: 11.9 | X29: 73.92877 | Y29: 71.54561 | Z29: 22.48327 | AA29: 20.71814 | AB29: 41.59892 | AC29: 43.09007 | AD29: 38.57747683 | AE29: 37.60096141 | AF29: Retten i Roskilde
A30: Retten i Hillerød | B30: 98.37624366 | C30: 92.68948395 | D30: 93.0362009 | E30: 83.08629181 | F30: 111.8642549 | G30: 111.2224862 | H30: 0.2259331167 | I30: 0.1991529722 | J30: 93 | K30: 113 | L30: 457.4690265 | M30: 502.826087 | N30: 49.4952913 | O30: 52.278487 | P30: 56.25 | Q30: 41.37931034 | R30: 50 | S30: 50 | T30: 9.2 | U30: 11.2 | V30: 20.1 | W30: 12.9 | X30: 51.95118 | Y30: 51.27185 | Z30: 14.9175 | AA30: 15.82924 | AB30: 25.88941 | AC30: 24.89634 | AD30: 26.59530339 | AE30: 25.43023796 | AF30: Retten i Hillerød
A31: Retten i Helsingør | B31: 96.60724523 | C31: 95.73488114 | D31: 85.9110245 | E31: 81.20297998 | F31: 105.9668203 | G31: 112.4083829 | H31: 0.1578139783 | I31: 0.1449705115 | J31: 106 | K31: 112 | L31: 446.7733333 | M31: 559.9230769 | N31: 55.7016081 | O31: 68.93901858 | P31: 53.84615385 | Q31: 40 | R31: - | S31: 0 | T31: 13.1 | U31: 10.5 | V31: 17.9 | W31: 8.1 | X31: 47.84352 | Y31: 48.75499 | Z31: 14.47586 | AA31: 15.65373 | AB31: 25.18211 | AC31: 23.82526 | AD31: 25.17136882 | AE31: 24.29663369 | AF31: Retten i Helsingør
A32: Retten i Lyngby | B32: 96.82753324 | C32: 88.90590959 | D32: 86.51477605 | E32: 79.383929 | F32: 110.7851418 | G32: 101.3125505 | H32: 0.2167293196 | I32: 0.2029569311 | J32: 103 | K32: 105 | L32: 475.2258065 | M32: 385.046729 | N32: 39.57969813 | O32: 41.28764479 | P32: 72.72727273 | Q32: 60 | R32: 100 | S32: 33.33333333 | T32: 9.7 | U32: 8.8 | V32: 15.3 | W32: 16.5 | X32: 55.74239 | Y32: 55.26352 | Z32: 19.51242 | AA32: 18.80749 | AB32: 29.6227 | AC32: 29.49397 | AD32: 31.14209533 | AE32: 29.34078699 | AF32: Retten i Lyngby
A33: Retten i Glostrup | B33: 98.98202225 | C33: 104.7182355 | D33: 100.008897 | E33: 103.6593422 | F33: 99.29484206 | G33: 101.7834329 | H33: 0.2005362955 | I33: 0.1838177813 | J33: 146 | K33: 142 | L33: 614.8410405 | M33: 509.8187702 | N33: 75.69489089 | O33: 80.59972946 | P33: 43.75 | Q33: 32.89473684 | R33: 0 | S33: 0 | T33: 11.8 | U33: 7.5 | V33: 20.6 | W33: 17.3 | X33: 115.40872 | Y33: 106.84539 | Z33: 32.60759 | AA33: 30.84999 | AB33: 66.42532 | AC33: 63.61432 | AD33: 56.2588608 | AE33: 54.12637493 | AF33: Retten i Glostrup
A34: Retten på Frederiksberg | B34: 101.2561076 | C34: 103.1249909 | D34: 97.63529013 | E34: 96.62965753 | F34: 107.7453051 | G34: 112.175938 | H34: 0.2027823079 | I34: 0.1769760671 | J34: 180 | K34: 162 | L34: 551.3023256 | M34: 542.7112299 | N34: 86.15949623 | O34: 76.66579713 | P34: 8.695652174 | Q34: 26.47058824 | R34: 0 | S34: 40 | T34: 12 | U34: 10.9 | V34: 18.3 | W34: 15.6 | X34: 79.92535 | Y34: 80.89792 | Z34: 23.83584 | AA34: 25.78624 | AB34: 44.71399 | AC34: 43.13565 | AD34: 40.40890417 | AE34: 40.72638703 | AF34: Retten på Frederiksberg
A35: Københavns Byret | B35: 96.14494276 | C35: 94.63679124 | D35: 97.09472333 | E35: 93.86221962 | F35: 91.31934696 | G35: 91.19352344 | H35: 0.2065795179 | I35: 0.2060769464 | J35: 96 | K35: 104 | L35: 512.7992278 | M35: 529.8726592 | N35: 78.12335474 | O35: 73.15736591 | P35: 70 | Q35: 38.02816901 | R35: - | S35: 16.66666667 | T35: 8.1 | U35: 10.3 | V35: 9.6 | W35: 8.7 | X35: 190.18872 | Y35: 186.12346 | Z35: 58.73651 | AA35: 59.37777 | AB35: 113.64497 | AC35: 108.74881 | AD35: 102.9923745 | AE35: 101.9412044 | AF35: Københavns Byret
A36: Retten på Bornholm | B36: 63.43657445 | C36: 62.38123174 | D36: 64.7059556 | E36: 61.18431382 | F36: 66.6434586 | G36: 67.97281795 | H36: 0.3379421224 | I36: 0.3262324987 | J36: 46 | K36: 35 | L36: 291.3529412 | M36: 332.1111111 | N36: 27.57464366 | O36: 27.50285249 | P36: 94.73684211 | Q36: 78.94736842 | R36: 100 | S36: - | T36: 7.2 | U36: 8.7 | V36: 6.4 | W36: 19.4 | X36: 14.55013 | Y36: 14.58443 | Z36: 3.48785 | AA36: 3.77068 | AB36: 7.80507 | AC36: 7.52959 | AD36: 7.31 | AE36: 7.08154941 | AF36: Retten på Bornholm
B37: 0 | C37: 0 | D37: 0 | E37: 0 | F37: 0 | G37: 0 | H37: 0 | I37: 0 | J37: 0 | K37: 0 | L37: 0 | M37: 0 | N37: 0 | O37: 0 | P37: 0 | Q37: 0 | R37: 0 | S37: 0 | T37: 0 | U37: 0 | V37: 0 | W37: 0 | X37: 0 | Y37: 0 | Z37: 0 | AA37: 0 | AB37: 0 | AC37: 0 | AD37: 0 | AE37: 0
B41: Samlet produktivitet, retten | D41: Samlet produktivitet, jurister | F41: Samlet produktivitet, kontor | H41: ÅRVK ledelse og adm. | J41: Sagstider domsmandssager | L41: Sagstider hfh. alm. Civil | N41: Sagstid alm. fogedsag | P41: Målopfyldelse vold | R41: Målopfyldelse voldtægt | T41: Sygefravær | V41: Personaleomsætning | X41: Årsværk retten | Z41: Årsværk jurist | AB41: Årsværk kontor | AD41: Samlet lønsum
A42: Ret | B42: 2010 | C42: 2011 | D42: 2010 | E42: 2011 | F42: 2010 | G42: 2011 | H42: 2011 | J42: 2011 | L42: 2011 | N42: 2011 | P42: 2011 | R42: 2011 | T42: 2011 | V42: 2011 | X42: 2011 | Z42: 2011 | AB42: 2011 | AD42: 2011
A43: Retten i Hjørring | H43: 0.1808500373 | I43: =#REF!-H43 ->  | J43: 93 | K43: =J13-J43 -> 3 | L43: 588.737931 | M43: =L13-L43 -> 43.03663544 | N43: 59.02804965 | O43: =N13-N43 -> -9.165354958 | P43: 72.72727273 | Q43: =P13-P43 -> -8.727272727 | R43: 75 | S43: =R13-R43 -> 0 | T43: 9.195340336 | U43: =T13-T43 -> -3.495340336 | V43: 13.3 | W43: =V13-V43 -> -0.6 | X43: 59.79526 | Y43: =#REF!-X43 ->  | Z43: 13.34803 | AA43: =#REF!-Z43 ->  | AB43: 33.06976 | AC43: =#REF!-AB43 ->  | AD43: 25.84077727 | AE43: =AD13-AD43 -> -0.61000303
A44: Retten i Aalborg | H44: 0.1440885883 | I44: =#REF!-H44 ->  | J44: 89 | K44: =J14-J44 -> 17 | L44: 549.7346939 | M44: =L14-L44 -> 43.74103428 | N44: 81.29756381 | O44: =N14-N44 -> -39.74046105 | P44: 70 | Q44: =P14-P44 -> -36.10169492 | R44: 0 | S44: =R14-R44 -> 60 | T44: 7.44756948 | U44: =T14-T44 -> -2.34756948 | V44: 11.1 | W44: =V14-V44 -> 0.9 | X44: 80.50898 | Y44: =#REF!-X44 ->  | Z44: 22.18722 | AA44: =#REF!-Z44 ->  | AB44: 48.742 | AC44: =#REF!-AB44 ->  | AD44: 38.77436805 | AE44: =AD14-AD44 -> -2.45152642
A45: Retten i Randers | H45: 0.2242573374 | I45: =#REF!-H45 ->  | J45: 160 | K45: -9 | L45: 633.4363636 | M45: -10.64977827 | N45: 76.65538674 | O45: -28.92977782 | P45: 43.1372549 | Q45: -3.137254902 | R45: 0 | S45: 0 | T45: 7.923213529 | U45: -1.023213529 | V45: 6.1 | W45: 4.7 | X45: 58.17027 | Y45: =#REF!-X45 ->  | Z45: 16.642 | AA45: =#REF!-Z45 ->  | AB45: 31.602 | AC45: =#REF!-AB45 ->  | AD45: 28.27830635 | AE45: -1.53165671
A46: Retten i Århus | H46: 0.1740744916 | I46: =#REF!-H46 ->  | J46: 187 | K46: -47 | L46: 585.8815789 | M46: -91.01315789 | N46: 68.09649662 | O46: -11.14068647 | P46: 44.44444444 | Q46: -5.982905983 | R46: 0 | S46: 100 | T46: 10.94548768 | U46: -0.1454876758 | V46: 11.4 | W46: 0.2 | X46: 90.00205 | Y46: =#REF!-X46 ->  | Z46: 26.56876 | AA46: =#REF!-Z46 ->  | AB46: 50.61565 | AC46: =#REF!-AB46 ->  | AD46: 43.96941009 | AE46: -2.94827794
A47: Retten i Viborg | H47: 0.1869106164 | I47: =#REF!-H47 ->  | J47: 110 | K47: -2 | L47: 598.0942408 | M47: -63.38692376 | N47: 70.36160608 | O47: -23.00530404 | P47: 67.64705882 | Q47: 0.09487666034 | R47: 100 | S47: -100 | T47: 7.021671724 | U47: -2.321671724 | V47: 10.2 | W47: 6 | X47: 55.19659 | Y47: =#REF!-X47 ->  | Z47: 15.1701 | AA47: =#REF!-Z47 ->  | AB47: 30.18242 | AC47: =#REF!-AB47 ->  | AD47: 26.64360749 | AE47: -0.7602469
A48: Retten i Holstebro | H48: 0.2156894162 | I48: =#REF!-H48 ->  | J48: 99 | K48: -13 | L48: 517.1038961 | M48: -41.2006703 | N48: 33.32733875 | O48: -0.787113838 | P48: 44.06779661 | Q48: 28.65947612 | R48: 66.66666667 | S48: 33.33333333 | T48: 7.512563132 | U48: -2.512563132 | V48: 11.9 | W48: 4.3 | X48: 46.44103 | Y48: =#REF!-X48 ->  | Z48: 11.27 | AA48: =#REF!-Z48 ->  | AB48: 23.056 | AC48: =#REF!-AB48 ->  | AD48: 21.76629581 | AE48: -2.36292676
A49: Retten i Herning | H49: 0.2140891957 | I49: =#REF!-H49 ->  | J49: 93 | K49: 1 | L49: 504 | M49: -70.02912621 | N49: 46.15043463 | O49: 0.6911232819 | P49: 60.41666667 | Q49: -7.785087719 | R49: 0 | S49: 16.66666667 | T49: 12.53367166 | U49: -3.933671661 | V49: 17.4 | W49: -2.1 | X49: 42.52615 | Y49: =#REF!-X49 ->  | Z49: 11.84873 | AA49: =#REF!-Z49 ->  | AB49: 23.57106 | AC49: =#REF!-AB49 ->  | AD49: 21.11471095 | AE49: -1.08911328
A50: Retten i Horsens | H50: 0.1978894442 | I50: =#REF!-H50 ->  | J50: 75 | K50: 21 | L50: 454.2037037 | M50: -36.2037037 | N50: 53.19851049 | O50: -3.481080771 | P50: 54.23728814 | Q50: -7.178464606 | R50: 999 | S50: -999 | T50: 9.656788281 | U50: -4.356788281 | V50: 12.5 | W50: 0.8 | X50: 53.41053 | Y50: =#REF!-X50 ->  | Z50: 14.38903 | AA50: =#REF!-Z50 ->  | AB50: 26.41923 | AC50: =#REF!-AB50 ->  | AD50: 25.08928797 | AE50: -0.55702694
A51: Retten i Kolding | H51: 0.1649720064 | I51: =#REF!-H51 ->  | J51: 150 | K51: -45 | L51: 651.4146341 | M51: -141.3681225 | N51: 50.7865086 | O51: -4.47278311 | P51: 65.51724138 | Q51: -4.292751583 | R51: 999 | S51: -899 | T51: 8.675627926 | U51: 3.024372074 | V51: 6.1 | W51: 0.5 | X51: 76.6875 | Y51: =#REF!-X51 ->  | Z51: 20.54952 | AA51: =#REF!-Z51 ->  | AB51: 45.06554 | AC51: =#REF!-AB51 ->  | AD51: 36.12998449 | AE51: -0.91798315
A52: Retten i Esbjerg | H52: 0.160884098 | I52: =#REF!-H52 ->  | J52: 134 | K52: 9 | L52: 627.5329949 | M52: 3.96421178 | N52: 57.25041368 | O52: 1.664444668 | P52: 31.91489362 | Q52: -1.050696086 | R52: 20 | S52: -20 | T52: 9.830962196 | U52: 0.469037804 | V52: 12.2 | W52: 2.8 | X52: 56.23196 | Y52: =#REF!-X52 ->  | Z52: 15.1442 | AA52: =#REF!-Z52 ->  | AB52: 32.03157 | AC52: =#REF!-AB52 ->  | AD52: 27.40345038 | AE52: -1.11861611
A53: Retten i Sønderborg | H53: 0.2093655007 | I53: =#REF!-H53 ->  | J53: 146 | K53: -69 | L53: 670.3020134 | M53: -82.27732206 | N53: 66.74565217 | O53: -13.89463951 | P53: 51.25 | Q53: 24.42567568 | R53: 0 | S53: 100 | T53: 5.1 | U53: 1.9 | V53: 12.9 | W53: -2.7 | X53: 62.58565 | Y53: =#REF!-X53 ->  | Z53: 15.411 | AA53: =#REF!-Z53 ->  | AB53: 36.905 | AC53: =#REF!-AB53 ->  | AD53: 32.31378702 | AE53: -0.24273886
A54: Retten i Odense | H54: 0.1463671875 | I54: =#REF!-H54 ->  | J54: 86 | K54: 11 | L54: 428.4694836 | M54: 31.54709102 | N54: 66.62457364 | O54: -16.25708768 | P54: 60.46511628 | Q54: -9.354005168 | R54: 37.5 | S54: 2.5 | T54: 7.222463525 | U54: 0.4775364751 | V54: 20.8 | W54: -12.5 | X54: 89.18757 | Y54: =#REF!-X54 ->  | Z54: 24.26146 | AA54: =#REF!-Z54 ->  | AB54: 52.27552 | AC54: =#REF!-AB54 ->  | AD54: 42.19547545 | AE54: -3.38033042
A55: Retten i Svendborg | H55: 0.2310023534 | I55: =#REF!-H55 ->  | J55: 100 | K55: 5 | L55: 457.0487805 | M55: 22.2170423 | N55: 39.74894068 | O55: 7.514131217 | P55: 60.52631579 | Q55: -3.922542205 | R55: 0 | S55: 40 | T55: 7.534810135 | U55: 6.665189865 | V55: 13.5 | W55: 4.2 | X55: 46.62935 | Y55: =#REF!-X55 ->  | Z55: 12.16381 | AA55: =#REF!-Z55 ->  | AB55: 26.86367 | AC55: =#REF!-AB55 ->  | AD55: 21.33413431 | AE55: -1.62707476
A56: Retten i Nykøbing F. | H56: 0.2106800886 | I56: =#REF!-H56 ->  | J56: 89 | K56: 5 | L56: 511.1076923 | M56: -120.8854701 | N56: 58.32441823 | O56: -7.095693557 | P56: 75 | Q56: -31.16438356 | R56: 33.33333333 | S56: 66.66666667 | T56: 3.1 | U56: 0.7 | V56: 5.9 | W56: 9.9 | X56: 57.71872 | Y56: =#REF!-X56 ->  | Z56: 15.11914 | AA56: =#REF!-Z56 ->  | AB56: 36.06329 | AC56: =#REF!-AB56 ->  | AD56: 27.75952561 | AE56: -2.07715721
A57: Retten i Næstved | H57: 0.2009634119 | I57: =#REF!-H57 ->  | J57: 175 | K57: -43 | L57: 667.1578947 | M57: -142.4040486 | N57: 90.31952363 | O57: -30.87716122 | P57: 19.60784314 | Q57: 18.48739496 | R57: 42.85714286 | S57: 7.142857143 | T57: 9.143692893 | U57: -0.1436928928 | V57: 8.7 | W57: 11 | X57: 71.95559 | Y57: =#REF!-X57 ->  | Z57: 19.95737 | AA57: =#REF!-Z57 ->  | AB57: 40.2327 | AC57: =#REF!-AB57 ->  | AD57: 33.44395386 | AE57: -1.8131826
A58: Retten i Holbæk | H58: 0.2013305659 | I58: =#REF!-H58 ->  | J58: 129 | K58: -8 | L58: 492.7288136 | M58: -69.53833737 | N58: 79.91707956 | O58: -18.53683265 | P58: 45.90163934 | Q58: 20.76502732 | R58: 0 | S58: 66.66666667 | T58: 10.0927266 | U58: -2.792726598 | V58: 3.7 | W58: 10.4 | X58: 52.84805 | Y58: =#REF!-X58 ->  | Z58: 12.96697 | AA58: =#REF!-Z58 ->  | AB58: 31.22812 | AC58: =#REF!-AB58 ->  | AD58: 24.06054675 | AE58: -0.97442037
A59: Retten i Roskilde | H59: 0.1985138754 | I59: =#REF!-H59 ->  | J59: 161 | K59: -9 | L59: 580.0681818 | M59: 51.66937474 | N59: 78.76805332 | O59: -16.62570169 | P59: 57.69230769 | Q59: -19.23076923 | R59: 0 | T59: 8.041632025 | U59: -0.04163202497 | V59: 8.1 | W59: 11.8 | X59: 81.93291 | Y59: =#REF!-X59 ->  | Z59: 20.991 | AA59: =#REF!-Z59 ->  | AB59: 50.15184 | AC59: =#REF!-AB59 ->  | AD59: 40.35202857 | AE59: -1.77455174
A60: Retten i Hillerød | H60: 0.1966681251 | I60: =#REF!-H60 ->  | J60: 94 | K60: =J30-J60 -> -1 | L60: 535.2297297 | M60: -77.76070318 | N60: 69.77698997 | O60: -20.28169867 | P60: 67.56756757 | Q60: -11.31756757 | R60: 0 | S60: 50 | T60: 10.53646297 | U60: -1.33646297 | V60: 15.7 | W60: 4.4 | X60: 59.93847 | Y60: =#REF!-X60 ->  | Z60: 15.51429 | AA60: =#REF!-Z60 ->  | AB60: 31.81079 | AC60: =#REF!-AB60 ->  | AD60: 28.1485882 | AE60: -1.55328481
A61: Retten i Helsingør | H61: 0.1747076542 | I61: =#REF!-H61 ->  | J61: 91 | K61: 15 | L61: 625.1616766 | M61: -178.3883433 | N61: 80.56226998 | O61: -24.86066188 | P61: 65.71428571 | Q61: -11.86813187 | R61: 33.33333333 | T61: 8.100239201 | U61: 4.999760799 | V61: 11 | W61: 6.9 | X61: 59.49472 | Y61: =#REF!-X61 ->  | Z61: 16.67005 | AA61: =#REF!-Z61 ->  | AB61: 30.65085 | AC61: =#REF!-AB61 ->  | AD61: 27.2421141 | AE61: -2.07074528
A62: Retten i Lyngby | H62: 0.215369746 | I62: =#REF!-H62 ->  | J62: 97 | K62: 6 | L62: 681.4340426 | M62: -206.2082361 | N62: 48.64405845 | O62: -9.064360324 | P62: 92 | Q62: -19.27272727 | R62: 0 | S62: 100 | T62: 13.96319244 | U62: -4.263192438 | V62: 11.4 | W62: 3.9 | X62: 64.72881 | Y62: =#REF!-X62 ->  | Z62: 18.96953 | AA62: =#REF!-Z62 ->  | AB62: 37.24601 | AC62: =#REF!-AB62 ->  | AD62: 32.28066977 | AE62: -1.13857444
A63: Retten i Glostrup | H63: 0.1969059645 | I63: =#REF!-H63 ->  | J63: 204 | K63: -58 | L63: 771.7123746 | M63: -156.8713341 | N63: 86.84454431 | O63: -11.14965342 | P63: 31.86813187 | Q63: 11.88186813 | R63: 0 | S63: 0 | T63: 10.93379043 | U63: 0.8662095749 | V63: 11.7 | W63: 8.9 | X63: 130.88573 | Y63: =#REF!-X63 ->  | Z63: 35.62068 | AA63: =#REF!-Z63 ->  | AB63: 77.10199 | AC63: =#REF!-AB63 ->  | AD63: 61.81072972 | AE63: -5.55186892
A64: Retten på Frederiksberg | H64: 0.174762062 | I64: =#REF!-H64 ->  | J64: 165 | K64: 15 | L64: 581.0327869 | M64: -29.7304613 | N64: 111.6069617 | O64: -25.44746547 | P64: 13.79310345 | Q64: -5.097451274 | R64: 0 | S64: 0 | T64: 13.6 | U64: -1.6 | V64: 6.9 | W64: 11.4 | X64: 85.6221 | Y64: =#REF!-X64 ->  | Z64: 23.5809 | AA64: =#REF!-Z64 ->  | AB64: 50.499 | AC64: =#REF!-AB64 ->  | AD64: 41.59169201 | AE64: -1.18278784
A65: Københavns Byret | H65: 0.2193251818 | I65: =#REF!-H65 ->  | J65: 149 | K65: -53 | L65: 545 | M65: -32.2007722 | N65: 119.5509634 | O65: -41.42760866 | P65: 31.50684932 | Q65: 38.49315068 | R65: 12.5 | T65: 9.68431915 | U65: -1.58431915 | V65: 7 | W65: 2.6 | X65: 193.76867 | Y65: =#REF!-X65 ->  | Z65: 57.94189 | AA65: =#REF!-Z65 ->  | AB65: 116.4215 | AC65: =#REF!-AB65 ->  | AD65: 102.5840725 | AE65: 0.40830193
A66: Retten på Bornholm | H66: 0.3437150824 | I66: =#REF!-H66 ->  | J66: 37 | K66: 9 | L66: 359.8181818 | M66: -68.46524064 | N66: 39.08944028 | O66: -11.51479662 | P66: 100 | Q66: -5.263157895 | R66: 999 | S66: -899 | T66: 6.887992143 | U66: 0.3120078568 | V66: 6.4 | W66: 0 | X66: 15.32718 | Y66: =#REF!-X66 ->  | Z66: 3.68583 | AA66: =#REF!-Z66 ->  | AB66: 8.36564 | AC66: =#REF!-AB66 ->  | AD66: 7.34 | AE66: -0.03
B67: 0 | C67: 0 | D67: 0 | E67: 0 | F67: 0 | G67: 0 | H67: 0 | I67: 0 | J67: 0 | K67: 0 | L67: 0 | M67: 0 | N67: 0 | O67: 0 | P67: 0 | Q67: 0 | R67: 0 | S67: 0 | T67: 0 | U67: 0 | V67: 0 | W67: 0 | X67: 0 | Y67: 0 | Z67: 0 | AA67: 0 | AB67: 0 | AC67: 0 | AD67: 0 | AE67: 0
